Workbook

Sheet Project_Input
B2: Project Input
B3: 1 | C3: =B3+1 -> 2 | D3: =C3+1 -> 3 | E3: =D3+1 -> 4 | F3: =E3+1 -> 5 | G3: =F3+1 -> 6 | H3: 7 | I3: 8 | J3: 9 | K3: 10 | L3: 11 | M3: =L3+1 -> 12 | N3: =M3+1 -> 13 | O3: =N3+1 -> 14 | P3: =O3+1 -> 15 | Q3: =P3+1 -> 16 | R3: =Q3+1 -> 17 | S3: =R3+1 -> 18 | T3: =S3+1 -> 19 | U3: =T3+1 -> 20 | V3: =U3+1 -> 21 | W3: =V3+1 -> 22 | X3: =W3+1 -> 23 | Y3: =X3+1 -> 24 | Z3: =Y3+1 -> 25 | AA3: =Z3+1 -> 26 | AB3: =AA3+1 -> 27 | AC3: =AB3+1 -> 28 | AD3: 29 | AE3: =AD3+1 -> 30 | AF3: =AE3+1 -> 31 | AG3: =AF3+1 -> 32 | AH3: =AG3+1 -> 33 | AI3: =AH3+1 -> 34 | AJ3: =AI3+1 -> 35 | AK3: =AJ3+1 -> 36 | AL3: =AK3+1 -> 37 | AM3: =AL3+1 -> 38 | AN3: =AM3+1 -> 39 | AO3: =AN3+1 -> 40 | AP3: =AO3+1 -> 41 | AQ3: =AP3+1 -> 42 | AR3: =AQ3+1 -> 43 | AS3: =AR3+1 -> 44 | AT3: =AS3+1 -> 45 | AU3: =AT3+1 -> 46 | AV3: =AU3+1 -> 47 | AW3: 48 | AX3: 49 | AY3: 50
B4: Index | C4: Stream | D4: WR Description | E4: Manager | F4: DNSP | G4: Capex Input | M4: O&M | N4: Benefit Claim Ramping Up (% from 2026 to 2030) | S4: Additional Benefit Claim Period (No of Year beyond 2030) | T4: Value of Customer Reliability (VCR) (Reliability) | Y4: Financial | AF4: Safety | AL4: Environmental | AS4: Other Inputs
G5: 2026 | H5: =G5+1 -> 2027 | I5: =H5+1 -> 2028 | J5: 2029 | K5: 2030 | L5: Total | M5: As % of Capex | N5: 2026 | O5: =N5+1 -> 2027 | P5: =O5+1 -> 2028 | Q5: =P5+1 -> 2029 | R5: =Q5+1 -> 2030 | T5: Yes/No | U5: Average Load (KWh) | V5: Outage Duration (Hours Per Year) | W5: Frequency of Event (%) | X5: Comments | Y5: Yes/No | Z5: Labour Saving ($/Per Year) | AA5: Material Saving ($/Per Year) | AB5: Other Saving ($/Per Year) | AC5: Equipment Replacement Cost | AD5: Probability of Failure of Equipment (%) | AE5: Comments | AF5: Yes/No | AG5: Probability of Fatality (%) | AH5: Cost of Fatality ($) | AI5: Probability of Enjury (%) | AJ5: Cost of Enjury ($) | AK5: Comments | AL5: Yes/No | AM5: Probability of event A | AN5: Cost of event A | AO5: Probability of event B | AP5: Cost of Event B | AQ5: Carbon Reduction (in MWh) | AR5: Comments
B6: 361 | C6: REPEX | D6: GRID COMMS AC Systems Replacements (Option1 - Risk based program) Preferred | E6: Brad S | F6: EECL | G6: 701000 | H6: 879200 | I6: 880200 | J6: 881200 | K6: =L6-SUM(G6:J6) -> 1058400 | L6: 4400000 | M6: 0 | N6: =G6/L6 -> 0.1593181818 | O6: =H6/L6+N6 -> 0.3591363636 | P6: =O6+J6/L6 -> 0.5594090909 | Q6: 1 | R6: 1 | S6: 12 | T6: yes | U6: 200 | V6: 4 | W6: 0.01 | X6: Failure of a site from weather, loss of P25 and protection, SCADA and some depot comms | Y6: Yes | Z6: 8960 | AC6: =L6*2 -> 8800000 | AD6: 0.05 | AE6: Currently having 2 fail a year, if proactive program not proceeding likely 5 per year, out of a propulation of 100 | AF6: Yes | AG6: =1/1000000 -> 1e-06 | AH6: 30000000 | AI6: =1/100000 -> 1e-05 | AJ6: 500000 | AL6: No
B7: 362 | C7: REPEX | D7: GRID COMMS AC Systems Replacements (Option 2 - Replace all) | E7: Brad S | F7: EECL | G7: =$L7/5 -> 1305130.862 | H7: 1305130.862 | I7: 1305130.862 | J7: 1305130.862 | K7: 1305130.862 | L7: 6525654.311 | M7: 0 | N7: =G7/L7 -> 0.2 | O7: =H7/L7+N7 -> 0.4 | P7: =O7+J7/L7 -> 0.6 | Q7: =P7+K7/L7 -> 0.8 | R7: 1 | S7: 12 | T7: yes | U7: 200 | V7: 4 | W7: 0.01 | X7: Failure of a site from weather, loss of P25 and protection, SCADA and some depot comms | Y7: Yes | Z7: 8960 | AC7: =L7*2 -> 13051308.62 | AD7: 0.05 | AE7: Currently having 2 fail a year, if proactive program not proceeding likely 5 per year, out of a propulation of 100 | AF7: Yes | AG7: =1/1000000 -> 1e-06 | AH7: 30000000 | AI7: =1/100000 -> 1e-05 | AJ7: 500000 | AL7: No
B8: 363 | C8: REPEX | D8: GRID COMMS AC Systems Replacements (Option 3 - AER proposed) | E8: Brad S | F8: EECL | G8: 896582.4398 | H8: 896582.4398 | I8: 896582.4398 | J8: 896582.4398 | K8: 896582.4398 | L8: 4482912.199 | M8: 0 | N8: =G8/L8 -> 0.2 | O8: =H8/L8+N8 -> 0.4 | P8: =O8+J8/L8 -> 0.6 | Q8: =P8+K8/L8 -> 0.8 | R8: 1 | S8: 12 | T8: yes | U8: 200 | V8: 4 | W8: 0.01 | X8: Failure of a site from weather, loss of P25 and protection, SCADA and some depot comms | Y8: Yes | Z8: 8960 | AC8: =L8*2 -> 8965824.398 | AD8: 0.05 | AE8: Currently having 2 fail a year, if proactive program not proceeding likely 5 per year, out of a propulation of 100 | AF8: Yes | AG8: =1/1000000 -> 1e-06 | AH8: 30000000 | AI8: =1/100000 -> 1e-05 | AJ8: 500000 | AL8: No
B9: 364 | C9: REPEX | D9: GRID COMMS AC Systems Replacements (Option 4 - Reactive replace) | E9: Brad S | F9: EECL | G9: =$L9/5 -> 1522026.478 | H9: =$L9/5 -> 1522026.478 | I9: 1522026.478 | J9: 1522026.478 | K9: 1522026.478 | L9: 7610132.392 | M9: 0 | N9: =G9/L9 -> 0.2 | O9: =H9/L9+N9 -> 0.4 | P9: =O9+J9/L9 -> 0.6 | Q9: =P9+K9/L9 -> 0.8 | R9: 1 | S9: 12
B10: 881 | C10: REPEX | D10: GRID COMMS P25 Replacement (Option 1 - Proposed Life Extension) Preferred | E10: Luke A | F10: EECL | G10: 448196.6244 | H10: 449489.723 | I10: 1200459.284 | J10: 1200459.284 | K10: 1200459.284 | L10: 4499064.2 | M10: 0 | N10: 0.1 | O10: 0.3 | P10: 0.6 | Q10: 0.9 | R10: 1 | S10: 9 | T10: Yes | U10: 2000 | V10: 8 | W10: 0.01 | X10: Outage of P25 during natural disaster increasing the restoration time. Probability once every 8 years. | Y10: Yes | Z10: =90*112 -> 10080 | AC10: =L10 * 2 -> 8998128.4 | AD10: 0.05 | AE10: double cost to replace reactivly vs proactivly | AF10: Yes | AG10: =1/1000000 -> 1e-06 | AH10: 30000000 | AI10: =1/100000 -> 1e-05 | AJ10: 500000 | AK10: P25 safety duress, impact detection functions utilised X per year
B11: 882 | C11: REPEX | D11: GRID COMMS P25 Replacement (Option 2 - Technology change) | E11: Luke A | F11: EECL | G11: 1517125.974 | H11: 2406476.074 | I11: 2981938.237 | J11: 2668050.3 | K11: 889350.1 | L11: 10462940.68 | M11: 0 | N11: 0.1 | O11: 0.3 | P11: 0.6 | Q11: 0.9 | R11: 1 | S11: 9 | T11: Yes | U11: 2000 | V11: 8 | W11: 0.01 | X11: Outage of P25 during natural disaster increasing the restoration time. Probability once every 8 years. | Y11: Yes | Z11: 10080 | AC11: 20925881.37 | AD11: 0.05 | AE11: double cost to replace reactivly vs proactivly | AF11: Yes | AG11: 1e-06 | AH11: 30000000 | AI11: 1e-05 | AJ11: 500000 | AK11: P25 safety duress, impact detection functions utilised X per year
B12: 883 | C12: REPEX | D12: GRID COMMS P25 Replacement (Option 3 - Public network) | E12: Luke A | F12: EECL | G12: 404928 | H12: =($L12-$G12)/4 -> 2874400 | I12: =($L12-$G12)/4 -> 2874400 | J12: =($L12-$G12)/4 -> 2874400 | K12: =($L12-$G12)/4 -> 2874400 | L12: 11902528 | M12: 0.24 | N12: 0 | O12: 0.33 | P12: 0.66 | Q12: 0.8 | R12: 1 | S12: 5 | T12: Yes | U12: 2000 | V12: 8 | W12: 0.01 | X12: Outage of P25 during natural disaster increasing the restoration time. Probability once every 8 years. | Y12: Yes | Z12: =1200*8*112 -> 1075200 | AA12: =673825+670818+71000+500000 -> 1915643 | AC12: =L12 * 2 -> 23805056 | AD12: 0.05 | AE12: double cost to replace reactivly vs proactivly | AF12: Yes | AG12: =1/1000000 -> 1e-06 | AH12: 30000000 | AI12: =1/100000 -> 1e-05 | AJ12: 500000 | AK12: P25 safety duress, impact detection functions utilised X per year
B13: 884 | C13: REPEX | D13: GRID COMMS P25 Replacement (Option 4 - Accelerated program) | E13: Luke A | F13: EECL | G13: =$L13/5 -> 3998032.05 | H13: 3998032.05 | I13: 3998032.05 | J13: 3998032.05 | K13: 3998032.05 | L13: 19990160.25 | M13: 0 | N13: 0.2 | O13: 0.4 | P13: 0.6 | Q13: 0.8 | R13: 1 | S13: 9 | T13: Yes | U13: 2000 | V13: 8 | W13: 0.01 | X13: Outage of P25 during natural disaster increasing the restoration time. Probability once every 8 years. | Y13: Yes | Z13: =90*112 -> 10080 | AC13: =204502*115 -> 23517730 | AD13: 0.05 | AE13: double cost due to not having like for like spares made available by the proactive program for the base station controller | AF13: Yes | AG13: =1/1000000 -> 1e-06 | AH13: 30000000 | AI13: =1/100000 -> 1e-05 | AJ13: 500000 | AK13: P25 safety duress, impact detection functions utilised X per year
B14: 885 | C14: REPEX | D14: GRID COMMS P25 Replacement (Option 5 - Reactive replace) | E14: Luke A | F14: EECL | G14: 1799617.6 | H14: 1799617.6 | I14: 1799617.6 | J14: 1799617.6 | K14: 1799617.6 | L14: =204502*2*22 -> 8998088 | M14: 0 | N14: 0.2 | O14: 0.4 | P14: 0.6 | Q14: 0.8 | R14: 1 | S14: 9 | T14: No | Y14: no | AF14: no
B15: 521 | C15: REPEX | D15: GRID COMMS SDH Replacement Edge (Option 1A - Spares mine 4%) Preferred | E15: Luke A | F15: EECL | G15: 682297.62 | H15: 682297.62 | I15: 682297.62 | J15: 682297.62 | K15: 682297.62 | L15: =113716.27*30 -> 3411488.1 | M15: 0 | N15: 0.2 | O15: 0.4 | P15: 0.6 | Q15: 0.8 | R15: 1 | S15: 4 | T15: No | Y15: Yes | AC15: =L19 -> 14183868.16 | AD15: =(30/154)/5 -> 0.03896103896 | AF15: No | AL15: no
B16: 522 | C16: REPEX | D16: GRID COMMS SDH Replacement Edge (Option 1B - Spares mine 5%) | E16: Luke A | F16: EECL | G16: 874978.88 | H16: 874978.88 | I16: 874978.88 | J16: 874978.88 | K16: 874978.88 | L16: =115128.8*38 -> 4374894.4 | M16: 0 | N16: 0.2 | O16: 0.4 | P16: 0.6 | Q16: 0.8 | R16: 1 | S16: 4 | T16: No | Y16: Yes | AC16: =AC15 -> 14183868.16 | AD16: =(38/154)/5 -> 0.04935064935 | AF16: No | AL16: no
B17: 533 | C17: REPEX | D17: GRID COMMS SDH Replacement Edge (Option 1C - Spares mine 6%) | E17: Luke A | F17: EECL | G17: 1151288 | H17: 1151288 | I17: 1151288 | J17: 1151288 | K17: 1151288 | L17: =115128.8*50 -> 5756440 | M17: 0 | N17: 0.2 | O17: 0.4 | P17: 0.6 | Q17: 0.8 | R17: 1 | S17: 4 | T17: No | Y17: Yes | AC17: =AC15 -> 14183868.16 | AD17: =(50/154)/5 -> 0.06493506494 | AF17: No | AL17: no
B18: 544 | C18: REPEX | D18: GRID COMMS SDH Replacement Edge (Option 1D - AER proposed) | E18: Luke A | F18: EECL | G18: 1013133.44 | H18: 1013133.44 | I18: 1013133.44 | J18: 1013133.44 | K18: 1013133.44 | L18: =(115128.8*24)+(8*115128.8*2.5) -> 5065667.2 | M18: 0 | N18: 0.2 | O18: 0.4 | P18: 0.6 | Q18: 0.8 | R18: 1 | S18: 4 | T18: No | Y18: Yes | AC18: =AC15 -> 14183868.16 | AD18: =(24/154)/5 -> 0.03116883117 | AF18: No | AL18: no
B19: 555 | C19: REPEX | D19: GRID COMMS SDH Replacement Edge (Option 2 - Wholesale replace) | E19: Luke A | F19: EECL | G19: 2836773.632 | H19: 2836773.632 | I19: 2836773.632 | J19: 2836773.632 | K19: 2836773.632 | L19: =115128.8*154*0.8 -> 14183868.16 | M19: 0 | N19: 0.2 | O19: 0.4 | P19: 0.6 | Q19: 0.8 | R19: 1 | S19: 4 | T19: No | Y19: Yes | AC19: =AC17 -> 14183868.16 | AD19: =(50/154)/5 -> 0.06493506494 | AF19: No | AL19: no
B20: 556 | C20: REPEX | D20: GRID COMMS SDH Replacement Edge (Option 3 - Reactive replace) | E20: Luke A | F20: EECL | G20: 1801600 | H20: 1801600 | I20: 1801600 | J20: 1801600 | K20: 1801600 | L20: 9008000 | M20: 0 | N20: 0.2 | O20: 0.4 | P20: 0.6 | Q20: 0.8 | R20: 1 | S20: 4 | T20: No | Y20: no | AF20: No | AL20: no
B21: 551 | C21: REPEX | D21: GRID COMMS SDH Replacement Core (Option 1A - Spares mine 4%) Preferred | E21: Luke A | F21: EECL | G21: 845390.288 | H21: 845390.288 | I21: 845390.288 | J21: 845390.288 | K21: 845390.288 | L21: 4226951.44 | M21: 0 | N21: 0.2 | O21: 0.4 | P21: 0.6 | Q21: 0.8 | R21: 1 | S21: 4 | T21: No | Y21: Yes | AC21: =$L$25 -> 16907804 | AD21: =(52/261)/5 -> 0.0398467433 | AF21: No | AL21: no
B22: 552 | C22: REPEX | D22: GRID COMMS SDH Replacement Core (Option 1B - Spares mine 5%) | E22: Luke A | F22: EECL | G22: 1056737.75 | H22: 1056737.75 | I22: 1056737.75 | J22: 1056737.75 | K22: 1056737.75 | L22: 5283688.75 | M22: 0 | N22: 0.2 | O22: 0.4 | P22: 0.6 | Q22: 0.8 | R22: 1 | S22: 4 | T22: No | Y22: Yes | AC22: =$L$25 -> 16907804 | AD22: =(65/261)/5 -> 0.04980842912 | AF22: No | AL22: no
B23: 553 | C23: REPEX | D23: GRID COMMS SDH Replacement Core (Option 1C - Spares mine 6%) | E23: Luke A | F23: EECL | G23: 1268085.3 | H23: 1268085.3 | I23: 1268085.3 | J23: 1268085.3 | K23: 1268085.3 | L23: 6340426.5 | M23: 0 | N23: 0.2 | O23: 0.4 | P23: 0.6 | Q23: 0.8 | R23: 1 | S23: 4 | T23: No | Y23: Yes | AC23: =$L$25 -> 16907804 | AD23: =(78/261)/5 -> 0.05977011494 | AF23: No | AL23: no
B24: 554 | C24: REPEX | D24: GRID COMMS SDH Replacement Core (Option 1D - AER proposed) | E24: Luke A | F24: EECL | G24: 1130709.392 | H24: 1130709.392 | I24: 1130709.392 | J24: 1130709.392 | K24: 1130709.392 | L24: 5653546.962 | M24: 0 | N24: 0.2 | O24: 0.4 | P24: 0.6 | Q24: 0.8 | R24: 1 | S24: 4 | T24: No | Y24: Yes | AC24: =$L$25 -> 16907804 | AD24: =(40/261)/5 -> 0.030651341 | AF24: No | AL24: no
B25: 555 | C25: REPEX | D25: GRID COMMS SDH Replacement Core (Option 2 - Wholesale replace) | E25: Luke A | F25: EECL | G25: 3381560.8 | H25: 3381560.8 | I25: 3381560.8 | J25: 3381560.8 | K25: 3381560.8 | L25: 16907804 | M25: 0 | N25: 0.2 | O25: 0.4 | P25: 0.6 | Q25: 0.8 | R25: 1 | S25: 4 | T25: No | Y25: Yes | AC25: =$L$25 -> 16907804 | AD25: =(78/261)/5 -> 0.05977011494 | AF25: No | AL25: no
B26: 556 | C26: REPEX | D26: GRID COMMS SDH Replacement Core (Option 3 - Reactive replace) | E26: Luke A | F26: EECL | G26: 2113475.5 | H26: 2113475.5 | I26: 2113475.5 | J26: 2113475.5 | K26: 2113475.5 | L26: 10567377.5 | M26: 0 | N26: 0.2 | O26: 0.4 | P26: 0.6 | Q26: 0.8 | R26: 1 | S26: 4 | T26: No | Y26: No | AF26: No | AL26: no
B27: 431 | C27: REPEX | D27: GRID COMMS Data Centre Ethernet Replacements (Option 1 - Preferred) | E27: Luke A | F27: EECL | G27: =L27*0.05 -> 218423.4345 | H27: =L27*0.05 -> 218423.4345 | I27: =$L27*0.1 -> 436846.869 | J27: =$L27*0.4 -> 1747387.476 | K27: =$L27*0.4 -> 1747387.476 | L27: 4368468.69 | M27: 0 | N27: 0.05 | O27: 0.1 | P27: 0.2 | Q27: 0.6 | R27: 1 | S27: 4 | T27: Yes | U27: 2000 | V27: 1 | W27: 1 | X27: An outage to the underlying telecommunications data centre infrastructure can lead to a failure of critical voice and control systems causing delays, cancellation and rescheduling of planned and unplanned work to the power network. Probability of Failure (PoF): We have taken a minimalistic approached to estimating the impact to Customer Reliability, by limiting the exposure to 1 instance of a small 2000KWh impact. Likelihood of Consequence (LoC) - Reliability: 100% likely that an outage would occur should no active remediation be conducted. | Y27: Yes | Z27: =(6*64*112)+(6*140*112) -> 137088 | AA27: =(6*(23000*0.6)) -> 82800 | AC27: =L27*2 -> 8736937.381 | AD27: 0.056 | AE27: There is a likelihood that on a yearly basis 5.6% ( 3 issues per annum accross the fleet) of the at-risk assets will experience either hardware or software defects that require an emergency response that will cost twice as much to fix compared to resolving as part of planned proactive work. | AF27: No | AL27: no
B28: 432 | C28: REPEX | D28: GRID COMMS Data Centre Ethernet Replacements (Option 2 - AER proposed) | E28: Luke A | F28: EECL | G28: =L28*0.05 -> 137606.7637 | H28: =L28*0.05 -> 137606.7637 | I28: =$L28*0.1 -> 275213.5275 | J28: =$L28*0.4 -> 1100854.11 | K28: =$L28*0.4 -> 1100854.11 | L28: =4368468.6904*(1-0.37) -> 2752135.275 | M28: 0.01 | N28: 0.05 | O28: 0.1 | P28: 0.2 | Q28: 0.6 | R28: 1 | S28: 4 | T28: Yes | U28: 2000 | V28: 1 | W28: 0.63 | X28: An outage to the underlying telecommunications data centre infrastructure can lead to a failure of critical voice and control systems causing delays, cancellation and rescheduling of planned and unplanned work to the power network. Probability of Failure (PoF): We have taken a minimalistic approached to estimating the impact to Customer Reliability, by limiting the exposure to 1 instance of a small 2000KWh impact. Likelihood of Consequence (LoC) - Reliability: 100% likely that an outage would occur should no active remediation be conducted. | Y28: Yes | Z28: =((6*64*112)+(6*140*112))*(1-0.37) -> 86365.44 | AA28: =(6*(23000*0.6))*(1-0.37) -> 52164 | AC28: =L28*2 -> 5504270.55 | AD28: 0.056 | AE28: There is a likelihood that on a yearly basis 5.6% ( 3 issues per annum accross the fleet) of the at-risk assets will experience either hardware or software defects that require an emergency response that will cost twice as much to fix compared to resolving as part of planned proactive work. | AF28: No | AL28: no
B29: 433 | C29: REPEX | D29: GRID COMMS Data Centre Ethernet Replacements (Option 3 - Reactive replace) | E29: Luke A | F29: EECL | G29: =$L$29/5 -> 567900.97 | H29: =$L$29/5 -> 567900.97 | I29: =$L$29/5 -> 567900.97 | J29: =$L$29/5 -> 567900.97 | K29: =$L$29/5 -> 567900.97 | L29: 2839504.85 | M29: 0 | N29: 0.05 | O29: 0.1 | P29: 0.2 | Q29: 0.6 | R29: 1 | S29: 4 | T29: no | Y29: no | AF29: No | AL29: no
B30: 471 | C30: REPEX | D30: GRID COMMS Operational Support Systems Replacements (Option 1) Preferred | E30: Luke A | F30: EECL | G30: =L30*0.5 -> 1993534.12 | H30: =L30*0.4 -> 1594827.296 | I30: =L30*0.1 -> 398706.824 | J30: 0 | K30: 0 | L30: 3987068.24 | M30: 0 | N30: 0.5 | O30: 0.9 | P30: 1 | Q30: 1 | R30: 1 | S30: 3 | T30: No | Y30: Yes | AC30: =L30*2.5 -> 9967670.6 | AD30: 0.02 | AE30: There is an estimated likelihood that on a yearly basis 2% of the at-risk systems will experience software defects that will result in inability to centrally manage the telecommunications network and cost 2.5 as much to fix compared to resolving as part of planned proactive work. | AF30: No | AL30: Yes | AM30: 1 | AN30: =(140*12*112)*2 -> 376320 | AO30: 1 | AP30: =(140*12*112)*0.5 -> 94080 | AR30: Event A - Infrastructure not fit for purpose resulting in inability to efficiently manage the telco network resulting in increased labour costs for manual tasks. Event B - cyber security risks due to vulnerabilities in obsolete systems requiring additional resources to monitor.
B31: 472 | C31: REPEX | D31: GRID COMMS Operational Support Systems Replacements (Option 2 - AER proposed) | E31: Luke A | F31: EECL | G31: =L31*0.5 -> 1255926.496 | H31: =L31*0.4 -> 1004741.196 | I31: =L31*0.1 -> 251185.2991 | J31: 0 | K31: 0 | L31: =3987068.24*(1-0.37) -> 2511852.991 | M31: 0 | N31: 0.5 | O31: 0.9 | P31: 1 | Q31: 1 | R31: 1 | S31: 3 | T31: No | Y31: Yes | AC31: =L31*2.5 -> 6279632.478 | AD31: 0.02 | AE31: There is an estimated likelihood that on a yearly basis 2% of the at-risk systems will experience software defects that will result in inability to centrally manage the telecommunications network and cost 2.5 as much to fix compared to resolving as part of planned proactive work. | AF31: No | AL31: Yes | AM31: 0.63 | AN31: =(140*12*112)*2 -> 376320 | AO31: =2/28 -> 0.07142857143 | AP31: =(140*12*112)*0.5 -> 94080 | AR31: Event A - Infrastructure not fit for purpose resulting in inability to efficiently manage the telco network resulting in increased labour costs for manual tasks. Event B - cyber security risks due to vulnerabilities in obsolete systems requiring additional resources to monitor.
B32: 473 | C32: REPEX | D32: GRID COMMS Operational Support Systems Replacements (Option 3 - Wholesale replace) | E32: Luke A | F32: EECL | G32: =$L32/5 -> 1760000 | H32: =$L32/5 -> 1760000 | I32: =$L32/5 -> 1760000 | J32: =$L32/5 -> 1760000 | K32: =$L32/5 -> 1760000 | L32: 8800000 | M32: 0 | N32: 0.2 | O32: 0.4 | P32: 0.6 | Q32: 0.8 | R32: 1 | S32: 3 | T32: No | Y32: no | AF32: No
B33: 474 | C33: REPEX | D33: GRID COMMS Operational Support Systems Replacements (Option 4 - Reactive replace) | E33: Luke A | F33: EECL | G33: =L33*0.5 -> 2478087.5 | H33: =L33*0.4 -> 1982470 | I33: =L33*0.1 -> 495617.5 | J33: 0 | K33: 0 | L33: 4956175 | M33: 0 | N33: 0.5 | O33: 0.9 | P33: 1 | Q33: 1 | R33: 1 | S33: 3 | T33: No | Y33: no | AF33: No | AL33: no
B34: 191 | C34: REPEX | D34: GRID COMMS Fringe Network Replacement (Option 1 - Hybrid approach) | E34: Luke A | F34: EECL | G34: =L34*0.1 -> 86814.219 | H34: =L34*0.15 -> 130221.3285 | I34: =L34*0.05 -> 43407.1095 | J34: =L34*0.3 -> 260442.657 | K34: =L34*0.4 -> 347256.876 | L34: 868142.19 | N34: 0.1 | O34: 0.25 | P34: 0.3 | Q34: 0.6 | R34: 1 | S34: 8 | Y34: Yes | Z34: =112*8*12 -> 10752 | AE34: Note: Probability of Failure does not apply, as this is a standards development project to be deployed in Fix on Fail scenario. Firmware upgrades to resolve bugs, improve performance, stability etc. Estimated to save labour costs of 8 hrs per month. | AF34: No | AL34: Yes | AM34: 1 | AN34: =((12*2)*4500*0.6) -> 64800 | AO34: 1 | AP34: =(52*4*112) -> 23296 | AR34: A: sub-obtimal investiment in aging tech. Assumed 5 x per month of older asset/tech deployed with 60% reduced life. B: 4 hours/week labour is wasted as result of aged technology related fault (eg. Inmarsat/NBN/LTE issues etc.) that could be resolved through migration to another technology (LEO/5G etc.)
B35: 192 | C35: REPEX | D35: GRID COMMS Fringe Network Replacement (Option 2 - Standards develop) Preferred | E35: Luke A | F35: EECL | G35: =$L35/5 -> 138902.7504 | H35: 138902.7504 | I35: 138902.7504 | J35: 138902.7504 | K35: 138902.7504 | L35: =L34*0.8 -> 694513.752 | N35: 0.1 | O35: 0.25 | P35: 0.3 | Q35: 0.6 | R35: 1 | S35: 8 | Y35: no | AE35: Note: Probability of Failure does not apply, as this is a standards development project to be deployed in Fix on Fail scenario. | AF35: No | AL35: Yes | AM35: 1 | AN35: =((12*2)*4500*0.6) -> 64800 | AO35: 1 | AP35: =(52*4*112) -> 23296 | AR35: A: sub-obtimal investiment in aging tech. Assumed 5 x per month of older asset/tech deployed with 60% reduced life. B: 4 hours/week labour is wasted as result of aged technology related fault (eg. Inmarsat/NBN/LTE issues etc.) that could be resolved through migration to another technology (LEO/5G etc.)
B36: 193 | C36: REPEX | D36: GRID COMMS Fringe Network Replacement (Option 3 - AER proposed) | E36: Luke A | F36: EECL | G36: 109385.9159 | H36: 109385.9159 | I36: 109385.9159 | J36: 109385.9159 | K36: 109385.9159 | L36: =L34*(1-0.37) -> 546929.5797 | M36: 0.2 | N36: 0.2 | O36: 0.4 | P36: 0.6 | Q36: 0.8 | R36: 1 | S36: 8 | Y36: no | AF36: No | AL36: Yes | AM36: 1 | AN36: =((12*2)*4500*0.6) -> 64800 | AR36: A: sub-obtimal investiment in aging tech. Assumed 5 x per month of older asset/tech deployed with 60% reduced life. 1 x site per week where 4 hours is wasted as result of aged technology related fault (eg. Inmarsat/NBN/LTE issues etc.) that could be resolved through migration to another technology (LEO/5G etc.)
B37: 194 | C37: REPEX | D37: GRID COMMS Fringe Network Replacement (Option 4 - Reactive replace) | E37: Luke A | F37: EECL | G37: =L37*0.1 -> 255960 | H37: =L37*0.15 -> 383940 | I37: =L37*0.05 -> 127980 | J37: =L37*0.3 -> 767880 | K37: =L37*0.4 -> 1023840 | L37: =((4600+3500)*2)*158 -> 2559600 | M37: 0.2 | N37: 0.2 | O37: 0.4 | P37: 0.6 | Q37: 0.8 | R37: 1 | S37: 8 | T37: No | Y37: No | AF37: No | AL37: No
B38: 661 | C38: REPEX | D38: GRID COMMS Microwave Radio Core Replacements (Option 1 - Spares mine) Preferred | E38: Luke A | F38: EECL | G38: =$L38/5 -> 800055.8223 | H38: 800055.8223 | I38: 800055.8223 | J38: 800055.8223 | K38: 800055.8223 | L38: 4000279.112 | M38: 0 | N38: 0.2 | O38: 0.4 | P38: 0.6 | Q38: 0.8 | R38: 1 | S38: 9 | T38: No | Y38: Yes | AC38: =$L$40 -> 12800000 | AD38: =(18/96)/5 -> 0.0375 | AF38: no | AL38: no
B39: 664 | C39: REPEX | D39: GRID COMMS Microwave Radio Core Replacements (Option 2 - Hybrid Pro/Reactive replace) | E39: Luke A | F39: EECL | G39: 1210751.2 | H39: 1210751.2 | I39: 1210751.2 | J39: 1210751.2 | K39: 1210751.2 | L39: 6053756 | M39: 0 | N39: 0.2 | O39: 0.4 | P39: 0.6 | Q39: 0.8 | R39: 1 | S39: 9 | T39: No | Y39: Yes | AC39: =$L$40 -> 12800000 | AD39: =(18/96)/5 -> 0.0375 | AF39: no | AL39: no
B40: 665 | C40: REPEX | D40: GRID COMMS Microwave Radio Core Replacements (Option 3 - Wholesale replace) | E40: Luke A | F40: EECL | G40: 2560000 | H40: 2560000 | I40: 2560000 | J40: 2560000 | K40: 2560000 | L40: 12800000 | M40: 0 | N40: 0.2 | O40: 0.4 | P40: 0.6 | Q40: 0.8 | R40: 1 | S40: 9 | T40: No | Y40: Yes | AC40: =$L$40 -> 12800000 | AD40: =(18/96)/5 -> 0.0375 | AF40: no | AL40: no
B41: 666 | C41: REPEX | D41: GRID COMMS Microwave Radio Core Replacements (Option 4 - Reactive replace) | E41: Luke A | F41: EECL | G41: 1706785.8 | H41: 1706785.8 | I41: 1706785.8 | J41: 1706785.8 | K41: 1706785.8 | L41: 8533929 | M41: 0 | N41: 0.2 | O41: 0.4 | P41: 0.6 | Q41: 0.8 | R41: 1 | S41: 9 | T41: No | Y41: No | AF41: no | AL41: no
B42: 421 | C42: REPEX | D42: GRID COMMS Microwave Radio Edge Capricornia and Mackay Replacements (Option 1 - Spares mine) Preferred | E42: Luke A | F42: EECL | G42: 541815.6 | H42: 541815.6 | I42: 541815.6 | J42: 541815.6 | K42: 541815.6 | L42: 2709078 | M42: 0 | N42: 0.2 | O42: 0.4 | P42: 0.6 | Q42: 0.8 | R42: 1 | S42: 9 | Y42: Yes | AC42: =$L$44 -> 7212920.175 | AD42: 0.045 | AE42: 5% due to equipment failure. Double the cost to fix as requires significant temporary/repeated/cascaded work to also replace SDH equipment | AF42: no
B43: 422 | C43: REPEX | D43: GRID COMMS Microwave Radio Edge Capricornia and Mackay Replacements (Option 2 - AER proposed) | E43: Luke A | F43: EECL | G43: 747705.528 | H43: 747705.528 | I43: 747705.528 | J43: 747705.528 | K43: 747705.528 | L43: 3738527.64 | M43: 0 | N43: 0.2 | O43: 0.4 | P43: 0.6 | Q43: 0.8 | R43: 1 | S43: 9 | Y43: Yes | AC43: =$L$44 -> 7212920.175 | AD43: 0.0284 | AE43: 5% due to equipment failure. Double the cost to fix as requires significant temporary/repeated/cascaded work to also replace SDH equipment | AF43: no
B44: 423 | C44: REPEX | D44: GRID COMMS Microwave Radio Edge Capricornia and Mackay Replacements (Option 3 - Wholesale replace) | E44: Luke A | F44: EECL | G44: 1442584.035 | H44: 1442584.035 | I44: 1442584.035 | J44: 1442584.035 | K44: 1442584.035 | L44: 7212920.175 | M44: 0 | N44: 0.2 | O44: 0.4 | P44: 0.6 | Q44: 0.8 | R44: 1 | S44: 9 | Y44: Yes | AC44: =$L$44 -> 7212920.175 | AD44: 0.045 | AE44: 5% due to equipment failure. Double the cost to fix as requires significant temporary/repeated/cascaded work to also replace SDH equipment | AF44: no
B45: 424 | C45: REPEX | D45: GRID COMMS Microwave Radio Edge Capricornia and Mackay Replacements (Option 4 - Reactive replace) | E45: Luke A | F45: EECL | G45: 1083631.2 | H45: 1083631.2 | I45: 1083631.2 | J45: 1083631.2 | K45: 1083631.2 | L45: 5418156 | M45: 0 | N45: 0.2 | O45: 0.4 | P45: 0.6 | Q45: 0.8 | R45: 1 | S45: 9
B46: 411 | C46: REPEX | D46: GRID COMMS Microwave Radio Edge South West and Wide Bay (Option 1 - Spares mine) Preferred | E46: Luke A | F46: EECL | G46: =$L46/5 -> 965845.2 | H46: 965845.2 | I46: 965845.2 | J46: 965845.2 | K46: 965845.2 | L46: 4829226 | M46: 0 | N46: 0.2 | O46: 0.4 | P46: 0.6 | Q46: 0.8 | R46: 1 | S46: 9 | Y46: Yes | AC46: =$L$48 -> 13425248.28 | AD46: 0.045 | AE46: 5% due to equipment failure. Double the cost to fix as requires significant temporary/repeated/cascaded work to also replace SDH equipment | AF46: no
B47: 412 | C47: REPEX | D47: GRID COMMS Microwave Radio Edge South West and Wide Bay (Option 2 - AER proposed) | E47: Luke A | F47: EECL | G47: 1381158.636 | H47: 1381158.636 | I47: 1381158.636 | J47: 1381158.636 | K47: 1381158.636 | L47: 6905793.18 | M47: 0 | N47: 0.2 | O47: 0.4 | P47: 0.6 | Q47: 0.8 | R47: 1 | S47: 9 | Y47: Yes | AC47: =$L$48 -> 13425248.28 | AD47: 0.0259 | AE47: 5% due to equipment failure. Double the cost to fix as requires significant temporary/repeated/cascaded work to also replace SDH equipment | AF47: no
B48: 413 | C48: REPEX | D48: GRID COMMS Microwave Radio Edge South West and Wide Bay (Option 3 - Wholesale replace) | E48: Luke A | F48: EECL | G48: 2685049.656 | H48: 2685049.656 | I48: 2685049.656 | J48: 2685049.656 | K48: 2685049.656 | L48: 13425248.28 | M48: 0 | N48: 0.2 | O48: 0.4 | P48: 0.6 | Q48: 0.8 | R48: 1 | S48: 9 | Y48: Yes | AC48: =$L$48 -> 13425248.28 | AD48: 0.045 | AE48: 5% due to equipment failure. Double the cost to fix as requires significant temporary/repeated/cascaded work to also replace SDH equipment | AF48: no
B49: 414 | C49: REPEX | D49: GRID COMMS Microwave Radio Edge South West and Wide Bay (Option 4 - Reactive replace) | E49: Luke A | F49: EECL | G49: 1931690.4 | H49: 1931690.4 | I49: 1931690.4 | J49: 1931690.4 | K49: 1931690.4 | L49: 9658452 | M49: 0 | N49: 0.2 | O49: 0.4 | P49: 0.6 | Q49: 0.8 | R49: 1 | S49: 9
B50: 501 | C50: REPEX | D50: GRID COMMS Microwave Radio Edge Nth QLD and Far North Replacements (Option 1 - Spares mine) Preferred | E50: Luke A | F50: EECL | G50: 848059.2 | H50: 848059.2 | I50: 848059.2 | J50: 848059.2 | K50: 848059.2 | L50: 4240296 | M50: 0 | N50: 0.2 | O50: 0.4 | P50: 0.6 | Q50: 0.8 | R50: 1 | S50: 9 | Y50: Yes | AC50: =$L$52 -> 11448799.2 | AD50: 0.045 | AE50: 5% due to equipment failure. Double the cost to fix as requires significant temporary/repeated/cascaded work to also replace SDH equipment | AF50: no
B51: 502 | C51: REPEX | D51: GRID COMMS Microwave Radio Edge Nth QLD and Far North Replacements (Option 2 - AER proposed) | E51: Luke A | F51: EECL | G51: 1240993.296 | H51: 1240993.296 | I51: 1240993.296 | J51: 1240993.296 | K51: 1240993.296 | L51: 6204966.48 | M51: 0 | N51: 0.2 | O51: 0.4 | P51: 0.6 | Q51: 0.8 | R51: 1 | S51: 9 | Y51: Yes | AC51: =$L$52 -> 11448799.2 | AD51: 0.0259 | AE51: 5% due to equipment failure. Double the cost to fix as requires significant temporary/repeated/cascaded work to also replace SDH equipment | AF51: no
B52: 503 | C52: REPEX | D52: GRID COMMS Microwave Radio Edge Nth QLD and Far North Replacements (Option 3 - Wholesale replace) | E52: Luke A | F52: EECL | G52: 2289759.84 | H52: 2289759.84 | I52: 2289759.84 | J52: 2289759.84 | K52: 2289759.84 | L52: 11448799.2 | M52: 0 | N52: 0.2 | O52: 0.4 | P52: 0.6 | Q52: 0.8 | R52: 1 | S52: 9 | Y52: Yes | AC52: =$L$52 -> 11448799.2 | AD52: 0.045 | AE52: 5% due to equipment failure. Double the cost to fix as requires significant temporary/repeated/cascaded work to also replace SDH equipment | AF52: no
B53: 504 | C53: REPEX | D53: GRID COMMS Microwave Radio Edge Nth QLD and Far North Replacements (Option 4 - Reactive replace) | E53: Luke A | F53: EECL | G53: 1717319.88 | H53: 1717319.88 | I53: 1717319.88 | J53: 1717319.88 | K53: 1717319.88 | L53: 8586599.4 | M53: 0 | N53: 0.2 | O53: 0.4 | P53: 0.6 | Q53: 0.8 | R53: 1 | S53: 9
B54: 141 | C54: REPEX | D54: GRID COMMS Edge Router Replacement (Option 1 - Hybrid Proactive) Preferred | E54: Luke A | F54: EECL | G54: =(N54)*$L54 -> 734719.4 | H54: =(O54-N54)*$L54 -> 734719.4 | I54: 734719.4 | J54: 734719.4 | K54: 734719.4 | L54: 3673597 | M54: 0.0132 | N54: 0.2 | O54: 0.4 | P54: 0.6 | Q54: 0.8 | R54: 1 | S54: 6 | Y54: Yes | Z54: =(6*48*112) -> 32256 | AA54: =(43*(9000*0.6)) -> 232200 | AC54: =$L$57 -> 15634021 | AD54: 0.02 | AF54: No | AL54: no
B55: 142 | C55: REPEX | D55: GRID COMMS Edge Router Replacement (Option 2 - Standards Dev with Proactive Replacement) | E55: Luke A | F55: EECL | G55: =(N55)*$L55 -> 650226.669 | H55: 650226.669 | I55: 650226.669 | J55: 650226.669 | K55: 650226.669 | L55: 3251133.345 | M55: 0.0132 | N55: 0.2 | O55: 0.4 | P55: 0.6 | Q55: 0.8 | R55: 1 | S55: 6 | Y55: Yes | AA55: =(43*(9000*0.6)) -> 232200 | AC55: =$L$57 -> 15634021 | AD55: 0.02 | AF55: No | AL55: no
B56: 143 | C56: REPEX | D56: GRID COMMS Edge Router Replacement (Option 3 - AER proposed) | E56: Luke A | F56: EECL | G56: =(N56)*$L56 -> 862043.8499 | H56: 862043.8499 | I56: 862043.8499 | J56: 862043.8499 | K56: 862043.8499 | L56: 4310219.249 | M56: 0.0132 | N56: 0.2 | O56: 0.4 | P56: 0.6 | Q56: 0.8 | R56: 1 | S56: 6 | Y56: Yes | AC56: =$L$57 -> 15634021 | AD56: 0.02 | AF56: No | AL56: no
B57: 144 | C57: REPEX | D57: GRID COMMS Edge Router Replacement (Option 4 - Wholesale Replace) | E57: Luke A | F57: EECL | G57: =(N57)*$L57 -> 3126804.2 | H57: 3126804.2 | I57: 3126804.2 | J57: 3126804.2 | K57: 3126804.2 | L57: 15634021 | M57: 0.0132 | N57: 0.2 | O57: 0.4 | P57: 0.6 | Q57: 0.8 | R57: 1 | S57: 6 | Y57: Yes | Z57: =(6*48*112) -> 32256 | AA57: =(43*(9000*0.6))+((AD57*106)*2000) -> 236440 | AC57: =$L$57 -> 15634021 | AD57: 0.02 | AF57: No | AL57: no
B58: 145 | C58: REPEX | D58: GRID COMMS Edge Router Replacement (Option 5 - Reactive replace) | E58: Luke A | F58: EECL | G58: =(N58)*$L58 -> 1324917.072 | H58: 1324917.072 | I58: 1324917.072 | J58: 1324917.072 | K58: 1324917.072 | L58: 6624585.359 | M58: 0.0132 | N58: 0.2 | O58: 0.4 | P58: 0.6 | Q58: 0.8 | R58: 1 | S58: 6
B59: 441 | C59: REPEX | D59: GRID COMMS Core IP MPLS Ethernet Replacements (Option 1 - Multi-faceted proactive approach) Preferred | E59: Luke A | F59: EECL | G59: 0 | H59: 0 | I59: =L59*0.1 -> 135807.3168 | J59: =L59*0.4 -> 543229.2672 | K59: =L59*0.5 -> 679036.584 | L59: 1358073.168 | M59: 0 | N59: 0 | O59: 0 | P59: 0.1 | Q59: 0.5 | R59: 1 | S59: 6 | Y59: Yes | Z59: 32256 | AC59: 2353993.2 | AD59: 0.0326 | AE59: There is a likelihood that on a yearly basis 3.26% ( 6 issues per annum accross the fleet) of the at-risk assets will experience either hardware or software defects that require an emergency response that will cost twice as much to fix compared to resolving as part of planned proactive work. | AF59: No | AL59: Yes | AM59: 1 | AN59: =12*(15000*0.6) -> 108000 | AR59: A: Sub-optimal investment in aging technology. 1 x asset per month with 60% reduced asset life.
B60: 442 | C60: REPEX | D60: GRID COMMS Core IP MPLS Ethernet Replacements (Option 2 - AER proposed) | E60: Luke A | F60: EECL | G60: 0 | H60: 0 | I60: =L60*0.1 -> 85558.599 | J60: =L60*0.4 -> 342234.396 | K60: =L60*0.5 -> 427792.995 | L60: 855585.99 | M60: 0 | N60: 0 | O60: 0 | P60: 0.1 | Q60: 0.5 | R60: 1 | S60: 6 | Y60: Yes | AC60: 2353993.2 | AD60: 0.0326 | AE60: There is a likelihood that on a yearly basis 3.26% ( 6 issues per annum accross the fleet) of the at-risk assets will experience either hardware or software defects that require an emergency response that will cost twice as much to fix compared to resolving as part of planned proactive work. | AF60: No
B61: 443 | C61: REPEX | D61: GRID COMMS Core IP MPLS Ethernet Replacements (Option 3 - Reactive Replace) | E61: Luke A | F61: EECL | G61: =$L61/5 -> 181076.4 | H61: 181076.4 | I61: 181076.4 | J61: 181076.4 | K61: 181076.4 | L61: 905382 | M61: 0 | N61: 0.2 | O61: 0.4 | P61: 0.6 | Q61: 0.8 | R61: 1 | S61: 6
B62: 181 | C62: REPEX | D62: GRID COMMS Operational Voice Replacements (Option 1 - Multi-faceted) Preferred | E62: Luke A | F62: EECL | G62: 0 | H62: 0 | I62: =L62*0.1 -> 202999.0644 | J62: =L62*0.4 -> 811996.2576 | K62: =L62*0.5 -> 1014995.322 | L62: 2029990.644 | M62: 0.015 | N62: 0 | O62: 0 | P62: 0.1 | Q62: 0.5 | R62: 1 | S62: 5 | Y62: Yes | Z62: =40*2*112 -> 8960 | AA62: =836942/5 -> 167388.4 | AB62: =1043049/5 -> 208609.8 | AE62: Other: 100% chance due to vendor end of sale of licenses that its required to deploy another instance of Call Manager reactivley in parrallel to existing to support newly deployed telephones. Material: 100% change of SBC receiving CVE requiring replacement. Labour: 2 weeks of labour savings from having working voice NMS software when triaging faults.
B63: 182 | C63: REPEX | D63: GRID COMMS Operational Voice Replacements (Option 2 - AER proposed) | E63: Luke A | F63: EECL | G63: 0 | H63: 0 | I63: =L63*0.1 -> 127889.4106 | J63: =L63*0.4 -> 511557.6423 | K63: =L63*0.5 -> 639447.0529 | L63: =L62*(1-0.37) -> 1278894.106 | M63: 0.03 | N63: 0 | O63: 0 | P63: 0.1 | Q63: 0.5 | R63: 1 | S63: 5 | Y63: Yes | AB63: =1043049/5 -> 208609.8 | AE63: Other: 100% chance due to vendor end of sale of licenses that its required to deploy another instance of Call Manager reactivley in parrallel to existing to support newly deployed telephones. Note: SBC and NMS software out of scope for this option.
B64: 183 | C64: REPEX | D64: GRID COMMS Operational Voice Replacements (Option 3 - Reactive replace) | E64: Luke A | F64: EECL | G64: =$L64/5 -> 751996.4 | H64: 751996.4 | I64: 751996.4 | J64: 751996.4 | K64: 751996.4 | L64: 3759982 | M64: 0.015 | N64: 0.2 | O64: 0.4 | P64: 0.6 | Q64: 0.8 | R64: 1 | S64: 5
B65: 391 | C65: REPEX | D65: GRID COMMS DC Systems Replacements (Option 1 Preferred) | E65: Brad S | F65: EECL | G65: 987625 | H65: 987625 | I65: 987625 | J65: 987625 | K65: 987625 | L65: 4938125 | M65: 0 | N65: 0.1 | O65: 0.3 | P65: =O65+20% -> 0.5 | Q65: =P65+20% -> 0.7 | R65: =Q65+20% -> 0.9 | S65: 7 | T65: Yes | U65: 2000 | V65: 4 | W65: 0.05 | X65: Failure of a site from, loss of P25 and protection, SCADA and some depot comms | Y65: Yes | Z65: 8960 | AC65: =2*L65 -> 9876250 | AD65: 0.06 | AE65: 8% based on escalating failure rate | AF65: Yes | AG65: =1/1000000 -> 1e-06 | AH65: 30000000 | AI65: =1/100000 -> 1e-05 | AJ65: 500000 | AL65: Yes | AM65: 0.01 | AN65: =16*8*112 -> 14336
B66: 392 | C66: REPEX | D66: GRID COMMS DC Systems Replacements (Option 2 AER proposed) | E66: Mel M | F66: EECL | G66: =$L66/5 -> 1522139.35 | H66: 1522139.35 | I66: 1522139.35 | J66: 1522139.35 | K66: 1522139.35 | L66: =(4938125*(1-0.37))+4499678 -> 7610696.75 | M66: 0 | N66: 0.1 | O66: 0.3 | P66: =O66+20% -> 0.5 | Q66: =P66+20% -> 0.7 | R66: =Q66+20% -> 0.9 | S66: 7 | T66: Yes | U66: 2000 | V66: 4 | W66: 0.05 | X66: Failure of a site from, loss of P25 and protection, SCADA and some depot comms | Y66: Yes | Z66: 8960 | AC66: =2*L66 -> 15221393.5 | AD66: 0.06 | AE66: 8% based on escalating failure rate | AF66: Yes | AG66: =1/1000000 -> 1e-06 | AH66: 30000000 | AI66: =1/100000 -> 1e-05 | AJ66: 500000 | AL66: Yes | AM66: 0.01 | AN66: =16*8*112 -> 14336
B67: 393 | C67: REPEX | D67: GRID COMMS DC Systems Replacements (Option 3) | E67: Mel M | F67: EECL | G67: 1932026.6 | H67: 1932026.6 | I67: 1932026.6 | J67: 1932026.6 | K67: 1932026.6 | L67: 9660133 | M67: 0 | N67: 0.1 | O67: 0.3 | P67: =O67+20% -> 0.5 | Q67: =P67+20% -> 0.7 | R67: =Q67+20% -> 0.9 | S67: 7 | T67: Yes | U67: 2000 | V67: 4 | W67: 0.05 | X67: Failure of a site from, loss of P25 and protection, SCADA and some depot comms | Y67: Yes | Z67: 8960 | AC67: =2*L67 -> 19320266 | AD67: 0.06 | AE67: 8% based on escalating failure rate | AF67: Yes | AG67: =1/1000000 -> 1e-06 | AH67: 30000000 | AI67: =1/100000 -> 1e-05 | AJ67: 500000 | AL67: Yes | AM67: 0.01 | AN67: =16*8*112 -> 14336
B68: 394 | C68: REPEX | D68: GRID COMMS DC Systems Replacements (Option 4 - Reactive replace) | E68: Mel M | F68: EECL | G68: 1980655.6 | H68: 1980655.6 | I68: 1980655.6 | J68: 1980655.6 | K68: 1980655.6 | L68: =4951639*2 -> 9903278 | M68: 0 | N68: 0.1 | O68: 0.3 | P68: =O68+20% -> 0.5 | Q68: =P68+20% -> 0.7 | R68: =Q68+20% -> 0.9 | S68: 7 | T68: Yes | U68: 2000 | V68: 4 | W68: 0.05 | X68: Failure of a site from, loss of P25 and protection, SCADA and some depot comms | Y68: Yes | Z68: 8960 | AC68: =(L68*0.5)*2 -> 9903278 | AD68: 0.06 | AE68: 8% based on escalating failure rate | AF68: Yes | AG68: =1/1000000 -> 1e-06 | AH68: 30000000 | AI68: =1/100000 -> 1e-05 | AJ68: 500000 | AL68: Yes | AM68: 0.01 | AN68: =16*8*112 -> 14336
B69: 561 | C69: AuGEX | D69: GRID COMMS Reliability Core MPLS (Option 1A - Original) | E69: Troy W | F69: EECL | G69: =$L69/5 -> 528903 | H69: 528903 | I69: 528903 | J69: 528903 | K69: 528903 | L69: 2644515 | M69: 0.015 | N69: 0.2 | O69: =N69+20% -> 0.4 | P69: =O69+20% -> 0.6 | Q69: =P69+20% -> 0.8 | R69: =Q69+20% -> 1 | S69: 4 | T69: Yes | U69: 2000 | V69: 4 | W69: 0.15 | X69: outage of scada at same time as a power issue | Y69: Yes | AC69: =L69*3 -> 7933545 | AD69: 0.05 | AE69: 5% due to equipment failure. 3 x the cost to fix as requires significant temporary/repeated/cascaded work to also replace legacy equipment without and availbe alternate MPLS back haul | AF69: Yes | AG69: 1e-06 | AH69: 30000000 | AI69: =1/100000 -> 1e-05 | AJ69: 500000 | AL69: yes | AM69: 0.5 | AN69: =10*8*112 -> 8960 | AO69: 0.1 | AP69: =30*8*112 -> 26880
B70: 562 | C70: AuGEX | D70: GRID COMMS Reliability Core MPLS (Option 1B - Preferred Multi-Technology) | E70: Troy W | F70: EECL | G70: 324600 | H70: 324600 | I70: 324600 | J70: 324600 | K70: 324600 | L70: 1623000 | M70: 0.02 | N70: 0.2 | O70: =N70+20% -> 0.4 | P70: 0.6 | Q70: 0.8 | R70: 1 | S70: 4 | T70: Yes | U70: 2000 | V70: 4 | W70: 0.15 | X70: outage of scada at same time as a power issue | Y70: Yes | AC70: =L70*3 -> 4869000 | AD70: 0.05 | AE70: 5% due to equipment failure. 3 x the cost to fix as requires significant temporary/repeated/cascaded work to also replace legacy equipment without and availbe alternate MPLS back haul | AF70: Yes | AG70: 1e-06 | AH70: 30000000 | AI70: =1/100000 -> 1e-05 | AJ70: 500000 | AL70: yes | AM70: 0.5 | AN70: =10*8*112 -> 8960 | AO70: 0.1 | AP70: =30*8*112 -> 26880
B71: 563 | C71: AuGEX | D71: GRID COMMS Reliability Core MPLS (Option 1C - Expanded program) | E71: Troy W | F71: EECL | G71: 1997400 | H71: 1997400 | I71: 1997400 | J71: 1997400 | K71: 1997400 | L71: 9987000 | M71: 0.04 | N71: 0.2 | O71: 0.4 | P71: 0.6 | Q71: 0.8 | R71: 1 | S71: 4 | T71: Yes | U71: 2000 | V71: 4 | W71: 0.15 | X71: outage of scada at same time as a power issue | Y71: Yes | AC71: =L71*3 -> 29961000 | AD71: 0.05 | AE71: 5% due to equipment failure. 3 x the cost to fix as requires significant temporary/repeated/cascaded work to also replace legacy equipment without and availbe alternate MPLS back haul | AF71: Yes | AG71: 1e-06 | AH71: 30000000 | AI71: =1/100000 -> 1e-05 | AJ71: 500000 | AL71: yes | AM71: 0.5 | AN71: =10*8*112 -> 8960 | AO71: 0.1 | AP71: =30*8*112 -> 26880
B72: 564 | C72: AuGEX | D72: GRID COMMS Reliability Core MPLS (Option 3 - Do Nothing) | E72: Troy W | F72: EECL | G72: 561000 | H72: 561000 | I72: 561000 | J72: 561000 | K72: 561000 | L72: =11*102000*2.5 -> 2805000 | M72: 0 | N72: 0.2 | O72: 0.4 | P72: 0.6 | Q72: 0.8 | R72: 1 | S72: 4 | Y72: No
B73: 511 | C73: AuGEX | D73: GRID COMMS Reliability Edge Backhaul (Option 1A - Original) | E73: Troy W | F73: EECL | G73: 363620.8 | H73: 363620.8 | I73: 363620.8 | J73: 363620.8 | K73: 363620.8 | L73: 1818104 | M73: 0.015 | N73: 0.2 | O73: =N73+20% -> 0.4 | P73: =O73+20% -> 0.6 | Q73: =P73+20% -> 0.8 | R73: =Q73+20% -> 1 | S73: 4 | T73: Yes | U73: 1000 | V73: 20 | W73: 0.15 | X73: a number of outage across numerous devices | Y73: Yes | Z73: =2*112*8*10 -> 17920 | AC73: =L73*2 -> 3636208 | AD73: 0.05 | AE73: 1. multiple eveents throughout the year with cellaular failures 2. Microwave spur head site is taken down impactting numerous downstream sites, emergencey implementation of required reliability works required 2x effort to return services | AF73: Yes | AG73: 1e-06 | AH73: 30000000 | AI73: 1e-05 | AJ73: 500000 | AL73: yes | AM73: 0.5 | AN73: =4*8*112 -> 3584
B74: 512 | C74: AuGEX | D74: GRID COMMS Reliability Edge Backhaul (Option 1B - Preferred Multi Tech) | E74: Troy W | F74: EECL | G74: 297800 | H74: 297800 | I74: 297800 | J74: 297800 | K74: 297800 | L74: 1489000 | M74: 0.025 | N74: 0.2 | O74: 0.4 | P74: 0.6 | Q74: 0.8 | R74: 1 | S74: 4 | T74: Yes | U74: 1000 | V74: 20 | W74: 0.15 | X74: a number of outage across numerous devices, extebnded durations due to remote site locations | Y74: Yes | Z74: =2*112*8*10 -> 17920 | AC74: =L74*2 -> 2978000 | AD74: 0.05 | AE74: 1. multiple eveents throughout the year with cellaular & Satellite failures 2. Microwave spur head site is taken down impactting numerous downstream sites, emergencey implementation of required reliability works required 2x effort to return services | AF74: Yes | AG74: 1e-06 | AH74: 30000000 | AI74: =1/100000 -> 1e-05 | AJ74: 500000 | AL74: yes | AM74: 0.5 | AN74: =4*8*112 -> 3584
B75: 513 | C75: AuGEX | D75: GRID COMMS Reliability Edge Backhaul (Option 1C - Expanded scope) | E75: Troy W | F75: EECL | G75: 801200 | H75: 801200 | I75: 801200 | J75: 801200 | K75: 801200 | L75: 4006000 | M75: 0.0405 | N75: 0.2 | O75: 0.4 | P75: 0.6 | Q75: 0.8 | R75: 1 | S75: 4 | T75: Yes | U75: 1000 | V75: 20 | W75: 0.15 | X75: a number of outage across numerous devices, extebnded durations due to remote site locations | Y75: Yes | Z75: =2*112*8*10 -> 17920 | AC75: =L75*2 -> 8012000 | AD75: 0.05 | AE75: 1. multiple eveents throughout the year with cellaular & Satellite failures 2. Microwave spur head site is taken down impactting numerous downstream sites, emergencey implementation of required reliability works required 2x effort to return services | AF75: Yes | AG75: 1e-06 | AH75: 30000000 | AI75: =1/100000 -> 1e-05 | AJ75: 500000 | AL75: yes | AM75: 0.5 | AN75: =4*8*112 -> 3584
B76: 514 | C76: AuGEX | D76: GRID COMMS Reliability Edge Backhaul (Option 2 - Sat/Cell) | E76: Troy W | F76: EECL | G76: 117500 | H76: 117500 | I76: 117500 | J76: 117500 | K76: 117500 | L76: =23500*25 -> 587500 | M76: 0.19 | N76: 0.2 | O76: =N76+20% -> 0.4 | P76: 0.6 | Q76: 0.8 | R76: 1 | S76: 4 | T76: Yes | U76: 1000 | V76: 20 | W76: 0.15 | X76: a number of outage across numerous devices, extebnded durations due to remote site locations | Y76: Yes | Z76: =2*112*8*10 -> 17920 | AC76: =L76*2 -> 1175000 | AD76: 0.05 | AE76: 1. multiple eveents throughout the year with cellaular & Satellite failures 2. Microwave spur head site is taken down impactting numerous downstream sites, emergencey implementation of required reliability works required 2x effort to return services | AF76: Yes | AG76: 1e-06 | AH76: 30000000 | AI76: =1/100000 -> 1e-05 | AJ76: 500000 | AL76: yes | AM76: 0.5 | AN76: =4*8*112 -> 3584
B77: 515 | C77: AuGEX | D77: GRID COMMS Reliability Edge Backhaul (Option 3 - Do Nothing) | E77: Troy W | F77: EECL | G77: 2295000 | H77: 2295000 | I77: 2295000 | J77: 2295000 | K77: 2295000 | L77: =30*2.5*153000 -> 11475000 | M77: 0 | N77: 0.2 | O77: 0.4 | P77: 0.6 | Q77: 0.8 | R77: 1 | S77: 4

Sheet DCF
B1: Discounted Cashflow Analysis | C1: All $ in Real AUD2022
B3: Project Inedx | C3: 361 | E3: Capex | J3: O&M | K3: Benefit Claim Ramping Up (%) | P3: Benefit Claim Period (No of Year) | Q3: =Project_Input!T4 -> Value of Customer Reliability (VCR) (Reliability) | U3: =Project_Input!Y4 -> Financial | AA3: =Project_Input!AF4 -> Safety | AF3: =Project_Input!AL4 -> Environmental
B4: WR Description | C4: =VLOOKUP(Index_1,Project_Table,Project_Input!$D$3,FALSE) -> GRID COMMS AC Systems Replacements (Option1 - Risk based program) Preferred | E4: 2026 | F4: 2027 | G4: 2028 | H4: 2029 | I4: 2030 | J4: As % of Capex | K4: 2026 | L4: =K4+1 -> 2027 | M4: =L4+1 -> 2028 | N4: 2029 | O4: 2030 | Q4: =Project_Input!T5 -> Yes/No | R4: =Project_Input!U5 -> Average Load (KWh) | S4: =Project_Input!V5 -> Outage Duration (Hours Per Year) | T4: =Project_Input!W5 -> Frequency of Event (%) | U4: =Project_Input!Y5 -> Yes/No | V4: =Project_Input!Z5 -> Labour Saving ($/Per Year) | W4: =Project_Input!AA5 -> Material Saving ($/Per Year) | X4: =Project_Input!AB5 -> Other Saving ($/Per Year) | Y4: =Project_Input!AC5 -> Equipment Replacement Cost | Z4: =Project_Input!AD5 -> Probability of Failure of Equipment (%) | AA4: =Project_Input!AF5 -> Yes/No | AB4: =Project_Input!AG5 -> Probability of Fatality (%) | AC4: =Project_Input!AH5 -> Cost of Fatality ($) | AD4: =Project_Input!AI5 -> Probability of Enjury (%) | AE4: =Project_Input!AJ5 -> Cost of Enjury ($) | AF4: =Project_Input!AL5 -> Yes/No | AG4: =Project_Input!AM5 -> Probability of event A | AH4: =Project_Input!AN5 -> Cost of event A | AI4: =Project_Input!AO5 -> Probability of event B | AJ4: =Project_Input!AP5 -> Cost of Event B | AK4: =Project_Input!AQ5 -> Carbon Reduction (in MWh)
B5: DNSP | C5: =VLOOKUP(Index_1,Project_Table,Project_Input!$F$3) -> EECL | E5: =VLOOKUP(Index_1,Project_Table,Project_Input!G3,FALSE) -> 701000 | F5: =VLOOKUP(Index_1,Project_Table,Project_Input!H3,FALSE) -> 879200 | G5: =VLOOKUP(Index_1,Project_Table,Project_Input!I3,FALSE) -> 880200 | H5: =VLOOKUP(Index_1,Project_Table,Project_Input!J3,FALSE) -> 881200 | I5: =VLOOKUP(Index_1,Project_Table,Project_Input!K3,FALSE) -> 1058400 | J5: =VLOOKUP(Index_1,Project_Table,Project_Input!M3,FALSE) -> 0 | K5: =VLOOKUP(Index_1,Project_Table,Project_Input!N3,FALSE) -> 0.1593181818 | L5: =VLOOKUP(Index_1,Project_Table,Project_Input!O3,FALSE) -> 0.3591363636 | M5: =VLOOKUP(Index_1,Project_Table,Project_Input!P3,FALSE) -> 0.5594090909 | N5: =VLOOKUP(Index_1,Project_Table,Project_Input!Q3,FALSE) -> 1 | O5: =VLOOKUP(Index_1,Project_Table,Project_Input!R3,FALSE) -> 1 | P5: =VLOOKUP(Index_1,Project_Table,Project_Input!S3,FALSE) -> 12 | Q5: =VLOOKUP(Index_1,Project_Table,Project_Input!T3,FALSE) -> yes | R5: =VLOOKUP(Index_1,Project_Table,Project_Input!U3,FALSE) -> 200 | S5: =VLOOKUP(Index_1,Project_Table,Project_Input!V3,FALSE) -> 4 | T5: =VLOOKUP(Index_1,Project_Table,Project_Input!W3,FALSE) -> 0.01 | U5: =VLOOKUP(Index_1,Project_Table,Project_Input!Y3,FALSE) -> Yes | V5: =VLOOKUP(Index_1,Project_Table,Project_Input!Z3,FALSE) -> 8960 | W5: =VLOOKUP(Index_1,Project_Table,Project_Input!AA3,FALSE) -> 0 | X5: =VLOOKUP(Index_1,Project_Table,Project_Input!AB3,FALSE) -> 0 | Y5: =VLOOKUP(Index_1,Project_Table,Project_Input!AC3,FALSE) -> 8800000 | Z5: =VLOOKUP(Index_1,Project_Table,Project_Input!AD3,FALSE) -> 0.05 | AA5: =VLOOKUP(Index_1,Project_Table,Project_Input!AF3,FALSE) -> Yes | AB5: =VLOOKUP(Index_1,Project_Table,Project_Input!AG3,FALSE) -> 1e-06 | AC5: =VLOOKUP(Index_1,Project_Table,Project_Input!AH3,FALSE) -> 30000000 | AD5: =VLOOKUP(Index_1,Project_Table,Project_Input!AI3,FALSE) -> 1e-05 | AE5: =VLOOKUP(Index_1,Project_Table,Project_Input!AJ3,FALSE) -> 500000 | AF5: =VLOOKUP(Index_1,Project_Table,Project_Input!AL3,FALSE) -> No | AG5: =VLOOKUP(Index_1,Project_Table,Project_Input!AM3,FALSE) -> 0 | AH5: =VLOOKUP(Index_1,Project_Table,Project_Input!AN3,FALSE) -> 0 | AI5: =VLOOKUP(Index_1,Project_Table,Project_Input!AO3,FALSE) -> 0 | AJ5: =VLOOKUP(Index_1,Project_Table,Project_Input!AP3,FALSE) -> 0 | AK5: =VLOOKUP(Index_1,Project_Table,Project_Input!AQ3,FALSE) -> 0 | AL5: =VLOOKUP(Index_1,Project_Table,Project_Input!F3) -> EECL
B7: Year Index | E7: 0 | F7: 1 | G7: =F7+1 -> 2 | H7: =G7+1 -> 3 | I7: 4 | J7: 5 | K7: 6 | L7: 7 | M7: 8 | N7: 9 | O7: 10 | P7: 11 | Q7: 12 | R7: 13 | S7: 14 | T7: 15 | U7: 16 | V7: 17 | W7: 18 | X7: 19 | Y7: 20 | Z7: =Y7+1 -> 21 | AA7: =Z7+1 -> 22 | AB7: =AA7+1 -> 23 | AC7: =AB7+1 -> 24 | AD7: =AC7+1 -> 25 | AE7: =AD7+1 -> 26 | AF7: =AE7+1 -> 27 | AG7: =AF7+1 -> 28 | AH7: =AG7+1 -> 29 | AI7: =AH7+1 -> 30 | AJ7: =AI7+1 -> 31 | AK7: =AJ7+1 -> 32 | AL7: =AK7+1 -> 33 | AM7: =AL7+1 -> 34 | AN7: =AM7+1 -> 35 | AO7: =AN7+1 -> 36 | AP7: =AO7+1 -> 37 | AQ7: =AP7+1 -> 38 | AR7: =AQ7+1 -> 39 | AS7: =AR7+1 -> 40 | AT7: =AS7+1 -> 41 | AU7: =AT7+1 -> 42 | AV7: =AU7+1 -> 43 | AW7: =AV7+1 -> 44 | AX7: =AW7+1 -> 45 | AY7: =AX7+1 -> 46 | AZ7: =AY7+1 -> 47 | BA7: =AZ7+1 -> 48 | BB7: =BA7+1 -> 49 | BC7: =BB7+1 -> 50 | BD7: =BC7+1 -> 51 | BE7: =BD7+1 -> 52 | BF7: =BE7+1 -> 53 | BG7: =BF7+1 -> 54 | BH7: =BG7+1 -> 55 | BI7: =BH7+1 -> 56 | BJ7: =BI7+1 -> 57 | BK7: =BJ7+1 -> 58 | BL7: =BK7+1 -> 59 | BM7: =BL7+1 -> 60 | BN7: =BM7+1 -> 61 | BO7: =BN7+1 -> 62 | BP7: =BO7+1 -> 63 | BQ7: =BP7+1 -> 64 | BR7: =BQ7+1 -> 65 | BS7: =BR7+1 -> 66
B8: Financial Year | D8: Sum | E8: =Hidden!C3 -> 2023 | F8: =E8+1 -> 2024 | G8: =F8+1 -> 2025 | H8: 2026 | I8: 2027 | J8: 2028 | K8: 2029 | L8: 2030 | M8: 2031 | N8: 2032 | O8: 2033 | P8: 2034 | Q8: 2035 | R8: 2036 | S8: 2037 | T8: 2038 | U8: 2039 | V8: 2040 | W8: 2041 | X8: 2042 | Y8: 2043 | Z8: 2044 | AA8: 2045 | AB8: 2046 | AC8: 2047 | AD8: 2048 | AE8: 2049 | AF8: 2050 | AG8: 2051 | AH8: 2052 | AI8: 2053 | AJ8: 2054 | AK8: 2055 | AL8: 2056 | AM8: 2057 | AN8: 2058 | AO8: 2059 | AP8: 2060 | AQ8: 2061 | AR8: 2062 | AS8: 2063 | AT8: 2064 | AU8: 2065 | AV8: 2066 | AW8: 2067 | AX8: 2068 | AY8: 2069 | AZ8: 2070 | BA8: 2071 | BB8: 2072 | BC8: 2073 | BD8: 2074 | BE8: 2075 | BF8: 2076 | BG8: 2077 | BH8: 2078 | BI8: 2079 | BJ8: 2080 | BK8: 2081 | BL8: 2082 | BM8: 2083 | BN8: 2084 | BO8: 2085 | BP8: 2086 | BQ8: 2087 | BR8: 2088 | BS8: 2089
B9: Capex Start Flag | F9: =IF(F8=Hidden!$C$4,1,0) -> 0 | G9: =IF(G8=Hidden!$C$4,1,0) -> 0 | H9: =IF(H8=Hidden!$C$4,1,0) -> 1 | I9: =IF(I8=Hidden!$C$4,1,0) -> 0 | J9: =IF(J8=Hidden!$C$4,1,0) -> 0 | K9: =IF(K8=Hidden!$C$4,1,0) -> 0 | L9: =IF(L8=Hidden!$C$4,1,0) -> 0 | M9: =IF(M8=Hidden!$C$4,1,0) -> 0 | N9: =IF(N8=Hidden!$C$4,1,0) -> 0 | O9: =IF(O8=Hidden!$C$4,1,0) -> 0 | P9: =IF(P8=Hidden!$C$4,1,0) -> 0 | Q9: =IF(Q8=Hidden!$C$4,1,0) -> 0 | R9: =IF(R8=Hidden!$C$4,1,0) -> 0 | S9: =IF(S8=Hidden!$C$4,1,0) -> 0 | T9: =IF(T8=Hidden!$C$4,1,0) -> 0 | U9: =IF(U8=Hidden!$C$4,1,0) -> 0 | V9: =IF(V8=Hidden!$C$4,1,0) -> 0 | W9: =IF(W8=Hidden!$C$4,1,0) -> 0 | X9: =IF(X8=Hidden!$C$4,1,0) -> 0 | Y9: =IF(Y8=Hidden!$C$4,1,0) -> 0 | Z9: =IF(Z8=Hidden!$C$4,1,0) -> 0 | AA9: =IF(AA8=Hidden!$C$4,1,0) -> 0 | AB9: =IF(AB8=Hidden!$C$4,1,0) -> 0 | AC9: =IF(AC8=Hidden!$C$4,1,0) -> 0 | AD9: =IF(AD8=Hidden!$C$4,1,0) -> 0 | AE9: =IF(AE8=Hidden!$C$4,1,0) -> 0 | AF9: =IF(AF8=Hidden!$C$4,1,0) -> 0 | AG9: =IF(AG8=Hidden!$C$4,1,0) -> 0 | AH9: =IF(AH8=Hidden!$C$4,1,0) -> 0 | AI9: =IF(AI8=Hidden!$C$4,1,0) -> 0 | AJ9: =IF(AJ8=Hidden!$C$4,1,0) -> 0 | AK9: =IF(AK8=Hidden!$C$4,1,0) -> 0 | AL9: =IF(AL8=Hidden!$C$4,1,0) -> 0 | AM9: =IF(AM8=Hidden!$C$4,1,0) -> 0 | AN9: =IF(AN8=Hidden!$C$4,1,0) -> 0 | AO9: =IF(AO8=Hidden!$C$4,1,0) -> 0 | AP9: =IF(AP8=Hidden!$C$4,1,0) -> 0 | AQ9: =IF(AQ8=Hidden!$C$4,1,0) -> 0 | AR9: =IF(AR8=Hidden!$C$4,1,0) -> 0 | AS9: =IF(AS8=Hidden!$C$4,1,0) -> 0 | AT9: =IF(AT8=Hidden!$C$4,1,0) -> 0 | AU9: =IF(AU8=Hidden!$C$4,1,0) -> 0 | AV9: =IF(AV8=Hidden!$C$4,1,0) -> 0 | AW9: =IF(AW8=Hidden!$C$4,1,0) -> 0 | AX9: =IF(AX8=Hidden!$C$4,1,0) -> 0 | AY9: =IF(AY8=Hidden!$C$4,1,0) -> 0 | AZ9: =IF(AZ8=Hidden!$C$4,1,0) -> 0 | BA9: =IF(BA8=Hidden!$C$4,1,0) -> 0 | BB9: =IF(BB8=Hidden!$C$4,1,0) -> 0 | BC9: =IF(BC8=Hidden!$C$4,1,0) -> 0 | BD9: =IF(BD8=Hidden!$C$4,1,0) -> 0 | BE9: =IF(BE8=Hidden!$C$4,1,0) -> 0 | BF9: =IF(BF8=Hidden!$C$4,1,0) -> 0 | BG9: =IF(BG8=Hidden!$C$4,1,0) -> 0 | BH9: =IF(BH8=Hidden!$C$4,1,0) -> 0 | BI9: =IF(BI8=Hidden!$C$4,1,0) -> 0 | BJ9: =IF(BJ8=Hidden!$C$4,1,0) -> 0 | BK9: =IF(BK8=Hidden!$C$4,1,0) -> 0 | BL9: =IF(BL8=Hidden!$C$4,1,0) -> 0 | BM9: =IF(BM8=Hidden!$C$4,1,0) -> 0
B10: Capex | E10: =IFERROR(HLOOKUP(E8,Table_2,2,FALSE),0) -> 0 | F10: 0 | G10: 0 | H10: =IFERROR(HLOOKUP(H8,Table_2,2,FALSE),0) -> 701000 | I10: 879200 | J10: 880200 | K10: 881200 | L10: 1058400 | M10: 0 | N10: 0 | O10: 0 | P10: 0 | Q10: 0 | R10: 0 | S10: 0 | T10: 0 | U10: 0 | V10: 0 | W10: 0 | X10: 0 | Y10: 0 | Z10: 0 | AA10: 0 | AB10: 0 | AC10: 0 | AD10: 0 | AE10: 0 | AF10: 0 | AG10: 0 | AH10: 0 | AI10: 0 | AJ10: 0 | AK10: 0 | AL10: 0 | AM10: 0 | AN10: 0 | AO10: 0
B11: Capex (Accumulative) | F11: =F10+E11 -> 0 | G11: =G10+F11 -> 0 | H11: 701000 | I11: 1580200 | J11: 2460400 | K11: 3341600 | L11: 4400000 | M11: 4400000 | N11: 4400000 | O11: 4400000 | P11: 4400000 | Q11: 4400000 | R11: 4400000 | S11: 4400000 | T11: 4400000 | U11: 4400000 | V11: 4400000 | W11: 4400000 | X11: 4400000 | Y11: 4400000 | Z11: 4400000 | AA11: 4400000 | AB11: 4400000 | AC11: 4400000 | AD11: 4400000 | AE11: 4400000 | AF11: 4400000 | AG11: 4400000 | AH11: 4400000 | AI11: 4400000 | AJ11: 4400000 | AK11: 4400000 | AL11: 4400000 | AM11: 4400000 | AN11: 4400000 | AO11: 4400000 | AP11: =AP10+AO11 -> 4400000 | AQ11: =AQ10+AP11 -> 4400000 | AR11: =AR10+AQ11 -> 4400000 | AS11: =AS10+AR11 -> 4400000 | AT11: =AT10+AS11 -> 4400000 | AU11: =AU10+AT11 -> 4400000 | AV11: =AV10+AU11 -> 4400000 | AW11: =AW10+AV11 -> 4400000 | AX11: =AX10+AW11 -> 4400000 | AY11: =AY10+AX11 -> 4400000 | AZ11: =AZ10+AY11 -> 4400000 | BA11: =BA10+AZ11 -> 4400000 | BB11: =BB10+BA11 -> 4400000 | BC11: =BC10+BB11 -> 4400000 | BD11: =BD10+BC11 -> 4400000 | BE11: =BE10+BD11 -> 4400000 | BF11: =BF10+BE11 -> 4400000 | BG11: =BG10+BF11 -> 4400000 | BH11: =BH10+BG11 -> 4400000 | BI11: =BI10+BH11 -> 4400000 | BJ11: =BJ10+BI11 -> 4400000 | BK11: =BK10+BJ11 -> 4400000 | BL11: =BL10+BK11 -> 4400000 | BM11: =BM10+BL11 -> 4400000 | BN11: =BN10+BM11 -> 4400000 | BO11: =BO10+BN11 -> 4400000 | BP11: =BP10+BO11 -> 4400000 | BQ11: =BQ10+BP11 -> 4400000 | BR11: =BR10+BQ11 -> 4400000 | BS11: =BS10+BR11 -> 4400000
B12: Capex Finish (Accumulative) | F12: =IF(F11>=SUM($E$5:$I$5),1,0) -> 0 | G12: 0 | H12: 0 | I12: 0 | J12: 0 | K12: 0 | L12: 1 | M12: 1 | N12: 1 | O12: 1 | P12: 1 | Q12: 1 | R12: 1 | S12: 1 | T12: 1 | U12: 1 | V12: 1 | W12: 1 | X12: 1 | Y12: 1 | Z12: 1 | AA12: 1 | AB12: 1 | AC12: 1 | AD12: 1 | AE12: 1 | AF12: 1 | AG12: 1 | AH12: 1 | AI12: 1 | AJ12: 1 | AK12: 1 | AL12: =IF(AL11>=SUM($E$5:$I$5),1,0) -> 1 | AM12: 1 | AN12: 1 | AO12: 1 | AP12: 1 | AQ12: 1 | AR12: 1 | AS12: 1 | AT12: 1 | AU12: 1 | AV12: 1 | AW12: 1 | AX12: 1 | AY12: 1 | AZ12: 1 | BA12: 1 | BB12: 1 | BC12: 1 | BD12: 1 | BE12: 1 | BF12: 1 | BG12: 1 | BH12: 1 | BI12: 1 | BJ12: 1 | BK12: 1 | BL12: 1 | BM12: 1 | BN12: 1 | BO12: 1 | BP12: 1 | BQ12: 1 | BR12: =IF(BR11>=SUM($E$5:$I$5),1,0) -> 1 | BS12: 1
B13: Benefit Ramping Up | F13: 0 | G13: 0 | H13: =K5 -> 0.1593181818 | I13: =L5 -> 0.3591363636 | J13: 0.5594090909 | K13: 1 | L13: 1 | M13: 0 | N13: 0 | O13: 0 | P13: 0 | Q13: 0 | R13: 0 | S13: 0 | T13: 0 | U13: 0 | V13: 0 | W13: 0 | X13: 0 | Y13: 0 | Z13: 0 | AA13: 0 | AB13: 0 | AC13: 0 | AD13: 0 | AE13: 0 | AF13: 0 | AG13: 0 | AH13: 0 | AI13: 0 | AJ13: 0 | AK13: 0 | AL13: 0 | AM13: 0 | AN13: 0 | AO13: 0 | AP13: 0 | AQ13: 0 | AR13: 0 | AS13: 0 | AT13: 0 | AU13: 0 | AV13: 0 | AW13: 0 | AX13: 0 | AY13: 0 | AZ13: 0 | BA13: 0 | BB13: 0 | BC13: 0 | BD13: 0 | BE13: 0 | BF13: 0 | BG13: 0 | BH13: 0 | BI13: 0 | BJ13: 0 | BK13: 0 | BL13: 0 | BM13: 0 | BN13: 0 | BO13: 0 | BP13: 0 | BQ13: 0 | BR13: 0 | BS13: 0
B14: Benefit Start Flag | F14: 0 | G14: 0 | H14: 0 | I14: 0 | J14: 0 | K14: 0 | L14: 0 | M14: 1 | N14: 1 | O14: 1 | P14: 1 | Q14: 1 | R14: 1 | S14: 1 | T14: 1 | U14: 1 | V14: 1 | W14: 1 | X14: 1 | Y14: 1 | Z14: 1 | AA14: 1 | AB14: 1 | AC14: 1 | AD14: 1 | AE14: 1 | AF14: 1 | AG14: 1 | AH14: 1 | AI14: 1 | AJ14: 1 | AK14: 1 | AL14: 1 | AM14: 1 | AN14: 1 | AO14: 1 | AP14: 1 | AQ14: 1 | AR14: 1 | AS14: 1 | AT14: 1 | AU14: 1 | AV14: 1 | AW14: 1 | AX14: 1 | AY14: 1 | AZ14: 1 | BA14: 1 | BB14: 1 | BC14: 1 | BD14: 1 | BE14: 1 | BF14: 1 | BG14: 1 | BH14: 1 | BI14: 1 | BJ14: 1 | BK14: 1 | BL14: 1 | BM14: 1 | BN14: 1 | BO14: 1 | BP14: 1 | BQ14: 1 | BR14: 1 | BS14: 1
B15: Benefit Count | F15: =F14+E15 -> 0 | G15: =G14+F15 -> 0 | H15: 0 | I15: 0 | J15: 0 | K15: 0 | L15: 0 | M15: 1 | N15: 2 | O15: 3 | P15: 4 | Q15: 5 | R15: 6 | S15: 7 | T15: 8 | U15: 9 | V15: 10 | W15: 11 | X15: 12 | Y15: 13 | Z15: 14 | AA15: 15 | AB15: 16 | AC15: 17 | AD15: 18 | AE15: 19 | AF15: 20 | AG15: 21 | AH15: 22 | AI15: 23 | AJ15: 24 | AK15: 25 | AL15: 26 | AM15: 27 | AN15: 28 | AO15: 29 | AP15: =AP14+AO15 -> 30 | AQ15: =AQ14+AP15 -> 31 | AR15: =AR14+AQ15 -> 32 | AS15: =AS14+AR15 -> 33 | AT15: =AT14+AS15 -> 34 | AU15: =AU14+AT15 -> 35 | AV15: =AV14+AU15 -> 36 | AW15: =AW14+AV15 -> 37 | AX15: =AX14+AW15 -> 38 | AY15: =AY14+AX15 -> 39 | AZ15: =AZ14+AY15 -> 40 | BA15: =BA14+AZ15 -> 41 | BB15: =BB14+BA15 -> 42 | BC15: =BC14+BB15 -> 43 | BD15: =BD14+BC15 -> 44 | BE15: =BE14+BD15 -> 45 | BF15: =BF14+BE15 -> 46 | BG15: =BG14+BF15 -> 47 | BH15: =BH14+BG15 -> 48 | BI15: =BI14+BH15 -> 49 | BJ15: =BJ14+BI15 -> 50 | BK15: =BK14+BJ15 -> 51 | BL15: =BL14+BK15 -> 52 | BM15: =BM14+BL15 -> 53 | BN15: =BN14+BM15 -> 54 | BO15: =BO14+BN15 -> 55 | BP15: =BP14+BO15 -> 56 | BQ15: =BQ14+BP15 -> 57 | BR15: =BR14+BQ15 -> 58 | BS15: =BS14+BR15 -> 59
B16: Benefit Sensitivity | F16: =IF(F11=0,0,Hidden!$C$6) -> 0 | G16: =IF(G11=0,0,Hidden!$C$6) -> 0 | H16: =IF(H11=0,0,Hidden!$C$6) -> 1 | I16: =IF(I11=0,0,Hidden!$C$6) -> 1 | J16: =IF(J11=0,0,Hidden!$C$6) -> 1 | K16: =IF(K11=0,0,Hidden!$C$6) -> 1 | L16: =IF(L11=0,0,Hidden!$C$6) -> 1 | M16: =IF(M11=0,0,Hidden!$C$6) -> 1 | N16: =IF(N11=0,0,Hidden!$C$6) -> 1 | O16: =IF(O11=0,0,Hidden!$C$6) -> 1 | P16: =IF(P11=0,0,Hidden!$C$6) -> 1 | Q16: =IF(Q11=0,0,Hidden!$C$6) -> 1 | R16: =IF(R11=0,0,Hidden!$C$6) -> 1 | S16: =IF(S11=0,0,Hidden!$C$6) -> 1 | T16: =IF(T11=0,0,Hidden!$C$6) -> 1 | U16: =IF(U11=0,0,Hidden!$C$6) -> 1 | V16: =IF(V11=0,0,Hidden!$C$6) -> 1 | W16: =IF(W11=0,0,Hidden!$C$6) -> 1 | X16: =IF(X11=0,0,Hidden!$C$6) -> 1 | Y16: =IF(Y11=0,0,Hidden!$C$6) -> 1 | Z16: =IF(Z11=0,0,Hidden!$C$6) -> 1 | AA16: =IF(AA11=0,0,Hidden!$C$6) -> 1 | AB16: =IF(AB11=0,0,Hidden!$C$6) -> 1 | AC16: =IF(AC11=0,0,Hidden!$C$6) -> 1 | AD16: =IF(AD11=0,0,Hidden!$C$6) -> 1 | AE16: =IF(AE11=0,0,Hidden!$C$6) -> 1 | AF16: =IF(AF11=0,0,Hidden!$C$6) -> 1 | AG16: =IF(AG11=0,0,Hidden!$C$6) -> 1 | AH16: =IF(AH11=0,0,Hidden!$C$6) -> 1 | AI16: =IF(AI11=0,0,Hidden!$C$6) -> 1 | AJ16: =IF(AJ11=0,0,Hidden!$C$6) -> 1 | AK16: =IF(AK11=0,0,Hidden!$C$6) -> 1 | AL16: =IF(AL11=0,0,Hidden!$C$6) -> 1 | AM16: =IF(AM11=0,0,Hidden!$C$6) -> 1 | AN16: =IF(AN11=0,0,Hidden!$C$6) -> 1 | AO16: =IF(AO11=0,0,Hidden!$C$6) -> 1 | AP16: =IF(AP11=0,0,Hidden!$C$6) -> 1 | AQ16: =IF(AQ11=0,0,Hidden!$C$6) -> 1 | AR16: =IF(AR11=0,0,Hidden!$C$6) -> 1 | AS16: =IF(AS11=0,0,Hidden!$C$6) -> 1 | AT16: =IF(AT11=0,0,Hidden!$C$6) -> 1 | AU16: =IF(AU11=0,0,Hidden!$C$6) -> 1 | AV16: =IF(AV11=0,0,Hidden!$C$6) -> 1 | AW16: =IF(AW11=0,0,Hidden!$C$6) -> 1 | AX16: =IF(AX11=0,0,Hidden!$C$6) -> 1 | AY16: =IF(AY11=0,0,Hidden!$C$6) -> 1 | AZ16: =IF(AZ11=0,0,Hidden!$C$6) -> 1 | BA16: =IF(BA11=0,0,Hidden!$C$6) -> 1 | BB16: =IF(BB11=0,0,Hidden!$C$6) -> 1 | BC16: =IF(BC11=0,0,Hidden!$C$6) -> 1 | BD16: =IF(BD11=0,0,Hidden!$C$6) -> 1 | BE16: =IF(BE11=0,0,Hidden!$C$6) -> 1 | BF16: =IF(BF11=0,0,Hidden!$C$6) -> 1 | BG16: =IF(BG11=0,0,Hidden!$C$6) -> 1 | BH16: =IF(BH11=0,0,Hidden!$C$6) -> 1 | BI16: =IF(BI11=0,0,Hidden!$C$6) -> 1 | BJ16: =IF(BJ11=0,0,Hidden!$C$6) -> 1 | BK16: =IF(BK11=0,0,Hidden!$C$6) -> 1 | BL16: =IF(BL11=0,0,Hidden!$C$6) -> 1 | BM16: =IF(BM11=0,0,Hidden!$C$6) -> 1 | BN16: =IF(BN11=0,0,Hidden!$C$6) -> 1 | BO16: =IF(BO11=0,0,Hidden!$C$6) -> 1 | BP16: =IF(BP11=0,0,Hidden!$C$6) -> 1 | BQ16: =IF(BQ11=0,0,Hidden!$C$6) -> 1 | BR16: =IF(BR11=0,0,Hidden!$C$6) -> 1 | BS16: =IF(BS11=0,0,Hidden!$C$6) -> 1
B17: Benefit % to Be Applied | D17: =SUM(F17:BS17) -> 15.07786364 | F17: =IF(F8<=2030,F13,IF(OR(F15=0,F15>$P$5),0,1))*F16 -> 0 | G17: =IF(G8<=2030,G13,IF(OR(G15=0,G15>$P$5),0,1))*G16 -> 0 | H17: 0.1593181818 | I17: 0.3591363636 | J17: 0.5594090909 | K17: 1 | L17: 1 | M17: 1 | N17: 1 | O17: 1 | P17: 1 | Q17: 1 | R17: 1 | S17: 1 | T17: 1 | U17: 1 | V17: 1 | W17: 1 | X17: 1 | Y17: 0 | Z17: 0 | AA17: 0 | AB17: 0 | AC17: 0 | AD17: 0 | AE17: 0 | AF17: 0 | AG17: 0 | AH17: 0 | AI17: 0 | AJ17: 0 | AK17: 0 | AL17: 0 | AM17: 0 | AN17: 0 | AO17: 0 | AP17: 0 | AQ17: 0 | AR17: 0 | AS17: 0 | AT17: 0 | AU17: 0 | AV17: 0 | AW17: 0 | AX17: 0 | AY17: 0 | AZ17: 0 | BA17: 0 | BB17: 0 | BC17: 0 | BD17: 0 | BE17: 0 | BF17: 0 | BG17: 0 | BH17: 0 | BI17: 0 | BJ17: 0 | BK17: 0 | BL17: 0 | BM17: 0 | BN17: 0 | BO17: 0 | BP17: 0 | BQ17: 0 | BR17: 0 | BS17: =IF(BS8<=2030,BS13,IF(OR(BS15=0,BS15>$P$5),0,1))*BS16 -> 0
B18: VCR Saving
B19: Lost Energy | C19: KWh | F19: =$R$5*$S$5*F17 -> 0 | G19: 0 | H19: =$R$5*$S$5*H17 -> 127.4545455 | I19: 287.3090909 | J19: 447.5272727 | K19: 800 | L19: 800 | M19: 800 | N19: 800 | O19: 800 | P19: 800 | Q19: 800 | R19: 800 | S19: 800 | T19: 800 | U19: 800 | V19: 800 | W19: 800 | X19: 800 | Y19: 0 | Z19: 0 | AA19: 0 | AB19: 0 | AC19: 0 | AD19: 0 | AE19: 0 | AF19: 0 | AG19: 0 | AH19: 0 | AI19: 0 | AJ19: 0 | AK19: 0 | AL19: =$R$5*$S$5*AL17 -> 0 | AM19: 0 | AN19: 0 | AO19: 0 | AP19: 0 | AQ19: 0 | AR19: 0 | AS19: 0 | AT19: 0 | AU19: 0 | AV19: 0 | AW19: 0 | AX19: 0 | AY19: 0 | AZ19: 0 | BA19: 0 | BB19: 0 | BC19: 0 | BD19: 0 | BE19: 0 | BF19: 0 | BG19: 0 | BH19: 0 | BI19: 0 | BJ19: 0 | BK19: 0 | BL19: 0 | BM19: 0 | BN19: 0 | BO19: 0 | BP19: 0 | BQ19: 0 | BR19: 0 | BS19: 0
B20: Frequency of Event | C20: % | F20: =$T$5*F17 -> 0 | G20: 0 | H20: =$T$5*H17 -> 0.001593181818 | I20: 0.003591363636 | J20: 0.005594090909 | K20: 0.01 | L20: 0.01 | M20: 0.01 | N20: 0.01 | O20: 0.01 | P20: 0.01 | Q20: 0.01 | R20: 0.01 | S20: 0.01 | T20: 0.01 | U20: 0.01 | V20: 0.01 | W20: 0.01 | X20: 0.01 | Y20: 0 | Z20: 0 | AA20: 0 | AB20: 0 | AC20: 0 | AD20: 0 | AE20: 0 | AF20: 0 | AG20: 0 | AH20: 0 | AI20: 0 | AJ20: 0 | AK20: 0 | AL20: =$T$5*AL17 -> 0 | AM20: 0 | AN20: 0 | AO20: 0 | AP20: 0 | AQ20: 0 | AR20: 0 | AS20: 0 | AT20: 0 | AU20: 0 | AV20: 0 | AW20: 0 | AX20: 0 | AY20: 0 | AZ20: 0 | BA20: 0 | BB20: 0 | BC20: 0 | BD20: 0 | BE20: 0 | BF20: 0 | BG20: 0 | BH20: 0 | BI20: 0 | BJ20: 0 | BK20: 0 | BL20: 0 | BM20: 0 | BN20: 0 | BO20: 0 | BP20: 0 | BQ20: 0 | BR20: 0 | BS20: 0
B21: VCR | C21: $/KWh | F21: =Hidden!$C$7*F$17 -> 0 | G21: =Hidden!$C$7*G$17 -> 0 | H21: =Hidden!$C$7*H$17 -> 8.270206818 | I21: =Hidden!$C$7*I$17 -> 18.64276864 | J21: =Hidden!$C$7*J$17 -> 29.03892591 | K21: =Hidden!$C$7*K$17 -> 51.91 | L21: =Hidden!$C$7*L$17 -> 51.91 | M21: =Hidden!$C$7*M$17 -> 51.91 | N21: =Hidden!$C$7*N$17 -> 51.91 | O21: =Hidden!$C$7*O$17 -> 51.91 | P21: =Hidden!$C$7*P$17 -> 51.91 | Q21: =Hidden!$C$7*Q$17 -> 51.91 | R21: =Hidden!$C$7*R$17 -> 51.91 | S21: =Hidden!$C$7*S$17 -> 51.91 | T21: =Hidden!$C$7*T$17 -> 51.91 | U21: =Hidden!$C$7*U$17 -> 51.91 | V21: =Hidden!$C$7*V$17 -> 51.91 | W21: =Hidden!$C$7*W$17 -> 51.91 | X21: =Hidden!$C$7*X$17 -> 51.91 | Y21: =Hidden!$C$7*Y$17 -> 0 | Z21: =Hidden!$C$7*Z$17 -> 0 | AA21: =Hidden!$C$7*AA$17 -> 0 | AB21: =Hidden!$C$7*AB$17 -> 0 | AC21: =Hidden!$C$7*AC$17 -> 0 | AD21: =Hidden!$C$7*AD$17 -> 0 | AE21: =Hidden!$C$7*AE$17 -> 0 | AF21: =Hidden!$C$7*AF$17 -> 0 | AG21: =Hidden!$C$7*AG$17 -> 0 | AH21: =Hidden!$C$7*AH$17 -> 0 | AI21: =Hidden!$C$7*AI$17 -> 0 | AJ21: =Hidden!$C$7*AJ$17 -> 0 | AK21: =Hidden!$C$7*AK$17 -> 0 | AL21: =Hidden!$C$7*AL$17 -> 0 | AM21: =Hidden!$C$7*AM$17 -> 0 | AN21: =Hidden!$C$7*AN$17 -> 0 | AO21: =Hidden!$C$7*AO$17 -> 0 | AP21: =Hidden!$C$7*AP$17 -> 0 | AQ21: =Hidden!$C$7*AQ$17 -> 0 | AR21: =Hidden!$C$7*AR$17 -> 0 | AS21: =Hidden!$C$7*AS$17 -> 0 | AT21: =Hidden!$C$7*AT$17 -> 0 | AU21: =Hidden!$C$7*AU$17 -> 0 | AV21: =Hidden!$C$7*AV$17 -> 0 | AW21: =Hidden!$C$7*AW$17 -> 0 | AX21: =Hidden!$C$7*AX$17 -> 0 | AY21: =Hidden!$C$7*AY$17 -> 0 | AZ21: =Hidden!$C$7*AZ$17 -> 0 | BA21: =Hidden!$C$7*BA$17 -> 0 | BB21: =Hidden!$C$7*BB$17 -> 0 | BC21: =Hidden!$C$7*BC$17 -> 0 | BD21: =Hidden!$C$7*BD$17 -> 0 | BE21: =Hidden!$C$7*BE$17 -> 0 | BF21: =Hidden!$C$7*BF$17 -> 0 | BG21: =Hidden!$C$7*BG$17 -> 0 | BH21: =Hidden!$C$7*BH$17 -> 0 | BI21: =Hidden!$C$7*BI$17 -> 0 | BJ21: =Hidden!$C$7*BJ$17 -> 0 | BK21: =Hidden!$C$7*BK$17 -> 0 | BL21: =Hidden!$C$7*BL$17 -> 0 | BM21: =Hidden!$C$7*BM$17 -> 0 | BN21: =Hidden!$C$7*BN$17 -> 0 | BO21: =Hidden!$C$7*BO$17 -> 0 | BP21: =Hidden!$C$7*BP$17 -> 0 | BQ21: =Hidden!$C$7*BQ$17 -> 0 | BR21: =Hidden!$C$7*BR$17 -> 0 | BS21: =Hidden!$C$7*BS$17 -> 0
B22: Financial Saving
B23: Labour Saving | C23: $ | D23: =SUM(F23:BM23) -> 135097.6582 | F23: =$V$5*F$17 -> 0 | G23: 0 | H23: 1427.490909 | I23: 3217.861818 | J23: 5012.305455 | K23: 8960 | L23: 8960 | M23: 8960 | N23: 8960 | O23: 8960 | P23: 8960 | Q23: 8960 | R23: 8960 | S23: 8960 | T23: 8960 | U23: 8960 | V23: 8960 | W23: 8960 | X23: 8960 | Y23: 0 | Z23: 0 | AA23: 0 | AB23: 0 | AC23: 0 | AD23: 0 | AE23: 0 | AF23: 0 | AG23: 0 | AH23: 0 | AI23: 0 | AJ23: 0 | AK23: 0 | AL23: =$V$5*AL$17 -> 0 | AM23: 0 | AN23: 0 | AO23: 0 | AP23: 0 | AQ23: 0 | AR23: 0 | AS23: 0 | AT23: 0 | AU23: 0 | AV23: 0 | AW23: 0 | AX23: 0 | AY23: 0 | AZ23: 0 | BA23: 0 | BB23: 0 | BC23: 0 | BD23: 0 | BE23: 0 | BF23: 0 | BG23: 0 | BH23: 0 | BI23: 0 | BJ23: 0 | BK23: 0 | BL23: 0 | BM23: 0 | BN23: 0 | BO23: 0 | BP23: 0 | BQ23: 0 | BR23: 0 | BS23: 0
B24: Material Saving | C24: $ | D24: =SUM(F24:BM24) -> 0 | F24: =$W$5*F$17 -> 0 | G24: 0 | H24: 0 | I24: 0 | J24: 0 | K24: 0 | L24: 0 | M24: 0 | N24: 0 | O24: 0 | P24: 0 | Q24: 0 | R24: 0 | S24: 0 | T24: 0 | U24: 0 | V24: 0 | W24: 0 | X24: 0 | Y24: 0 | Z24: 0 | AA24: 0 | AB24: 0 | AC24: 0 | AD24: 0 | AE24: 0 | AF24: 0 | AG24: 0 | AH24: 0 | AI24: 0 | AJ24: 0 | AK24: 0 | AL24: =$W$5*AL$17 -> 0 | AM24: 0 | AN24: 0 | AO24: 0 | AP24: 0 | AQ24: 0 | AR24: 0 | AS24: 0 | AT24: 0 | AU24: 0 | AV24: 0 | AW24: 0 | AX24: 0 | AY24: 0 | AZ24: 0 | BA24: 0 | BB24: 0 | BC24: 0 | BD24: 0 | BE24: 0 | BF24: 0 | BG24: 0 | BH24: 0 | BI24: 0 | BJ24: 0 | BK24: 0 | BL24: 0 | BM24: 0 | BN24: 0 | BO24: 0 | BP24: 0 | BQ24: 0 | BR24: 0 | BS24: 0
B25: Other Saving | C25: $ | D25: =SUM(F25:BM25) -> 0 | F25: =$X5*F$17 -> 0 | G25: 0 | H25: 0 | I25: 0 | J25: 0 | K25: 0 | L25: 0 | M25: 0 | N25: 0 | O25: 0 | P25: 0 | Q25: 0 | R25: 0 | S25: 0 | T25: 0 | U25: 0 | V25: 0 | W25: 0 | X25: 0 | Y25: 0 | Z25: 0 | AA25: 0 | AB25: 0 | AC25: 0 | AD25: 0 | AE25: 0 | AF25: 0 | AG25: 0 | AH25: 0 | AI25: 0 | AJ25: 0 | AK25: 0 | AL25: =$X5*AL$17 -> 0 | AM25: 0 | AN25: 0 | AO25: 0 | AP25: 0 | AQ25: 0 | AR25: 0 | AS25: 0 | AT25: 0 | AU25: 0 | AV25: 0 | AW25: 0 | AX25: 0 | AY25: 0 | AZ25: 0 | BA25: 0 | BB25: 0 | BC25: 0 | BD25: 0 | BE25: 0 | BF25: 0 | BG25: 0 | BH25: 0 | BI25: 0 | BJ25: 0 | BK25: 0 | BL25: 0 | BM25: 0 | BN25: 0 | BO25: 0 | BP25: 0 | BQ25: 0 | BR25: 0 | BS25: 0
B26: Replacement Cost Saving | C26: $ | D26: 6634260 | F26: =$Y5*$Z$5*F$17 -> 0 | G26: 0 | H26: =$Y5*$Z$5*H$17 -> 70100 | I26: =$Y5*$Z$5*I$17 -> 158020 | J26: 246140 | K26: 440000 | L26: 440000 | M26: =$Y5*$Z$5*M$17 -> 440000 | N26: 440000 | O26: 440000 | P26: 440000 | Q26: 440000 | R26: 440000 | S26: 440000 | T26: 440000 | U26: 440000 | V26: 440000 | W26: 440000 | X26: 440000 | Y26: 0 | Z26: 0 | AA26: 0 | AB26: 0 | AC26: 0 | AD26: 0 | AE26: 0 | AF26: 0 | AG26: 0 | AH26: 0 | AI26: 0 | AJ26: 0 | AK26: 0 | AL26: =$Y5*$Z$5*AL$17 -> 0 | AM26: 0 | AN26: 0 | AO26: 0 | AP26: 0 | AQ26: 0 | AR26: 0 | AS26: 0 | AT26: 0 | AU26: 0 | AV26: 0 | AW26: 0 | AX26: 0 | AY26: 0 | AZ26: 0 | BA26: 0 | BB26: 0 | BC26: 0 | BD26: 0 | BE26: 0 | BF26: 0 | BG26: 0 | BH26: 0 | BI26: 0 | BJ26: 0 | BK26: 0 | BL26: 0 | BM26: 0 | BN26: 0 | BO26: 0 | BP26: 0 | BQ26: 0 | BR26: 0 | BS26: 0
B27: Safety Saving
B28: =B27 -> Safety Saving | C28: $ | F28: =F$17*($AC$5*$AB$5+$AE$5*$AD$5) -> 0 | G28: 0 | H28: 5.576136364 | I28: 12.56977273 | J28: 19.57931818 | K28: 35 | L28: 35 | M28: 35 | N28: 35 | O28: 35 | P28: 35 | Q28: 35 | R28: 35 | S28: 35 | T28: 35 | U28: 35 | V28: 35 | W28: 35 | X28: 35 | Y28: 0 | Z28: 0 | AA28: 0 | AB28: 0 | AC28: 0 | AD28: 0 | AE28: 0 | AF28: 0 | AG28: 0 | AH28: 0 | AI28: 0 | AJ28: 0 | AK28: 0 | AL28: =AL$17*($AC$5*$AB$5+$AE$5*$AD$5) -> 0 | AM28: 0 | AN28: 0 | AO28: 0 | AP28: 0 | AQ28: 0 | AR28: 0 | AS28: 0 | AT28: 0 | AU28: 0 | AV28: 0 | AW28: 0 | AX28: 0 | AY28: 0 | AZ28: 0 | BA28: 0 | BB28: 0 | BC28: 0 | BD28: 0 | BE28: 0 | BF28: 0 | BG28: 0 | BH28: 0 | BI28: 0 | BJ28: 0 | BK28: 0 | BL28: 0 | BM28: 0 | BN28: 0 | BO28: 0 | BP28: 0 | BQ28: 0 | BR28: 0 | BS28: 0
B29: Environmental Saving
B30: Carbon Price | C30: $/Ton | F30: =Carbon_Price*F$17 -> 0 | G30: 0 | H30: 4.779545455 | I30: 10.77409091 | J30: 16.78227273 | K30: 30 | L30: 30 | M30: 30 | N30: 30 | O30: 30 | P30: 30 | Q30: 30 | R30: 30 | S30: 30 | T30: 30 | U30: 30 | V30: 30 | W30: 30 | X30: 30 | Y30: 0 | Z30: 0 | AA30: 0 | AB30: 0 | AC30: 0 | AD30: 0 | AE30: 0 | AF30: 0 | AG30: 0 | AH30: 0 | AI30: 0 | AJ30: 0 | AK30: 0 | AL30: =Carbon_Price*AL$17 -> 0 | AM30: 0 | AN30: 0 | AO30: 0 | AP30: 0 | AQ30: 0 | AR30: 0 | AS30: 0 | AT30: 0 | AU30: 0 | AV30: 0 | AW30: 0 | AX30: 0 | AY30: 0 | AZ30: 0 | BA30: 0 | BB30: 0 | BC30: 0 | BD30: 0 | BE30: 0 | BF30: 0 | BG30: 0 | BH30: 0 | BI30: 0 | BJ30: 0 | BK30: 0 | BL30: 0 | BM30: 0 | BN30: 0 | BO30: 0 | BP30: 0 | BQ30: 0 | BR30: 0 | BS30: 0
B31: Carbon | C31: Ton | F31: =$AK$5*Hidden!$C$8*F$17 -> 0 | G31: =$AK$5*Hidden!$C$8*G$17 -> 0 | H31: =$AK$5*Hidden!$C$8*H$17 -> 0 | I31: =$AK$5*Hidden!$C$8*I$17 -> 0 | J31: =$AK$5*Hidden!$C$8*J$17 -> 0 | K31: =$AK$5*Hidden!$C$8*K$17 -> 0 | L31: =$AK$5*Hidden!$C$8*L$17 -> 0 | M31: =$AK$5*Hidden!$C$8*M$17 -> 0 | N31: =$AK$5*Hidden!$C$8*N$17 -> 0 | O31: =$AK$5*Hidden!$C$8*O$17 -> 0 | P31: =$AK$5*Hidden!$C$8*P$17 -> 0 | Q31: =$AK$5*Hidden!$C$8*Q$17 -> 0 | R31: =$AK$5*Hidden!$C$8*R$17 -> 0 | S31: =$AK$5*Hidden!$C$8*S$17 -> 0 | T31: =$AK$5*Hidden!$C$8*T$17 -> 0 | U31: =$AK$5*Hidden!$C$8*U$17 -> 0 | V31: =$AK$5*Hidden!$C$8*V$17 -> 0 | W31: =$AK$5*Hidden!$C$8*W$17 -> 0 | X31: =$AK$5*Hidden!$C$8*X$17 -> 0 | Y31: =$AK$5*Hidden!$C$8*Y$17 -> 0 | Z31: =$AK$5*Hidden!$C$8*Z$17 -> 0 | AA31: =$AK$5*Hidden!$C$8*AA$17 -> 0 | AB31: =$AK$5*Hidden!$C$8*AB$17 -> 0 | AC31: =$AK$5*Hidden!$C$8*AC$17 -> 0 | AD31: =$AK$5*Hidden!$C$8*AD$17 -> 0 | AE31: =$AK$5*Hidden!$C$8*AE$17 -> 0 | AF31: =$AK$5*Hidden!$C$8*AF$17 -> 0 | AG31: =$AK$5*Hidden!$C$8*AG$17 -> 0 | AH31: =$AK$5*Hidden!$C$8*AH$17 -> 0 | AI31: =$AK$5*Hidden!$C$8*AI$17 -> 0 | AJ31: =$AK$5*Hidden!$C$8*AJ$17 -> 0 | AK31: =$AK$5*Hidden!$C$8*AK$17 -> 0 | AL31: =$AK$5*Hidden!$C$8*AL$17 -> 0 | AM31: =$AK$5*Hidden!$C$8*AM$17 -> 0 | AN31: =$AK$5*Hidden!$C$8*AN$17 -> 0 | AO31: =$AK$5*Hidden!$C$8*AO$17 -> 0 | AP31: =$AK$5*Hidden!$C$8*AP$17 -> 0 | AQ31: =$AK$5*Hidden!$C$8*AQ$17 -> 0 | AR31: =$AK$5*Hidden!$C$8*AR$17 -> 0 | AS31: =$AK$5*Hidden!$C$8*AS$17 -> 0 | AT31: =$AK$5*Hidden!$C$8*AT$17 -> 0 | AU31: =$AK$5*Hidden!$C$8*AU$17 -> 0 | AV31: =$AK$5*Hidden!$C$8*AV$17 -> 0 | AW31: =$AK$5*Hidden!$C$8*AW$17 -> 0 | AX31: =$AK$5*Hidden!$C$8*AX$17 -> 0 | AY31: =$AK$5*Hidden!$C$8*AY$17 -> 0 | AZ31: =$AK$5*Hidden!$C$8*AZ$17 -> 0 | BA31: =$AK$5*Hidden!$C$8*BA$17 -> 0 | BB31: =$AK$5*Hidden!$C$8*BB$17 -> 0 | BC31: =$AK$5*Hidden!$C$8*BC$17 -> 0 | BD31: =$AK$5*Hidden!$C$8*BD$17 -> 0 | BE31: =$AK$5*Hidden!$C$8*BE$17 -> 0 | BF31: =$AK$5*Hidden!$C$8*BF$17 -> 0 | BG31: =$AK$5*Hidden!$C$8*BG$17 -> 0 | BH31: =$AK$5*Hidden!$C$8*BH$17 -> 0 | BI31: =$AK$5*Hidden!$C$8*BI$17 -> 0 | BJ31: =$AK$5*Hidden!$C$8*BJ$17 -> 0 | BK31: =$AK$5*Hidden!$C$8*BK$17 -> 0 | BL31: =$AK$5*Hidden!$C$8*BL$17 -> 0 | BM31: =$AK$5*Hidden!$C$8*BM$17 -> 0 | BN31: =$AK$5*Hidden!$C$8*BN$17 -> 0 | BO31: =$AK$5*Hidden!$C$8*BO$17 -> 0 | BP31: =$AK$5*Hidden!$C$8*BP$17 -> 0 | BQ31: =$AK$5*Hidden!$C$8*BQ$17 -> 0 | BR31: =$AK$5*Hidden!$C$8*BR$17 -> 0 | BS31: =$AK$5*Hidden!$C$8*BS$17 -> 0
B32: Carbon Reduction Saving | C32: $ | F32: =F31*F30 -> 0 | G32: =G31*G30 -> 0 | H32: 0 | I32: 0 | J32: 0 | K32: 0 | L32: 0 | M32: 0 | N32: 0 | O32: 0 | P32: 0 | Q32: 0 | R32: 0 | S32: 0 | T32: 0 | U32: 0 | V32: 0 | W32: 0 | X32: 0 | Y32: 0 | Z32: 0 | AA32: 0 | AB32: 0 | AC32: 0 | AD32: 0 | AE32: 0 | AF32: 0 | AG32: 0 | AH32: 0 | AI32: 0 | AJ32: 0 | AK32: 0 | AL32: 0 | AM32: 0 | AN32: 0 | AO32: 0 | AP32: 0 | AQ32: 0 | AR32: 0 | AS32: 0 | AT32: 0 | AU32: 0 | AV32: 0 | AW32: 0 | AX32: 0 | AY32: 0 | AZ32: 0 | BA32: 0 | BB32: 0 | BC32: 0 | BD32: 0 | BE32: 0 | BF32: 0 | BG32: 0 | BH32: 0 | BI32: 0 | BJ32: 0 | BK32: 0 | BL32: 0 | BM32: 0 | BN32: 0 | BO32: 0 | BP32: 0 | BQ32: 0 | BR32: 0 | BS32: =BS31*BS30 -> 0
B33: Event A | D33: =SUM(F33:BM33) -> 0 | F33: =$AH$5*$AG$5*F$17 -> 0 | G33: 0 | H33: =$AH$5*$AG$5*H$17 -> 0 | I33: 0 | J33: 0 | K33: 0 | L33: 0 | M33: =$AH$5*$AG$5*M$17 -> 0 | N33: 0 | O33: 0 | P33: 0 | Q33: 0 | R33: 0 | S33: 0 | T33: 0 | U33: 0 | V33: 0 | W33: 0 | X33: 0 | Y33: 0 | Z33: 0 | AA33: 0 | AB33: 0 | AC33: 0 | AD33: 0 | AE33: 0 | AF33: 0 | AG33: 0 | AH33: 0 | AI33: 0 | AJ33: 0 | AK33: 0 | AL33: =$AH$5*$AG$5*AL$17 -> 0 | AM33: 0 | AN33: 0 | AO33: 0 | AP33: 0 | AQ33: 0 | AR33: 0 | AS33: 0 | AT33: 0 | AU33: 0 | AV33: 0 | AW33: 0 | AX33: 0 | AY33: 0 | AZ33: 0 | BA33: 0 | BB33: 0 | BC33: 0 | BD33: 0 | BE33: 0 | BF33: 0 | BG33: 0 | BH33: 0 | BI33: 0 | BJ33: 0 | BK33: 0 | BL33: 0 | BM33: 0 | BN33: 0 | BO33: 0 | BP33: 0 | BQ33: 0 | BR33: 0 | BS33: 0
B34: Event B | D34: 0 | F34: =$AJ$5*$AI$5*F$17 -> 0 | G34: 0 | H34: 0 | I34: 0 | J34: 0 | K34: 0 | L34: 0 | M34: 0 | N34: 0 | O34: 0 | P34: 0 | Q34: 0 | R34: 0 | S34: 0 | T34: 0 | U34: 0 | V34: 0 | W34: 0 | X34: 0 | Y34: 0 | Z34: 0 | AA34: 0 | AB34: 0 | AC34: 0 | AD34: 0 | AE34: 0 | AF34: 0 | AG34: 0 | AH34: 0 | AI34: 0 | AJ34: 0 | AK34: 0 | AL34: =$AJ$5*$AI$5*AL$17 -> 0 | AM34: 0 | AN34: 0 | AO34: 0 | AP34: 0 | AQ34: 0 | AR34: 0 | AS34: 0 | AT34: 0 | AU34: 0 | AV34: 0 | AW34: 0 | AX34: 0 | AY34: 0 | AZ34: 0 | BA34: 0 | BB34: 0 | BC34: 0 | BD34: 0 | BE34: 0 | BF34: 0 | BG34: 0 | BH34: 0 | BI34: 0 | BJ34: 0 | BK34: 0 | BL34: 0 | BM34: 0 | BN34: 0 | BO34: 0 | BP34: 0 | BQ34: 0 | BR34: 0 | BS34: 0
B36: Cashflow Outflow
B37: Capex | D37: =SUM(F37:BM37) -> -4400000 | F37: =IFERROR(-HLOOKUP(F8,Table_2,2,FALSE),0) -> 0 | G37: 0 | H37: -701000 | I37: -879200 | J37: -880200 | K37: -881200 | L37: -1058400 | M37: 0 | N37: 0 | O37: 0 | P37: 0 | Q37: 0 | R37: 0 | S37: 0 | T37: 0 | U37: 0 | V37: 0 | W37: 0 | X37: 0 | Y37: 0 | Z37: 0 | AA37: 0 | AB37: 0 | AC37: 0 | AD37: 0 | AE37: 0 | AF37: 0 | AG37: 0 | AH37: 0 | AI37: 0 | AJ37: 0 | AK37: 0 | AL37: =IFERROR(-HLOOKUP(AL8,Table_2,2,FALSE),0) -> 0 | AM37: 0 | AN37: 0 | AO37: 0 | AP37: 0 | AQ37: 0 | AR37: 0 | AS37: 0 | AT37: 0 | AU37: 0 | AV37: 0 | AW37: 0 | AX37: 0 | AY37: 0 | AZ37: 0 | BA37: 0 | BB37: 0 | BC37: 0 | BD37: 0 | BE37: 0 | BF37: 0 | BG37: 0 | BH37: 0 | BI37: 0 | BJ37: 0 | BK37: 0 | BL37: 0 | BM37: 0 | BN37: 0 | BO37: 0 | BP37: 0 | BQ37: 0 | BR37: 0 | BS37: 0
B38: O&M | D38: =SUM(F38:BM38) -> 0 | F38: =-SUM($E$5:$I$5)*$J$5*F$17 -> 0 | G38: =-SUM($E$5:$I$5)*$J$5*G$17 -> 0 | H38: 0 | I38: 0 | J38: 0 | K38: 0 | L38: 0 | M38: 0 | N38: 0 | O38: 0 | P38: 0 | Q38: 0 | R38: 0 | S38: 0 | T38: 0 | U38: 0 | V38: 0 | W38: 0 | X38: 0 | Y38: 0 | Z38: 0 | AA38: 0 | AB38: 0 | AC38: 0 | AD38: 0 | AE38: 0 | AF38: 0 | AG38: 0 | AH38: 0 | AI38: 0 | AJ38: 0 | AK38: 0 | AL38: 0 | AM38: 0 | AN38: 0 | AO38: 0 | AP38: 0 | AQ38: 0 | AR38: 0 | AS38: 0 | AT38: 0 | AU38: 0 | AV38: 0 | AW38: 0 | AX38: 0 | AY38: 0 | AZ38: 0 | BA38: 0 | BB38: 0 | BC38: 0 | BD38: 0 | BE38: 0 | BF38: 0 | BG38: 0 | BH38: 0 | BI38: 0 | BJ38: 0 | BK38: 0 | BL38: 0 | BM38: 0 | BN38: 0 | BO38: 0 | BP38: 0 | BQ38: 0 | BR38: 0 | BS38: =-SUM($E$5:$I$5)*$J$5*BS$17 -> 0
B39: Total Cashflow Outflow | D39: -4400000 | F39: =SUM(F37:F38) -> 0 | G39: =SUM(G37:G38) -> 0 | H39: -701000 | I39: -879200 | J39: -880200 | K39: -881200 | L39: -1058400 | M39: 0 | N39: 0 | O39: 0 | P39: 0 | Q39: 0 | R39: 0 | S39: 0 | T39: 0 | U39: 0 | V39: 0 | W39: 0 | X39: 0 | Y39: 0 | Z39: 0 | AA39: 0 | AB39: 0 | AC39: 0 | AD39: 0 | AE39: 0 | AF39: 0 | AG39: 0 | AH39: 0 | AI39: 0 | AJ39: 0 | AK39: 0 | AL39: =SUM(AL37:AL38) -> 0 | AM39: 0 | AN39: 0 | AO39: 0 | AP39: 0 | AQ39: 0 | AR39: 0 | AS39: 0 | AT39: 0 | AU39: 0 | AV39: 0 | AW39: 0 | AX39: 0 | AY39: 0 | AZ39: 0 | BA39: 0 | BB39: 0 | BC39: 0 | BD39: 0 | BE39: 0 | BF39: 0 | BG39: 0 | BH39: 0 | BI39: 0 | BJ39: 0 | BK39: 0 | BL39: 0 | BM39: 0
B41: Cashflow Inflow (Benefit) | D41: Sum
B42: VCR Saving | D42: =SUM(F42:BM42) -> 5907.534719 | F42: =IF($Q$5="Yes",F21*F20*F19,0) -> 0 | G42: 0 | H42: =IF($Q$5="Yes",H21*H20*H19,0) -> 1.679333843 | I42: 19.23619446 | J42: 72.69919052 | K42: 415.28 | L42: 415.28 | M42: 415.28 | N42: 415.28 | O42: 415.28 | P42: 415.28 | Q42: 415.28 | R42: 415.28 | S42: 415.28 | T42: 415.28 | U42: 415.28 | V42: 415.28 | W42: 415.28 | X42: 415.28 | Y42: 0 | Z42: 0 | AA42: 0 | AB42: 0 | AC42: 0 | AD42: 0 | AE42: 0 | AF42: 0 | AG42: 0 | AH42: 0 | AI42: 0 | AJ42: 0 | AK42: 0 | AL42: =IF($Q$5="Yes",AL21*AL20*AL19,0) -> 0 | AM42: 0 | AN42: 0 | AO42: 0 | AP42: 0 | AQ42: 0 | AR42: 0 | AS42: 0 | AT42: 0 | AU42: 0 | AV42: 0 | AW42: 0 | AX42: 0 | AY42: 0 | AZ42: 0 | BA42: 0 | BB42: 0 | BC42: 0 | BD42: 0 | BE42: 0 | BF42: 0 | BG42: 0 | BH42: 0 | BI42: 0 | BJ42: 0 | BK42: 0 | BL42: 0 | BM42: 0 | BN42: 0 | BO42: 0 | BP42: 0 | BQ42: 0 | BR42: 0 | BS42: 0
B43: Financial Saving | D43: =SUM(F43:BM43) -> 6769357.658 | F43: =IF($U$5="Yes",(F23+F24+F25+F26),0) -> 0 | G43: 0 | H43: 71527.49091 | I43: 161237.8618 | J43: =IF($U$5="Yes",(J23+J24+J25+J26),0) -> 251152.3055 | K43: 448960 | L43: 448960 | M43: 448960 | N43: 448960 | O43: 448960 | P43: 448960 | Q43: 448960 | R43: 448960 | S43: 448960 | T43: 448960 | U43: 448960 | V43: 448960 | W43: 448960 | X43: 448960 | Y43: 0 | Z43: 0 | AA43: 0 | AB43: 0 | AC43: 0 | AD43: 0 | AE43: 0 | AF43: 0 | AG43: 0 | AH43: 0 | AI43: 0 | AJ43: 0 | AK43: 0 | AL43: =IF($U$5="Yes",(AL23+AL24+AL25+AL26),0) -> 0 | AM43: 0 | AN43: 0 | AO43: 0 | AP43: 0 | AQ43: 0 | AR43: 0 | AS43: 0 | AT43: 0 | AU43: 0 | AV43: 0 | AW43: 0 | AX43: 0 | AY43: 0 | AZ43: 0 | BA43: 0 | BB43: 0 | BC43: 0 | BD43: 0 | BE43: 0 | BF43: 0 | BG43: 0 | BH43: 0 | BI43: 0 | BJ43: 0 | BK43: 0 | BL43: 0 | BM43: 0 | BN43: 0 | BO43: 0 | BP43: 0 | BQ43: 0 | BR43: 0 | BS43: 0
B44: Safety Saving | D44: 527.7252273 | F44: =IF($AA$5="Yes",F28,0) -> 0 | G44: =IF($AA$5="Yes",G28,0) -> 0 | H44: 5.576136364 | I44: 12.56977273 | J44: 19.57931818 | K44: 35 | L44: 35 | M44: 35 | N44: 35 | O44: 35 | P44: 35 | Q44: 35 | R44: 35 | S44: 35 | T44: 35 | U44: 35 | V44: 35 | W44: 35 | X44: 35 | Y44: 0 | Z44: 0 | AA44: 0 | AB44: 0 | AC44: 0 | AD44: 0 | AE44: 0 | AF44: 0 | AG44: 0 | AH44: 0 | AI44: 0 | AJ44: 0 | AK44: 0 | AL44: 0 | AM44: 0 | AN44: 0 | AO44: 0 | AP44: 0 | AQ44: 0 | AR44: 0 | AS44: 0 | AT44: 0 | AU44: 0 | AV44: 0 | AW44: 0 | AX44: 0 | AY44: 0 | AZ44: 0 | BA44: 0 | BB44: 0 | BC44: 0 | BD44: 0 | BE44: 0 | BF44: 0 | BG44: 0 | BH44: 0 | BI44: 0 | BJ44: 0 | BK44: 0 | BL44: 0 | BM44: 0 | BN44: 0 | BO44: 0 | BP44: 0 | BQ44: 0 | BR44: 0 | BS44: =IF($AA$5="Yes",BS28,0) -> 0
B45: Environmental Saving + Event A + Event B | D45: 0 | F45: =IF($AF$5="Yes",F32+F33+F34,0) -> 0 | G45: =IF($AF$5="Yes",G32+G33+G34,0) -> 0 | H45: 0 | I45: 0 | J45: 0 | K45: 0 | L45: 0 | M45: 0 | N45: 0 | O45: 0 | P45: 0 | Q45: 0 | R45: 0 | S45: 0 | T45: 0 | U45: 0 | V45: 0 | W45: 0 | X45: 0 | Y45: 0 | Z45: 0 | AA45: 0 | AB45: 0 | AC45: 0 | AD45: 0 | AE45: 0 | AF45: 0 | AG45: 0 | AH45: 0 | AI45: 0 | AJ45: 0 | AK45: 0 | AL45: 0 | AM45: 0 | AN45: 0 | AO45: 0 | AP45: 0 | AQ45: 0 | AR45: 0 | AS45: 0 | AT45: 0 | AU45: 0 | AV45: 0 | AW45: 0 | AX45: 0 | AY45: 0 | AZ45: 0 | BA45: 0 | BB45: 0 | BC45: 0 | BD45: 0 | BE45: 0 | BF45: 0 | BG45: 0 | BH45: 0 | BI45: 0 | BJ45: 0 | BK45: 0 | BL45: 0 | BM45: 0 | BN45: 0 | BO45: 0 | BP45: 0 | BQ45: 0 | BR45: 0 | BS45: =IF($AF$5="Yes",BS32+BS33+BS34,0) -> 0
B46: Total Cashflow Inflow | D46: =SUM(F46:BM46) -> 6775792.918 | F46: =SUM(F42:F45) -> 0 | G46: 0 | H46: 71534.74638 | I46: 161269.6678 | J46: 251244.584 | K46: 449410.28 | L46: 449410.28 | M46: =SUM(M42:M45) -> 449410.28 | N46: 449410.28 | O46: 449410.28 | P46: 449410.28 | Q46: 449410.28 | R46: 449410.28 | S46: 449410.28 | T46: 449410.28 | U46: 449410.28 | V46: 449410.28 | W46: 449410.28 | X46: 449410.28 | Y46: 0 | Z46: 0 | AA46: 0 | AB46: 0 | AC46: 0 | AD46: 0 | AE46: 0 | AF46: 0 | AG46: 0 | AH46: 0 | AI46: 0 | AJ46: 0 | AK46: 0 | AL46: 0 | AM46: 0 | AN46: 0 | AO46: 0 | AP46: 0 | AQ46: 0 | AR46: 0 | AS46: 0 | AT46: 0 | AU46: 0 | AV46: 0 | AW46: 0 | AX46: 0 | AY46: 0 | AZ46: 0 | BA46: 0 | BB46: 0 | BC46: 0 | BD46: 0 | BE46: 0 | BF46: 0 | BG46: 0 | BH46: 0 | BI46: 0 | BJ46: 0 | BK46: 0 | BL46: 0 | BM46: 0 | BN46: 0 | BO46: 0 | BP46: 0 | BQ46: 0 | BR46: =SUM(BR42:BR45) -> 0 | BS46: 0
B48: Net Cashflow | D48: =SUM(F48:BM48) -> 2375792.898 | F48: =F39+F46-0.01 -> -0.01 | G48: =G39+G46-0.01 -> -0.01 | H48: =H39+H46 -> -629465.2536 | I48: -717930.3322 | J48: -628955.416 | K48: -431789.72 | L48: -608989.72 | M48: 449410.28 | N48: 449410.28 | O48: 449410.28 | P48: 449410.28 | Q48: 449410.28 | R48: 449410.28 | S48: 449410.28 | T48: 449410.28 | U48: 449410.28 | V48: 449410.28 | W48: 449410.28 | X48: 449410.28 | Y48: 0 | Z48: 0 | AA48: 0 | AB48: 0 | AC48: 0 | AD48: 0 | AE48: 0 | AF48: 0 | AG48: 0 | AH48: 0 | AI48: 0 | AJ48: 0 | AK48: 0 | AL48: 0 | AM48: 0 | AN48: =AN39+AN46 -> 0 | AO48: 0 | AP48: 0 | AQ48: 0 | AR48: 0 | AS48: 0 | AT48: 0 | AU48: 0 | AV48: 0 | AW48: 0 | AX48: 0 | AY48: 0 | AZ48: 0 | BA48: 0 | BB48: 0 | BC48: 0 | BD48: 0 | BE48: 0 | BF48: 0 | BG48: 0 | BH48: 0 | BI48: 0 | BJ48: 0 | BK48: 0 | BL48: 0 | BM48: 0 | BN48: =BN39+BN46 -> 0 | BO48: 0 | BP48: 0 | BQ48: 0 | BR48: 0 | BS48: 0
B50: NPV | D50: =NPV(WACC,DCF!F48:BM48) -> 860541.3153
B52: WACC 2 | C52: 0.025 | D52: =NPV(C52,$F$48:$BM$48) -> 1202698.073
B53: WACC 3 | C53: 0.045 | D53: =NPV(C53,$F$48:$BM$48) -> 573909.9185
AD54: =AD53 -> 0
B55: Counterfactual for RCP period | D55: =SUM(H46:L46) -> 1382869.558 | AD55: =AD54 -> 0
B56: Counterfactual for the Benefit Claim Period | D56: =SUM(H46:BR46) -> 6775792.918
B57: NPV of the couterfactual case | D57: =-NPV(WACC,DCF!F46:BM46) -> -4548829.56
B58: WACC 2.5% | D58: =Hidden!K18 -> 1202698.073
B59: WACC 4.5% | D59: =Hidden!O18 -> 573909.9185
B60: WACC 75% Benefits | D60: =Hidden!M23 -> -277945.0727
B61: WACC 125% Benefits | D61: =Hidden!M13 -> 2000489.415
B65: Couterfactual for period reactive cases | C65: =C5 -> EECL | D65: =SUM(H65:L65)+D55 ->  | H65: =H46-(1-$C65)*H39/$C65 ->  | I65: =I46-(1-$C65)*I39/$C65 ->  | J65: =J46-(1-$C65)*J39/$C65 -> 

Sheet NPV_Output
A1: ="R"&ROW(Start_1)+Index_1*1-1&"C"&COLUMN(Start_1) -> 
B2: NPV Summary | N2: Cash Inflows (Benefits)
B4: Index | C4: GT Stream | D4: WR Description | E4: Managers | F4: Case Ref | G4: Total Capex | H4: NPV | I4: Counterfactual | J4: WACC 2.5% | K4: WACC 4.5% | L4: WACC 75% | M4: WACC 125% | N4: 2026 | O4: 2027 | P4: 2028 | Q4: 2029 | R4: 2030 | S4: 2031 | T4: 2032 | U4: 2033 | V4: 2034 | W4: 2035 | X4: 2036 | Y4: 2037 | Z4: 2038 | AA4: 2039 | AB4: 2040 | AC4: 2041 | AD4: 2042 | AE4: 2043 | AF4: 2044 | AG4: 2045 | AH4: 2046 | AI4: 2047 | AJ4: 2048 | AK4: 2049 | AL4: 2050 | AM4: 2051
B5: =IF(Project_Input!$D6="","",Project_Input!B6) -> 361 | C5: =IF(Project_Input!$D6="","",Project_Input!C6) -> REPEX | D5: =IF(Project_Input!$D6="","",Project_Input!D6) -> GRID COMMS AC Systems Replacements (Option1 - Risk based program) Preferred | E5: =IF(Project_Input!$D6="","",Project_Input!E6) -> Brad S | F5: =IF(Project_Input!$D6="","",Project_Input!F6) -> EECL | G5: =Project_Input!L6 -> 4400000 | H5: 860541.3153 | I5: 1382869.558 | J5: 1202698.073 | K5: 573909.9185 | L5: -277945.0727 | M5: 2000489.415 | N5: 71534.74638 | O5: 161269.6678 | P5: 251244.584 | Q5: 449410.28 | R5: 449410.28 | S5: 449410.28 | T5: 449410.28 | U5: 449410.28 | V5: 449410.28 | W5: 449410.28 | X5: 449410.28 | Y5: 449410.28 | Z5: 449410.28 | AA5: 449410.28 | AB5: 449410.28 | AC5: 449410.28 | AD5: 449410.28 | AE5: 0 | AF5: 0 | AG5: 0 | AH5: 0 | AI5: 0 | AJ5: 0 | AK5: 0 | AL5: 0 | AM5: 0
B6: =IF(Project_Input!$D7="","",Project_Input!B7) -> 362 | C6: =IF(Project_Input!$D7="","",Project_Input!C7) -> REPEX | D6: =IF(Project_Input!$D7="","",Project_Input!D7) -> GRID COMMS AC Systems Replacements (Option 2 - Replace all) | E6: =IF(Project_Input!$D7="","",Project_Input!E7) -> Brad S | F6: =IF(Project_Input!$D7="","",Project_Input!F7) -> EECL | G6: =Project_Input!L7 -> 6525654.311 | H6: 1162247.05 | I6: 1985428.797 | J6: 1668266.306 | K6: 738436.9232 | L6: -504779.5101 | M6: 2830681.823 | N6: 132315.4085 | O6: 264650.7504 | P6: 397025.9592 | Q6: 529460.9683 | R6: 661975.7111 | S6: 661975.7111 | T6: 661975.7111 | U6: 661975.7111 | V6: 661975.7111 | W6: 661975.7111 | X6: 661975.7111 | Y6: 661975.7111 | Z6: 661975.7111 | AA6: 661975.7111 | AB6: 661975.7111 | AC6: 661975.7111 | AD6: 661975.7111 | AE6: 0 | AF6: 0 | AG6: 0 | AH6: 0 | AI6: 0 | AJ6: 0 | AK6: 0 | AL6: 0 | AM6: 0
B7: =IF(Project_Input!$D8="","",Project_Input!B8) -> 363 | C7: =IF(Project_Input!$D8="","",Project_Input!C8) -> REPEX | D7: =IF(Project_Input!$D8="","",Project_Input!D8) -> GRID COMMS AC Systems Replacements (Option 3 - AER proposed) | E7: =IF(Project_Input!$D8="","",Project_Input!E8) -> Brad S | F7: =IF(Project_Input!$D8="","",Project_Input!F8) -> EECL | G7: =Project_Input!L8 -> 4482912.199 | H7: 827945.1877 | I7: 1372606.164 | J7: 1179012.554 | K7: 533789.747 | L7: -325013.3575 | M7: 1982311.945 | N7: 91460.56622 | O7: 182941.0659 | P7: 274461.4324 | Q7: 366041.5993 | R7: 457701.4999 | S7: 457701.4999 | T7: 457701.4999 | U7: 457701.4999 | V7: 457701.4999 | W7: 457701.4999 | X7: 457701.4999 | Y7: 457701.4999 | Z7: 457701.4999 | AA7: 457701.4999 | AB7: 457701.4999 | AC7: 457701.4999 | AD7: 457701.4999 | AE7: 0 | AF7: 0 | AG7: 0 | AH7: 0 | AI7: 0 | AJ7: 0 | AK7: 0 | AL7: 0 | AM7: 0
B8: =IF(Project_Input!$D9="","",Project_Input!B9) -> 364 | C8: =IF(Project_Input!$D9="","",Project_Input!C9) -> REPEX | D8: =IF(Project_Input!$D9="","",Project_Input!D9) -> GRID COMMS AC Systems Replacements (Option 4 - Reactive replace) | E8: =IF(Project_Input!$D9="","",Project_Input!E9) -> Brad S | F8: =IF(Project_Input!$D9="","",Project_Input!F9) -> EECL | G8: =Project_Input!L9 -> 7610132.392 | H8: -6415112.872 | I8: 0 | J8: -6730350.034 | K8: -6118596.978 | L8: -6415112.872 | M8: -6415112.872 | N8: 0 | O8: 0 | P8: 0 | Q8: 0 | R8: 0 | S8: 0 | T8: 0 | U8: 0 | V8: 0 | W8: 0 | X8: 0 | Y8: 0 | Z8: 0 | AA8: 0 | AB8: 0 | AC8: 0 | AD8: 0 | AE8: 0 | AF8: 0 | AG8: 0 | AH8: 0 | AI8: 0 | AJ8: 0 | AK8: 0 | AL8: 0 | AM8: 0
B9: =IF(Project_Input!$D10="","",Project_Input!B10) -> 881 | C9: =IF(Project_Input!$D10="","",Project_Input!C10) -> REPEX | D9: =IF(Project_Input!$D10="","",Project_Input!D10) -> GRID COMMS P25 Replacement (Option 1 - Proposed Life Extension) Preferred | E9: =IF(Project_Input!$D10="","",Project_Input!E10) -> Luke A | F9: =IF(Project_Input!$D10="","",Project_Input!F10) -> EECL | G9: =Project_Input!L10 -> 4499064.2 | H9: 179260.5333 | I9: 1350449.067 | J9: 380632.6617 | K9: 10408.00395 | L9: -817878.8089 | M9: 1199961.522 | N9: 46010.4476 | O9: 138230.6772 | P9: 277806.8616 | Q9: 420074.0604 | R9: 468327.02 | S9: 468327.02 | T9: 468327.02 | U9: 468327.02 | V9: 468327.02 | W9: 468327.02 | X9: 468327.02 | Y9: 468327.02 | Z9: 468327.02 | AA9: 468327.02 | AB9: 0 | AC9: 0 | AD9: 0 | AE9: 0 | AF9: 0 | AG9: 0 | AH9: 0 | AI9: 0 | AJ9: 0 | AK9: 0 | AL9: 0 | AM9: 0
B10: =IF(Project_Input!$D11="","",Project_Input!B11) -> 882 | C10: =IF(Project_Input!$D11="","",Project_Input!C11) -> REPEX | D10: =IF(Project_Input!$D11="","",Project_Input!D11) -> GRID COMMS P25 Replacement (Option 2 - Technology change) | E10: =IF(Project_Input!$D11="","",Project_Input!E11) -> Luke A | F10: =IF(Project_Input!$D11="","",Project_Input!F11) -> EECL | G10: =Project_Input!L11 -> 10462940.68 | H10: 42967.895 | I10: 3079973.247 | J10: 534193.8558 | K10: -369898.6851 | L10: -2199805.358 | M10: 2309302.794 | N10: 105649.2124 | O10: 317146.9717 | P10: 635639.4507 | Q10: 956822.944 | R10: 1064714.668 | S10: 1064714.668 | T10: 1064714.668 | U10: 1064714.668 | V10: 1064714.668 | W10: 1064714.668 | X10: 1064714.668 | Y10: 1064714.668 | Z10: 1064714.668 | AA10: 1064714.668 | AB10: 0 | AC10: 0 | AD10: 0 | AE10: 0 | AF10: 0 | AG10: 0 | AH10: 0 | AI10: 0 | AJ10: 0 | AK10: 0 | AL10: 0 | AM10: 0
B11: =IF(Project_Input!$D12="","",Project_Input!B12) -> 883 | C11: =IF(Project_Input!$D12="","",Project_Input!C12) -> REPEX | D11: =IF(Project_Input!$D12="","",Project_Input!D12) -> GRID COMMS P25 Replacement (Option 3 - Public network) | E11: =IF(Project_Input!$D12="","",Project_Input!E12) -> Luke A | F11: =IF(Project_Input!$D12="","",Project_Input!F12) -> EECL | G11: =Project_Input!L12 -> 11902528 | H11: -2125643.315 | I11: 11680599.3 | J11: -1998498.235 | K11: -2225114.312 | L11: -4079886.545 | M11: -155750.2333 | N11: 0 | O11: 1380071.642 | P11: 2761934.155 | Q11: 3349157.107 | R11: 4189436.4 | S11: 4189436.4 | T11: 4189436.4 | U11: 4189436.4 | V11: 4189436.4 | W11: 4189436.4 | X11: 0 | Y11: 0 | Z11: 0 | AA11: 0 | AB11: 0 | AC11: 0 | AD11: 0 | AE11: 0 | AF11: 0 | AG11: 0 | AH11: 0 | AI11: 0 | AJ11: 0 | AK11: 0 | AL11: 0 | AM11: 0
B12: =IF(Project_Input!$D13="","",Project_Input!B13) -> 884 | C12: =IF(Project_Input!$D13="","",Project_Input!C13) -> REPEX | D12: =IF(Project_Input!$D13="","",Project_Input!D13) -> GRID COMMS P25 Replacement (Option 4 - Accelerated program) | E12: =IF(Project_Input!$D13="","",Project_Input!E13) -> Luke A | F12: =IF(Project_Input!$D13="","",Project_Input!F13) -> EECL | G12: =Project_Input!L13 -> 19990160.25 | H12: -6767097.269 | I12: 3572954.58 | J12: -6562931.255 | K12: -6904955.216 | L12: -9308339.436 | M12: -4202723.185 | N12: 237266.7448 | O12: 474932.1584 | P12: 713394.9096 | Q12: 953053.6672 | R12: 1194307.1 | S12: 1194307.1 | T12: 1194307.1 | U12: 1194307.1 | V12: 1194307.1 | W12: 1194307.1 | X12: 1194307.1 | Y12: 1194307.1 | Z12: 1194307.1 | AA12: 1194307.1 | AB12: 0 | AC12: 0 | AD12: 0 | AE12: 0 | AF12: 0 | AG12: 0 | AH12: 0 | AI12: 0 | AJ12: 0 | AK12: 0 | AL12: 0 | AM12: 0
B13: =IF(Project_Input!$D14="","",Project_Input!B14) -> 885 | C13: =IF(Project_Input!$D14="","",Project_Input!C14) -> REPEX | D13: =IF(Project_Input!$D14="","",Project_Input!D14) -> GRID COMMS P25 Replacement (Option 5 - Reactive replace) | E13: =IF(Project_Input!$D14="","",Project_Input!E14) -> Luke A | F13: =IF(Project_Input!$D14="","",Project_Input!F14) -> EECL | G13: =Project_Input!L14 -> 8998088 | H13: -7585117.73 | I13: 0 | J13: -7957848.659 | K13: -7234522.5 | L13: -7585117.73 | M13: -7585117.73 | N13: 0 | O13: 0 | P13: 0 | Q13: 0 | R13: 0 | S13: 0 | T13: 0 | U13: 0 | V13: 0 | W13: 0 | X13: 0 | Y13: 0 | Z13: 0 | AA13: 0 | AB13: 0 | AC13: 0 | AD13: 0 | AE13: 0 | AF13: 0 | AG13: 0 | AH13: 0 | AI13: 0 | AJ13: 0 | AK13: 0 | AL13: 0 | AM13: 0
B14: =IF(Project_Input!$D15="","",Project_Input!B15) -> 521 | C14: =IF(Project_Input!$D15="","",Project_Input!C15) -> REPEX | D14: =IF(Project_Input!$D15="","",Project_Input!D15) -> GRID COMMS SDH Replacement Edge (Option 1A - Spares mine 4%) Preferred | E14: =IF(Project_Input!$D15="","",Project_Input!E15) -> Luke A | F14: =IF(Project_Input!$D15="","",Project_Input!F15) -> EECL | G14: =Project_Input!L15 -> 3411488.1 | H14: 85117.77726 | I14: 1657854.72 | J14: 173904.8475 | K14: 7806.764027 | L14: -655107.1524 | M14: 825342.707 | N14: 110523.648 | O14: 221047.296 | P14: 331570.944 | Q14: 442094.592 | R14: 552618.24 | S14: 552618.24 | T14: 552618.24 | U14: 552618.24 | V14: 552618.24 | W14: 0 | X14: 0 | Y14: 0 | Z14: 0 | AA14: 0 | AB14: 0 | AC14: 0 | AD14: 0 | AE14: 0 | AF14: 0 | AG14: 0 | AH14: 0 | AI14: 0 | AJ14: 0 | AK14: 0 | AL14: 0 | AM14: 0
B15: =IF(Project_Input!$D16="","",Project_Input!B16) -> 522 | C15: =IF(Project_Input!$D16="","",Project_Input!C16) -> REPEX | D15: =IF(Project_Input!$D16="","",Project_Input!D16) -> GRID COMMS SDH Replacement Edge (Option 1B - Spares mine 5%) | E15: =IF(Project_Input!$D16="","",Project_Input!E16) -> Luke A | F15: =IF(Project_Input!$D16="","",Project_Input!F16) -> EECL | G15: =Project_Input!L16 -> 4374894.4 | H15: 62568.48369 | I15: 2099949.312 | J15: 172808.6606 | K15: -33267.4001 | L15: -875049.7606 | M15: 1000186.728 | N15: 139996.6208 | O15: 279993.2416 | P15: 419989.8624 | Q15: 559986.4832 | R15: 699983.104 | S15: 699983.104 | T15: 699983.104 | U15: 699983.104 | V15: 699983.104 | W15: 0 | X15: 0 | Y15: 0 | Z15: 0 | AA15: 0 | AB15: 0 | AC15: 0 | AD15: 0 | AE15: 0 | AF15: 0 | AG15: 0 | AH15: 0 | AI15: 0 | AJ15: 0 | AK15: 0 | AL15: 0 | AM15: 0
B16: =IF(Project_Input!$D17="","",Project_Input!B17) -> 533 | C16: =IF(Project_Input!$D17="","",Project_Input!C17) -> REPEX | D16: =IF(Project_Input!$D17="","",Project_Input!D17) -> GRID COMMS SDH Replacement Edge (Option 1C - Spares mine 6%) | E16: =IF(Project_Input!$D17="","",Project_Input!E17) -> Luke A | F16: =IF(Project_Input!$D17="","",Project_Input!F17) -> EECL | G16: =Project_Input!L17 -> 5756440 | H16: 82326.95822 | I16: 2763091.2 | J16: 227379.8227 | K16: -43772.88896 | L16: -1151381.258 | M16: 1316035.174 | N16: 184206.08 | O16: 368412.16 | P16: 552618.24 | Q16: 736824.32 | R16: 921030.4 | S16: 921030.4 | T16: 921030.4 | U16: 921030.4 | V16: 921030.4 | W16: 0 | X16: 0 | Y16: 0 | Z16: 0 | AA16: 0 | AB16: 0 | AC16: 0 | AD16: 0 | AE16: 0 | AF16: 0 | AG16: 0 | AH16: 0 | AI16: 0 | AJ16: 0 | AK16: 0 | AL16: 0 | AM16: 0
B17: =IF(Project_Input!$D18="","",Project_Input!B18) -> 544 | C17: =IF(Project_Input!$D18="","",Project_Input!C18) -> REPEX | D17: =IF(Project_Input!$D18="","",Project_Input!D18) -> GRID COMMS SDH Replacement Edge (Option 1D - AER proposed) | E17: =IF(Project_Input!$D18="","",Project_Input!E18) -> Luke A | F17: =IF(Project_Input!$D18="","",Project_Input!F18) -> EECL | G17: =Project_Input!L18 -> 5065667.2 | H17: -1901485.425 | I17: 1326283.776 | J17: -1927240.457 | K17: -1872297.385 | L17: -2493665.369 | M17: -1309305.481 | N17: 88418.9184 | O17: 176837.8368 | P17: 265256.7552 | Q17: 353675.6736 | R17: 442094.592 | S17: 442094.592 | T17: 442094.592 | U17: 442094.592 | V17: 442094.592 | W17: 0 | X17: 0 | Y17: 0 | Z17: 0 | AA17: 0 | AB17: 0 | AC17: 0 | AD17: 0 | AE17: 0 | AF17: 0 | AG17: 0 | AH17: 0 | AI17: 0 | AJ17: 0 | AK17: 0 | AL17: 0 | AM17: 0
B18: =IF(Project_Input!$D19="","",Project_Input!B19) -> 555 | C18: =IF(Project_Input!$D19="","",Project_Input!C19) -> REPEX | D18: =IF(Project_Input!$D19="","",Project_Input!D19) -> GRID COMMS SDH Replacement Edge (Option 2 - Wholesale replace) | E18: =IF(Project_Input!$D19="","",Project_Input!E19) -> Luke A | F18: =IF(Project_Input!$D19="","",Project_Input!F19) -> EECL | G18: =Project_Input!L19 -> 14183868.16 | H18: -7021741.661 | I18: 2763091.2 | J18: -7225781.085 | K18: -6819481.071 | L18: -8255449.877 | M18: -5788033.445 | N18: 184206.08 | O18: 368412.16 | P18: 552618.24 | Q18: 736824.32 | R18: 921030.4 | S18: 921030.4 | T18: 921030.4 | U18: 921030.4 | V18: 921030.4 | W18: 0 | X18: 0 | Y18: 0 | Z18: 0 | AA18: 0 | AB18: 0 | AC18: 0 | AD18: 0 | AE18: 0 | AF18: 0 | AG18: 0 | AH18: 0 | AI18: 0 | AJ18: 0 | AK18: 0 | AL18: 0 | AM18: 0
B19: =IF(Project_Input!$D20="","",Project_Input!B20) -> 556 | C19: =IF(Project_Input!$D20="","",Project_Input!C20) -> REPEX | D19: =IF(Project_Input!$D20="","",Project_Input!D20) -> GRID COMMS SDH Replacement Edge (Option 3 - Reactive replace) | E19: =IF(Project_Input!$D20="","",Project_Input!E20) -> Luke A | F19: =IF(Project_Input!$D20="","",Project_Input!F20) -> EECL | G19: =Project_Input!L20 -> 9008000 | H19: -7593473.248 | I19: 0 | J19: -7966614.765 | K19: -7242491.814 | L19: -7593473.248 | M19: -7593473.248 | N19: 0 | O19: 0 | P19: 0 | Q19: 0 | R19: 0 | S19: 0 | T19: 0 | U19: 0 | V19: 0 | W19: 0 | X19: 0 | Y19: 0 | Z19: 0 | AA19: 0 | AB19: 0 | AC19: 0 | AD19: 0 | AE19: 0 | AF19: 0 | AG19: 0 | AH19: 0 | AI19: 0 | AJ19: 0 | AK19: 0 | AL19: 0 | AM19: 0
B20: =IF(Project_Input!$D21="","",Project_Input!B21) -> 551 | C20: =IF(Project_Input!$D21="","",Project_Input!C21) -> REPEX | D20: =IF(Project_Input!$D21="","",Project_Input!D21) -> GRID COMMS SDH Replacement Core (Option 1A - Spares mine 4%) Preferred | E20: =IF(Project_Input!$D21="","",Project_Input!E21) -> Luke A | F20: =IF(Project_Input!$D21="","",Project_Input!F21) -> EECL | G20: =Project_Input!L21 -> 4226951.44 | H20: 46568.56967 | I20: 2021162.777 | J20: 152001.8439 | K20: -45040.67817 | L20: -855871.829 | M20: 949008.9684 | N20: 134744.1851 | O20: 269488.3703 | P20: 404232.5554 | Q20: 538976.7405 | R20: 673720.9257 | S20: 673720.9257 | T20: 673720.9257 | U20: 673720.9257 | V20: 673720.9257 | W20: 0 | X20: 0 | Y20: 0 | Z20: 0 | AA20: 0 | AB20: 0 | AC20: 0 | AD20: 0 | AE20: 0 | AF20: 0 | AG20: 0 | AH20: 0 | AI20: 0 | AJ20: 0 | AK20: 0 | AL20: 0 | AM20: 0
B21: =IF(Project_Input!$D22="","",Project_Input!B22) -> 552 | C21: =IF(Project_Input!$D22="","",Project_Input!C22) -> REPEX | D21: =IF(Project_Input!$D22="","",Project_Input!D22) -> GRID COMMS SDH Replacement Core (Option 1B - Spares mine 5%) | E21: =IF(Project_Input!$D22="","",Project_Input!E22) -> Luke A | F21: =IF(Project_Input!$D22="","",Project_Input!F22) -> EECL | G21: =Project_Input!L22 -> 5283688.75 | H21: 58211.18046 | I21: 2526453.471 | J21: 190002.7962 | K21: -56300.40083 | L21: -1069839.318 | M21: 1186261.679 | N21: 168430.2314 | O21: 336860.4628 | P21: 505290.6943 | Q21: 673720.9257 | R21: 842151.1571 | S21: 842151.1571 | T21: 842151.1571 | U21: 842151.1571 | V21: 842151.1571 | W21: 0 | X21: 0 | Y21: 0 | Z21: 0 | AA21: 0 | AB21: 0 | AC21: 0 | AD21: 0 | AE21: 0 | AF21: 0 | AG21: 0 | AH21: 0 | AI21: 0 | AJ21: 0 | AK21: 0 | AL21: 0 | AM21: 0
B22: =IF(Project_Input!$D23="","",Project_Input!B23) -> 553 | C22: =IF(Project_Input!$D23="","",Project_Input!C23) -> REPEX | D22: =IF(Project_Input!$D23="","",Project_Input!D23) -> GRID COMMS SDH Replacement Core (Option 1C - Spares mine 6%) | E22: =IF(Project_Input!$D23="","",Project_Input!E23) -> Luke A | F22: =IF(Project_Input!$D23="","",Project_Input!F23) -> EECL | G22: =Project_Input!L23 -> 6340426.5 | H22: 69853.42036 | I22: 3031744.166 | J22: 228003.3593 | K22: -67560.47725 | L22: -1283807.178 | M22: 1423514.018 | N22: 202116.2777 | O22: 404232.5554 | P22: 606348.8331 | Q22: 808465.1108 | R22: 1010581.389 | S22: 1010581.389 | T22: 1010581.389 | U22: 1010581.389 | V22: 1010581.389 | W22: 0 | X22: 0 | Y22: 0 | Z22: 0 | AA22: 0 | AB22: 0 | AC22: 0 | AD22: 0 | AE22: 0 | AF22: 0 | AG22: 0 | AH22: 0 | AI22: 0 | AJ22: 0 | AK22: 0 | AL22: 0 | AM22: 0
B23: =IF(Project_Input!$D24="","",Project_Input!B24) -> 554 | C23: =IF(Project_Input!$D24="","",Project_Input!C24) -> REPEX | D23: =IF(Project_Input!$D24="","",Project_Input!D24) -> GRID COMMS SDH Replacement Core (Option 1D - AER proposed) | E23: =IF(Project_Input!$D24="","",Project_Input!E24) -> Luke A | F23: =IF(Project_Input!$D24="","",Project_Input!F24) -> EECL | G23: =Project_Input!L24 -> 5653546.962 | H23: -1989030.48 | I23: 1554740.598 | J23: -2007428.743 | K23: -1965907.492 | L23: -2683215.402 | M23: -1294845.558 | N23: 103649.3732 | O23: 207298.7464 | P23: 310948.1195 | Q23: 414597.4927 | R23: 518246.8659 | S23: 518246.8659 | T23: 518246.8659 | U23: 518246.8659 | V23: 518246.8659 | W23: 0 | X23: 0 | Y23: 0 | Z23: 0 | AA23: 0 | AB23: 0 | AC23: 0 | AD23: 0 | AE23: 0 | AF23: 0 | AG23: 0 | AH23: 0 | AI23: 0 | AJ23: 0 | AK23: 0 | AL23: 0 | AM23: 0
B24: =IF(Project_Input!$D25="","",Project_Input!B25) -> 555 | C24: =IF(Project_Input!$D25="","",Project_Input!C25) -> REPEX | D24: =IF(Project_Input!$D25="","",Project_Input!D25) -> GRID COMMS SDH Replacement Core (Option 2 - Wholesale replace) | E24: =IF(Project_Input!$D25="","",Project_Input!E25) -> Luke A | F24: =IF(Project_Input!$D25="","",Project_Input!F25) -> EECL | G24: =Project_Input!L25 -> 16907804 | H24: -7021741.661 | I24: 2763091.2 | J24: -7225781.085 | K24: -6819481.071 | L24: -8255449.877 | M24: -5788033.445 | N24: 184206.08 | O24: 368412.16 | P24: 552618.24 | Q24: 736824.32 | R24: 921030.4 | S24: 921030.4 | T24: 921030.4 | U24: 921030.4 | V24: 921030.4 | W24: 0 | X24: 0 | Y24: 0 | Z24: 0 | AA24: 0 | AB24: 0 | AC24: 0 | AD24: 0 | AE24: 0 | AF24: 0 | AG24: 0 | AH24: 0 | AI24: 0 | AJ24: 0 | AK24: 0 | AL24: 0 | AM24: 0
B25: =IF(Project_Input!$D26="","",Project_Input!B26) -> 556 | C25: =IF(Project_Input!$D26="","",Project_Input!C26) -> REPEX | D25: =IF(Project_Input!$D26="","",Project_Input!D26) -> GRID COMMS SDH Replacement Core (Option 3 - Reactive replace) | E25: =IF(Project_Input!$D26="","",Project_Input!E26) -> Luke A | F25: =IF(Project_Input!$D26="","",Project_Input!F26) -> EECL | G25: =Project_Input!L26 -> 10567377.5 | H25: -7593473.248 | I25: 0 | J25: -7966614.765 | K25: -7242491.814 | L25: -7593473.248 | M25: -7593473.248 | N25: 0 | O25: 0 | P25: 0 | Q25: 0 | R25: 0 | S25: 0 | T25: 0 | U25: 0 | V25: 0 | W25: 0 | X25: 0 | Y25: 0 | Z25: 0 | AA25: 0 | AB25: 0 | AC25: 0 | AD25: 0 | AE25: 0 | AF25: 0 | AG25: 0 | AH25: 0 | AI25: 0 | AJ25: 0 | AK25: 0 | AL25: 0 | AM25: 0
B26: =IF(Project_Input!$D27="","",Project_Input!B27) -> 431 | C26: =IF(Project_Input!$D27="","",Project_Input!C27) -> REPEX | D26: =IF(Project_Input!$D27="","",Project_Input!D27) -> GRID COMMS Data Centre Ethernet Replacements (Option 1 - Preferred) | E26: =IF(Project_Input!$D27="","",Project_Input!E27) -> Luke A | F26: =IF(Project_Input!$D27="","",Project_Input!F27) -> EECL | G26: =Project_Input!L27 -> 4368468.69 | H26: 14349.12094 | I26: 1510047.639 | J26: 102860.5526 | K26: -61303.58023 | L26: -1008134.65 | M26: 1186973.514 | N26: 35470.80217 | O26: 71019.46933 | P26: 142661.8587 | Q26: 447919.016 | R26: 812976.4933 | S26: 812976.4933 | T26: 812976.4933 | U26: 812976.4933 | V26: 812976.4933 | W26: 0 | X26: 0 | Y26: 0 | Z26: 0 | AA26: 0 | AB26: 0 | AC26: 0 | AD26: 0 | AE26: 0 | AF26: 0 | AG26: 0 | AH26: 0 | AI26: 0 | AJ26: 0 | AK26: 0 | AL26: 0 | AM26: 0
B27: =IF(Project_Input!$D28="","",Project_Input!B28) -> 432 | C27: =IF(Project_Input!$D28="","",Project_Input!C28) -> REPEX | D27: =IF(Project_Input!$D28="","",Project_Input!D28) -> GRID COMMS Data Centre Ethernet Replacements (Option 2 - AER proposed) | E27: =IF(Project_Input!$D28="","",Project_Input!E28) -> Luke A | F27: =IF(Project_Input!$D28="","",Project_Input!F28) -> EECL | G27: =Project_Input!L28 -> 2752135.275 | H27: -113753.027 | I27: 951330.0129 | J27: -68325.72523 | K27: -152007.6685 | L27: -727219.5612 | M27: 594302.0988 | N27: 22346.60536 | O27: 44742.26568 | P27: 89876.97096 | Q27: 282188.9801 | R27: 512175.1908 | S27: 512175.1908 | T27: 512175.1908 | U27: 512175.1908 | V27: 512175.1908 | W27: 0 | X27: 0 | Y27: 0 | Z27: 0 | AA27: 0 | AB27: 0 | AC27: 0 | AD27: 0 | AE27: 0 | AF27: 0 | AG27: 0 | AH27: 0 | AI27: 0 | AJ27: 0 | AK27: 0 | AL27: 0 | AM27: 0
B28: =IF(Project_Input!$D29="","",Project_Input!B29) -> 433 | C28: =IF(Project_Input!$D29="","",Project_Input!C29) -> REPEX | D28: =IF(Project_Input!$D29="","",Project_Input!D29) -> GRID COMMS Data Centre Ethernet Replacements (Option 3 - Reactive replace) | E28: =IF(Project_Input!$D29="","",Project_Input!E29) -> Luke A | F28: =IF(Project_Input!$D29="","",Project_Input!F29) -> EECL | G28: =Project_Input!L29 -> 2839504.85 | H28: -2393617.255 | I28: 0 | J28: -2511239.052 | K28: -2282980.767 | L28: -2393617.255 | M28: -2393617.255 | N28: 0 | O28: 0 | P28: 0 | Q28: 0 | R28: 0 | S28: 0 | T28: 0 | U28: 0 | V28: 0 | W28: 0 | X28: 0 | Y28: 0 | Z28: 0 | AA28: 0 | AB28: 0 | AC28: 0 | AD28: 0 | AE28: 0 | AF28: 0 | AG28: 0 | AH28: 0 | AI28: 0 | AJ28: 0 | AK28: 0 | AL28: 0 | AM28: 0
B29: =IF(Project_Input!$D30="","",Project_Input!B30) -> 471 | C29: =IF(Project_Input!$D30="","",Project_Input!C30) -> REPEX | D29: =IF(Project_Input!$D30="","",Project_Input!D30) -> GRID COMMS Operational Support Systems Replacements (Option 1) Preferred | E29: =IF(Project_Input!$D30="","",Project_Input!E30) -> Luke A | F29: =IF(Project_Input!$D30="","",Project_Input!F30) -> EECL | G29: =Project_Input!L30 -> 3987068.24 | H29: 413789.4497 | I29: 2946915.013 | J29: 550754.9302 | K29: 291499.7032 | L29: -570546.3817 | M29: 1398125.281 | N29: 334876.706 | O29: 602778.0708 | P29: 669753.412 | Q29: 669753.412 | R29: 669753.412 | S29: 669753.412 | T29: 669753.412 | U29: 669753.412 | V29: 0 | W29: 0 | X29: 0 | Y29: 0 | Z29: 0 | AA29: 0 | AB29: 0 | AC29: 0 | AD29: 0 | AE29: 0 | AF29: 0 | AG29: 0 | AH29: 0 | AI29: 0 | AJ29: 0 | AK29: 0 | AL29: 0 | AM29: 0
B30: =IF(Project_Input!$D31="","",Project_Input!B31) -> 472 | C30: =IF(Project_Input!$D31="","",Project_Input!C31) -> REPEX | D30: =IF(Project_Input!$D31="","",Project_Input!D31) -> GRID COMMS Operational Support Systems Replacements (Option 2 - AER proposed) | E30: =IF(Project_Input!$D31="","",Project_Input!E31) -> Luke A | F30: =IF(Project_Input!$D31="","",Project_Input!F31) -> EECL | G30: =Project_Input!L31 -> 2511852.991 | H30: -48245.70725 | I30: 1625334.698 | J30: 17497.99077 | K30: -106330.7179 | L30: -591144.0177 | M30: 494652.6031 | N30: 184697.1248 | O30: 332454.8246 | P30: 369394.2496 | Q30: 369394.2496 | R30: 369394.2496 | S30: 369394.2496 | T30: 369394.2496 | U30: 369394.2496 | V30: 0 | W30: 0 | X30: 0 | Y30: 0 | Z30: 0 | AA30: 0 | AB30: 0 | AC30: 0 | AD30: 0 | AE30: 0 | AF30: 0 | AG30: 0 | AH30: 0 | AI30: 0 | AJ30: 0 | AK30: 0 | AL30: 0 | AM30: 0
B31: =IF(Project_Input!$D32="","",Project_Input!B32) -> 473 | C31: =IF(Project_Input!$D32="","",Project_Input!C32) -> REPEX | D31: =IF(Project_Input!$D32="","",Project_Input!D32) -> GRID COMMS Operational Support Systems Replacements (Option 3 - Wholesale replace) | E31: =IF(Project_Input!$D32="","",Project_Input!E32) -> Luke A | F31: =IF(Project_Input!$D32="","",Project_Input!F32) -> EECL | G31: =Project_Input!L32 -> 8800000 | H31: -7418135.5 | I31: 0 | J31: -7782660.961 | K31: -7075258.433 | L31: -7418135.5 | M31: -7418135.5 | N31: 0 | O31: 0 | P31: 0 | Q31: 0 | R31: 0 | S31: 0 | T31: 0 | U31: 0 | V31: 0 | W31: 0 | X31: 0 | Y31: 0 | Z31: 0 | AA31: 0 | AB31: 0 | AC31: 0 | AD31: 0 | AE31: 0 | AF31: 0 | AG31: 0 | AH31: 0 | AI31: 0 | AJ31: 0 | AK31: 0 | AL31: 0 | AM31: 0
B32: =IF(Project_Input!$D33="","",Project_Input!B33) -> 474 | C32: =IF(Project_Input!$D33="","",Project_Input!C33) -> REPEX | D32: =IF(Project_Input!$D33="","",Project_Input!D33) -> GRID COMMS Operational Support Systems Replacements (Option 4 - Reactive replace) | E32: =IF(Project_Input!$D33="","",Project_Input!E33) -> Luke A | F32: =IF(Project_Input!$D33="","",Project_Input!F33) -> EECL | G32: =Project_Input!L33 -> 4956175 | H32: -4379997.673 | I32: 0 | J32: -4535224.239 | K32: -4231671.168 | L32: -4379997.673 | M32: -4379997.673 | N32: 0 | O32: 0 | P32: 0 | Q32: 0 | R32: 0 | S32: 0 | T32: 0 | U32: 0 | V32: 0 | W32: 0 | X32: 0 | Y32: 0 | Z32: 0 | AA32: 0 | AB32: 0 | AC32: 0 | AD32: 0 | AE32: 0 | AF32: 0 | AG32: 0 | AH32: 0 | AI32: 0 | AJ32: 0 | AK32: 0 | AL32: 0 | AM32: 0
B33: =IF(Project_Input!$D34="","",Project_Input!B34) -> 191 | C33: =IF(Project_Input!$D34="","",Project_Input!C34) -> REPEX | D33: =IF(Project_Input!$D34="","",Project_Input!D34) -> GRID COMMS Fringe Network Replacement (Option 1 - Hybrid approach) | E33: =IF(Project_Input!$D34="","",Project_Input!E34) -> Luke A | F33: =IF(Project_Input!$D34="","",Project_Input!F34) -> EECL | G33: =Project_Input!L34 -> 868142.19 | H33: 2282.291602 | I33: 222408 | J33: 34656.74992 | K33: -24811.75719 | L33: -176573.4042 | M33: 181137.9874 | N33: 9884.8 | O33: 24712 | P33: 29654.4 | Q33: 59308.8 | R33: 98848 | S33: 98848 | T33: 98848 | U33: 98848 | V33: 98848 | W33: 98848 | X33: 98848 | Y33: 98848 | Z33: 98848 | AA33: 0 | AB33: 0 | AC33: 0 | AD33: 0 | AE33: 0 | AF33: 0 | AG33: 0 | AH33: 0 | AI33: 0 | AJ33: 0 | AK33: 0 | AL33: 0 | AM33: 0
B34: =IF(Project_Input!$D35="","",Project_Input!B35) -> 192 | C34: =IF(Project_Input!$D35="","",Project_Input!C35) -> REPEX | D34: =IF(Project_Input!$D35="","",Project_Input!D35) -> GRID COMMS Fringe Network Replacement (Option 2 - Standards develop) Preferred | E34: =IF(Project_Input!$D35="","",Project_Input!E35) -> Luke A | F34: =IF(Project_Input!$D35="","",Project_Input!F35) -> EECL | G34: =Project_Input!L35 -> 694513.752 | H34: 52149.8181 | I34: 198216 | J34: 88354.11715 | K34: 21314.64212 | L34: -107251.1953 | M34: 211550.8315 | N34: 8809.6 | O34: 22024 | P34: 26428.8 | Q34: 52857.6 | R34: 88096 | S34: 88096 | T34: 88096 | U34: 88096 | V34: 88096 | W34: 88096 | X34: 88096 | Y34: 88096 | Z34: 88096 | AA34: 0 | AB34: 0 | AC34: 0 | AD34: 0 | AE34: 0 | AF34: 0 | AG34: 0 | AH34: 0 | AI34: 0 | AJ34: 0 | AK34: 0 | AL34: 0 | AM34: 0
B35: =IF(Project_Input!$D36="","",Project_Input!B36) -> 193 | C35: =IF(Project_Input!$D36="","",Project_Input!C36) -> REPEX | D35: =IF(Project_Input!$D36="","",Project_Input!D36) -> GRID COMMS Fringe Network Replacement (Option 3 - AER proposed) | E35: =IF(Project_Input!$D36="","",Project_Input!E36) -> Luke A | F35: =IF(Project_Input!$D36="","",Project_Input!F36) -> EECL | G35: =Project_Input!L36 -> 546929.5797 | H35: -812106.1439 | I35: 194400 | J35: -868990.1762 | K35: -760225.0298 | L35: -724340.9115 | M35: -899871.3762 | N35: 12960 | O35: 25920 | P35: 38880 | Q35: 51840 | R35: 64800 | S35: 64800 | T35: 64800 | U35: 64800 | V35: 64800 | W35: 64800 | X35: 64800 | Y35: 64800 | Z35: 64800 | AA35: 0 | AB35: 0 | AC35: 0 | AD35: 0 | AE35: 0 | AF35: 0 | AG35: 0 | AH35: 0 | AI35: 0 | AJ35: 0 | AK35: 0 | AL35: 0 | AM35: 0
B36: =IF(Project_Input!$D37="","",Project_Input!B37) -> 194 | C36: =IF(Project_Input!$D37="","",Project_Input!C37) -> REPEX | D36: =IF(Project_Input!$D37="","",Project_Input!D37) -> GRID COMMS Fringe Network Replacement (Option 4 - Reactive replace) | E36: =IF(Project_Input!$D37="","",Project_Input!E37) -> Luke A | F36: =IF(Project_Input!$D37="","",Project_Input!F37) -> EECL | G36: =Project_Input!L37 -> 2559600 | H36: -6133358.039 | I36: 0 | J36: -6645850.198 | K36: -5670705.213 | L36: -5125668.126 | M36: -7141047.952 | N36: 0 | O36: 0 | P36: 0 | Q36: 0 | R36: 0 | S36: 0 | T36: 0 | U36: 0 | V36: 0 | W36: 0 | X36: 0 | Y36: 0 | Z36: 0 | AA36: 0 | AB36: 0 | AC36: 0 | AD36: 0 | AE36: 0 | AF36: 0 | AG36: 0 | AH36: 0 | AI36: 0 | AJ36: 0 | AK36: 0 | AL36: 0 | AM36: 0
B37: =IF(Project_Input!$D38="","",Project_Input!B38) -> 661 | C37: =IF(Project_Input!$D38="","",Project_Input!C38) -> REPEX | D37: =IF(Project_Input!$D38="","",Project_Input!D38) -> GRID COMMS Microwave Radio Core Replacements (Option 1 - Spares mine) Preferred | E37: =IF(Project_Input!$D38="","",Project_Input!E38) -> Luke A | F37: =IF(Project_Input!$D38="","",Project_Input!F38) -> EECL | G37: =Project_Input!L38 -> 4000279.112 | H37: 684131.4794 | I37: 1440000 | J37: 933441.1826 | K37: 471403.5703 | L37: -329930.1569 | M37: 1698193.116 | N37: 96000 | O37: 192000 | P37: 288000 | Q37: 384000 | R37: 480000 | S37: 480000 | T37: 480000 | U37: 480000 | V37: 480000 | W37: 480000 | X37: 480000 | Y37: 480000 | Z37: 480000 | AA37: 480000 | AB37: 0 | AC37: 0 | AD37: 0 | AE37: 0 | AF37: 0 | AG37: 0 | AH37: 0 | AI37: 0 | AJ37: 0 | AK37: 0 | AL37: 0 | AM37: 0
B38: =IF(Project_Input!$D39="","",Project_Input!B39) -> 664 | C38: =IF(Project_Input!$D39="","",Project_Input!C39) -> REPEX | D38: =IF(Project_Input!$D39="","",Project_Input!D39) -> GRID COMMS Microwave Radio Core Replacements (Option 2 - Hybrid Pro/Reactive replace) | E38: =IF(Project_Input!$D39="","",Project_Input!E39) -> Luke A | F38: =IF(Project_Input!$D39="","",Project_Input!F39) -> EECL | G38: =Project_Input!L39 -> 6053756 | H38: -1046887.812 | I38: 1440000 | J38: -882639.9963 | K38: -1179605.479 | L38: -2060949.448 | M38: -32826.17572 | N38: 96000 | O38: 192000 | P38: 288000 | Q38: 384000 | R38: 480000 | S38: 480000 | T38: 480000 | U38: 480000 | V38: 480000 | W38: 480000 | X38: 480000 | Y38: 480000 | Z38: 480000 | AA38: 480000 | AB38: 0 | AC38: 0 | AD38: 0 | AE38: 0 | AF38: 0 | AG38: 0 | AH38: 0 | AI38: 0 | AJ38: 0 | AK38: 0 | AL38: 0 | AM38: 0
B39: =IF(Project_Input!$D40="","",Project_Input!B40) -> 665 | C39: =IF(Project_Input!$D40="","",Project_Input!C40) -> REPEX | D39: =IF(Project_Input!$D40="","",Project_Input!D40) -> GRID COMMS Microwave Radio Core Replacements (Option 3 - Wholesale replace) | E39: =IF(Project_Input!$D40="","",Project_Input!E40) -> Luke A | F39: =IF(Project_Input!$D40="","",Project_Input!F40) -> EECL | G39: =Project_Input!L40 -> 12800000 | H39: -6733768.719 | I39: 1440000 | J39: -6848972.915 | K39: -6603630.437 | L39: -7747830.355 | M39: -5719707.083 | N39: 96000 | O39: 192000 | P39: 288000 | Q39: 384000 | R39: 480000 | S39: 480000 | T39: 480000 | U39: 480000 | V39: 480000 | W39: 480000 | X39: 480000 | Y39: 480000 | Z39: 480000 | AA39: 480000 | AB39: 0 | AC39: 0 | AD39: 0 | AE39: 0 | AF39: 0 | AG39: 0 | AH39: 0 | AI39: 0 | AJ39: 0 | AK39: 0 | AL39: 0 | AM39: 0
B40: =IF(Project_Input!$D41="","",Project_Input!B41) -> 666 | C40: =IF(Project_Input!$D41="","",Project_Input!C41) -> REPEX | D40: =IF(Project_Input!$D41="","",Project_Input!D41) -> GRID COMMS Microwave Radio Core Replacements (Option 4 - Reactive replace) | E40: =IF(Project_Input!$D41="","",Project_Input!E41) -> Luke A | F40: =IF(Project_Input!$D41="","",Project_Input!F41) -> EECL | G40: =Project_Input!L41 -> 8533929 | H40: -7193845.645 | I40: 0 | J40: -7547349.555 | K40: -6861335.583 | L40: -7193845.645 | M40: -7193845.645 | N40: 0 | O40: 0 | P40: 0 | Q40: 0 | R40: 0 | S40: 0 | T40: 0 | U40: 0 | V40: 0 | W40: 0 | X40: 0 | Y40: 0 | Z40: 0 | AA40: 0 | AB40: 0 | AC40: 0 | AD40: 0 | AE40: 0 | AF40: 0 | AG40: 0 | AH40: 0 | AI40: 0 | AJ40: 0 | AK40: 0 | AL40: 0 | AM40: 0
B41: =IF(Project_Input!$D42="","",Project_Input!B42) -> 421 | C41: =IF(Project_Input!$D42="","",Project_Input!C42) -> REPEX | D41: =IF(Project_Input!$D42="","",Project_Input!D42) -> GRID COMMS Microwave Radio Edge Capricornia and Mackay Replacements (Option 1 - Spares mine) Preferred | E41: =IF(Project_Input!$D42="","",Project_Input!E42) -> Luke A | F41: =IF(Project_Input!$D42="","",Project_Input!F42) -> EECL | G41: =Project_Input!L42 -> 2709078 | H41: 459208.2723 | I41: 973744.2236 | J41: 627626.7782 | K41: 315516.8388 | L41: -226511.631 | M41: 1144928.176 | N41: 64916.28158 | O41: 129832.5632 | P41: 194748.8447 | Q41: 259665.1263 | R41: 324581.4079 | S41: 324581.4079 | T41: 324581.4079 | U41: 324581.4079 | V41: 324581.4079 | W41: 324581.4079 | X41: 324581.4079 | Y41: 324581.4079 | Z41: 324581.4079 | AA41: 324581.4079 | AB41: 0 | AC41: 0 | AD41: 0 | AE41: 0 | AF41: 0 | AG41: 0 | AH41: 0 | AI41: 0 | AJ41: 0 | AK41: 0 | AL41: 0 | AM41: 0
B42: =IF(Project_Input!$D43="","",Project_Input!B43) -> 422 | C42: =IF(Project_Input!$D43="","",Project_Input!C43) -> REPEX | D42: =IF(Project_Input!$D43="","",Project_Input!D43) -> GRID COMMS Microwave Radio Edge Capricornia and Mackay Replacements (Option 2 - AER proposed) | E42: =IF(Project_Input!$D43="","",Project_Input!E43) -> Luke A | F42: =IF(Project_Input!$D43="","",Project_Input!F43) -> EECL | G42: =Project_Input!L43 -> 3738527.64 | H42: -1420404.643 | I42: 614540.7989 | J42: -1398153.475 | K42: -1432041.216 | L42: -1853170.093 | M42: -987639.1928 | N42: 40969.38659 | O42: 81938.77319 | P42: 122908.1598 | Q42: 163877.5464 | R42: 204846.933 | S42: 204846.933 | T42: 204846.933 | U42: 204846.933 | V42: 204846.933 | W42: 204846.933 | X42: 204846.933 | Y42: 204846.933 | Z42: 204846.933 | AA42: 204846.933 | AB42: 0 | AC42: 0 | AD42: 0 | AE42: 0 | AF42: 0 | AG42: 0 | AH42: 0 | AI42: 0 | AJ42: 0 | AK42: 0 | AL42: 0 | AM42: 0
B43: =IF(Project_Input!$D44="","",Project_Input!B44) -> 423 | C43: =IF(Project_Input!$D44="","",Project_Input!C44) -> REPEX | D43: =IF(Project_Input!$D44="","",Project_Input!D44) -> GRID COMMS Microwave Radio Edge Capricornia and Mackay Replacements (Option 3 - Wholesale replace) | E43: =IF(Project_Input!$D44="","",Project_Input!E44) -> Luke A | F43: =IF(Project_Input!$D44="","",Project_Input!F44) -> EECL | G43: =Project_Input!L44 -> 7212920.175 | H43: -3337395.3 | I43: 973744.2236 | J43: -3355541.016 | K43: -3305602.166 | L43: -4023115.204 | M43: -2651675.397 | N43: 64916.28158 | O43: 129832.5632 | P43: 194748.8447 | Q43: 259665.1263 | R43: 324581.4079 | S43: 324581.4079 | T43: 324581.4079 | U43: 324581.4079 | V43: 324581.4079 | W43: 324581.4079 | X43: 324581.4079 | Y43: 324581.4079 | Z43: 324581.4079 | AA43: 324581.4079 | AB43: 0 | AC43: 0 | AD43: 0 | AE43: 0 | AF43: 0 | AG43: 0 | AH43: 0 | AI43: 0 | AJ43: 0 | AK43: 0 | AL43: 0 | AM43: 0
B44: =IF(Project_Input!$D45="","",Project_Input!B45) -> 424 | C44: =IF(Project_Input!$D45="","",Project_Input!C45) -> REPEX | D44: =IF(Project_Input!$D45="","",Project_Input!D45) -> GRID COMMS Microwave Radio Edge Capricornia and Mackay Replacements (Option 4 - Reactive replace) | E44: =IF(Project_Input!$D45="","",Project_Input!E45) -> Luke A | F44: =IF(Project_Input!$D45="","",Project_Input!F45) -> EECL | G44: =Project_Input!L45 -> 5418156 | H44: -4567342.663 | I44: 0 | J44: -4791780.824 | K44: -4356233.409 | L44: -4567342.663 | M44: -4567342.663 | N44: 0 | O44: 0 | P44: 0 | Q44: 0 | R44: 0 | S44: 0 | T44: 0 | U44: 0 | V44: 0 | W44: 0 | X44: 0 | Y44: 0 | Z44: 0 | AA44: 0 | AB44: 0 | AC44: 0 | AD44: 0 | AE44: 0 | AF44: 0 | AG44: 0 | AH44: 0 | AI44: 0 | AJ44: 0 | AK44: 0 | AL44: 0 | AM44: 0
B45: =IF(Project_Input!$D46="","",Project_Input!B46) -> 411 | C45: =IF(Project_Input!$D46="","",Project_Input!C46) -> REPEX | D45: =IF(Project_Input!$D46="","",Project_Input!D46) -> GRID COMMS Microwave Radio Edge South West and Wide Bay (Option 1 - Spares mine) Preferred | E45: =IF(Project_Input!$D46="","",Project_Input!E46) -> Luke A | F45: =IF(Project_Input!$D46="","",Project_Input!F46) -> EECL | G45: =Project_Input!L46 -> 4829226 | H45: 1034368.589 | I45: 1812408.518 | J45: 1356670.393 | K45: 758615.0227 | L45: -241946.652 | M45: 2310683.83 | N45: 120827.2345 | O45: 241654.469 | P45: 362481.7036 | Q45: 483308.9381 | R45: 604136.1726 | S45: 604136.1726 | T45: 604136.1726 | U45: 604136.1726 | V45: 604136.1726 | W45: 604136.1726 | X45: 604136.1726 | Y45: 604136.1726 | Z45: 604136.1726 | AA45: 604136.1726 | AB45: 0 | AC45: 0 | AD45: 0 | AE45: 0 | AF45: 0 | AG45: 0 | AH45: 0 | AI45: 0 | AJ45: 0 | AK45: 0 | AL45: 0 | AM45: 0
B46: =IF(Project_Input!$D47="","",Project_Input!B47) -> 412 | C46: =IF(Project_Input!$D47="","",Project_Input!C47) -> REPEX | D46: =IF(Project_Input!$D47="","",Project_Input!D47) -> GRID COMMS Microwave Radio Edge South West and Wide Bay (Option 2 - AER proposed) | E46: =IF(Project_Input!$D47="","",Project_Input!E47) -> Luke A | F46: =IF(Project_Input!$D47="","",Project_Input!F47) -> EECL | G46: =Project_Input!L47 -> 6905793.18 | H46: -2883014.778 | I46: 1043141.791 | J46: -2868437.565 | K46: -2880951.79 | L46: -3617605.106 | M46: -2148424.45 | N46: 69542.78609 | O46: 139085.5722 | P46: 208628.3583 | Q46: 278171.1444 | R46: 347713.9305 | S46: 347713.9305 | T46: 347713.9305 | U46: 347713.9305 | V46: 347713.9305 | W46: 347713.9305 | X46: 347713.9305 | Y46: 347713.9305 | Z46: 347713.9305 | AA46: 347713.9305 | AB46: 0 | AC46: 0 | AD46: 0 | AE46: 0 | AF46: 0 | AG46: 0 | AH46: 0 | AI46: 0 | AJ46: 0 | AK46: 0 | AL46: 0 | AM46: 0
B47: =IF(Project_Input!$D48="","",Project_Input!B48) -> 413 | C47: =IF(Project_Input!$D48="","",Project_Input!C48) -> REPEX | D47: =IF(Project_Input!$D48="","",Project_Input!D48) -> GRID COMMS Microwave Radio Edge South West and Wide Bay (Option 3 - Wholesale replace) | E47: =IF(Project_Input!$D48="","",Project_Input!E48) -> Luke A | F47: =IF(Project_Input!$D48="","",Project_Input!F48) -> EECL | G47: =Project_Input!L48 -> 13425248.28 | H47: -6211819.805 | I47: 1812408.518 | J47: -6245594.022 | K47: -6152643.951 | L47: -7488135.047 | M47: -4935504.564 | N47: 120827.2345 | O47: 241654.469 | P47: 362481.7036 | Q47: 483308.9381 | R47: 604136.1726 | S47: 604136.1726 | T47: 604136.1726 | U47: 604136.1726 | V47: 604136.1726 | W47: 604136.1726 | X47: 604136.1726 | Y47: 604136.1726 | Z47: 604136.1726 | AA47: 604136.1726 | AB47: 0 | AC47: 0 | AD47: 0 | AE47: 0 | AF47: 0 | AG47: 0 | AH47: 0 | AI47: 0 | AJ47: 0 | AK47: 0 | AL47: 0 | AM47: 0
B48: =IF(Project_Input!$D49="","",Project_Input!B49) -> 414 | C48: =IF(Project_Input!$D49="","",Project_Input!C49) -> REPEX | D48: =IF(Project_Input!$D49="","",Project_Input!D49) -> GRID COMMS Microwave Radio Edge South West and Wide Bay (Option 4 - Reactive replace) | E48: =IF(Project_Input!$D49="","",Project_Input!E49) -> Luke A | F48: =IF(Project_Input!$D49="","",Project_Input!F49) -> EECL | G48: =Project_Input!L49 -> 9658452 | H48: -8141784.732 | I48: 0 | J48: -8541870.149 | K48: -7765459.54 | L48: -8141784.732 | M48: -8141784.732 | N48: 0 | O48: 0 | P48: 0 | Q48: 0 | R48: 0 | S48: 0 | T48: 0 | U48: 0 | V48: 0 | W48: 0 | X48: 0 | Y48: 0 | Z48: 0 | AA48: 0 | AB48: 0 | AC48: 0 | AD48: 0 | AE48: 0 | AF48: 0 | AG48: 0 | AH48: 0 | AI48: 0 | AJ48: 0 | AK48: 0 | AL48: 0 | AM48: 0
B49: =IF(Project_Input!$D50="","",Project_Input!B50) -> 501 | C49: =IF(Project_Input!$D50="","",Project_Input!C50) -> REPEX | D49: =IF(Project_Input!$D50="","",Project_Input!D50) -> GRID COMMS Microwave Radio Edge Nth QLD and Far North Replacements (Option 1 - Spares mine) Preferred | E49: =IF(Project_Input!$D50="","",Project_Input!E50) -> Luke A | F49: =IF(Project_Input!$D50="","",Project_Input!F50) -> EECL | G49: =Project_Input!L50 -> 4240296 | H49: 779228.4309 | I49: 1545587.892 | J49: 1049026.75 | K49: 548825.392 | L49: -309189.1988 | M49: 1867646.061 | N49: 103039.1928 | O49: 206078.3856 | P49: 309117.5784 | Q49: 412156.7712 | R49: 515195.964 | S49: 515195.964 | T49: 515195.964 | U49: 515195.964 | V49: 515195.964 | W49: 515195.964 | X49: 515195.964 | Y49: 515195.964 | Z49: 515195.964 | AA49: 515195.964 | AB49: 0 | AC49: 0 | AD49: 0 | AE49: 0 | AF49: 0 | AG49: 0 | AH49: 0 | AI49: 0 | AJ49: 0 | AK49: 0 | AL49: 0 | AM49: 0
B50: =IF(Project_Input!$D51="","",Project_Input!B51) -> 502 | C50: =IF(Project_Input!$D51="","",Project_Input!C51) -> REPEX | D50: =IF(Project_Input!$D51="","",Project_Input!D51) -> GRID COMMS Microwave Radio Edge Nth QLD and Far North Replacements (Option 2 - AER proposed) | E50: =IF(Project_Input!$D51="","",Project_Input!E51) -> Luke A | F50: =IF(Project_Input!$D51="","",Project_Input!F51) -> EECL | G50: =Project_Input!L51 -> 6204966.48 | H50: -2724820.993 | I50: 889571.6978 | J50: -2725472.802 | K50: -2710755.703 | L50: -3351265.806 | M50: -2098376.179 | N50: 59304.77986 | O50: 118609.5597 | P50: 177914.3396 | Q50: 237219.1194 | R50: 296523.8993 | S50: 296523.8993 | T50: 296523.8993 | U50: 296523.8993 | V50: 296523.8993 | W50: 296523.8993 | X50: 296523.8993 | Y50: 296523.8993 | Z50: 296523.8993 | AA50: 296523.8993 | AB50: 0 | AC50: 0 | AD50: 0 | AE50: 0 | AF50: 0 | AG50: 0 | AH50: 0 | AI50: 0 | AJ50: 0 | AK50: 0 | AL50: 0 | AM50: 0
B51: =IF(Project_Input!$D52="","",Project_Input!B52) -> 503 | C51: =IF(Project_Input!$D52="","",Project_Input!C52) -> REPEX | D51: =IF(Project_Input!$D52="","",Project_Input!D52) -> GRID COMMS Microwave Radio Edge Nth QLD and Far North Replacements (Option 3 - Wholesale replace) | E51: =IF(Project_Input!$D52="","",Project_Input!E52) -> Luke A | F51: =IF(Project_Input!$D52="","",Project_Input!F52) -> EECL | G51: =Project_Input!L52 -> 11448799.2 | H51: -5297323.087 | I51: 1545587.892 | J51: -5326125.103 | K51: -5246859.031 | L51: -6385740.716 | M51: -4208905.457 | N51: 103039.1928 | O51: 206078.3856 | P51: 309117.5784 | Q51: 412156.7712 | R51: 515195.964 | S51: 515195.964 | T51: 515195.964 | U51: 515195.964 | V51: 515195.964 | W51: 515195.964 | X51: 515195.964 | Y51: 515195.964 | Z51: 515195.964 | AA51: 515195.964 | AB51: 0 | AC51: 0 | AD51: 0 | AE51: 0 | AF51: 0 | AG51: 0 | AH51: 0 | AI51: 0 | AJ51: 0 | AK51: 0 | AL51: 0 | AM51: 0
B52: =IF(Project_Input!$D53="","",Project_Input!B53) -> 504 | C52: =IF(Project_Input!$D53="","",Project_Input!C53) -> REPEX | D52: =IF(Project_Input!$D53="","",Project_Input!D53) -> GRID COMMS Microwave Radio Edge Nth QLD and Far North Replacements (Option 4 - Reactive replace) | E52: =IF(Project_Input!$D53="","",Project_Input!E53) -> Luke A | F52: =IF(Project_Input!$D53="","",Project_Input!F53) -> EECL | G52: =Project_Input!L53 -> 8586599.4 | H52: -7238245.209 | I52: 0 | J52: -7593930.903 | K52: -6903682.934 | L52: -7238245.209 | M52: -7238245.209 | N52: 0 | O52: 0 | P52: 0 | Q52: 0 | R52: 0 | S52: 0 | T52: 0 | U52: 0 | V52: 0 | W52: 0 | X52: 0 | Y52: 0 | Z52: 0 | AA52: 0 | AB52: 0 | AC52: 0 | AD52: 0 | AE52: 0 | AF52: 0 | AG52: 0 | AH52: 0 | AI52: 0 | AJ52: 0 | AK52: 0 | AL52: 0 | AM52: 0
B53: =IF(Project_Input!$D54="","",Project_Input!B54) -> 141 | C53: =IF(Project_Input!$D54="","",Project_Input!C54) -> REPEX | D53: =IF(Project_Input!$D54="","",Project_Input!D54) -> GRID COMMS Edge Router Replacement (Option 1 - Hybrid Proactive) Preferred | E53: =IF(Project_Input!$D54="","",Project_Input!E54) -> Luke A | F53: =IF(Project_Input!$D54="","",Project_Input!F54) -> EECL | G53: =Project_Input!L54 -> 3673597 | H53: 423586.3212 | I53: 1731409.26 | J53: 580234.529 | K53: 287764.1598 | L53: -456493.2255 | M53: 1303665.868 | N53: 115427.284 | O53: 230854.568 | P53: 346281.852 | Q53: 461709.136 | R53: 577136.42 | S53: 577136.42 | T53: 577136.42 | U53: 577136.42 | V53: 577136.42 | W53: 577136.42 | X53: 577136.42 | Y53: 0 | Z53: 0 | AA53: 0 | AB53: 0 | AC53: 0 | AD53: 0 | AE53: 0 | AF53: 0 | AG53: 0 | AH53: 0 | AI53: 0 | AJ53: 0 | AK53: 0 | AL53: 0 | AM53: 0
B54: =IF(Project_Input!$D55="","",Project_Input!B55) -> 142 | C54: =IF(Project_Input!$D55="","",Project_Input!C55) -> REPEX | D54: =IF(Project_Input!$D55="","",Project_Input!D55) -> GRID COMMS Edge Router Replacement (Option 2 - Standards Dev with Proactive Replacement) | E54: =IF(Project_Input!$D55="","",Project_Input!E55) -> Luke A | F54: =IF(Project_Input!$D55="","",Project_Input!F55) -> EECL | G54: =Project_Input!L55 -> 3251133.345 | H54: 602048.2177 | I54: 1634641.26 | J54: 760610.8126 | K54: 463843.8195 | L54: -233615.7625 | M54: 1437712.198 | N54: 108976.084 | O54: 217952.168 | P54: 326928.252 | Q54: 435904.336 | R54: 544880.42 | S54: 544880.42 | T54: 544880.42 | U54: 544880.42 | V54: 544880.42 | W54: 544880.42 | X54: 544880.42 | Y54: 0 | Z54: 0 | AA54: 0 | AB54: 0 | AC54: 0 | AD54: 0 | AE54: 0 | AF54: 0 | AG54: 0 | AH54: 0 | AI54: 0 | AJ54: 0 | AK54: 0 | AL54: 0 | AM54: 0
B55: =IF(Project_Input!$D56="","",Project_Input!B56) -> 143 | C55: =IF(Project_Input!$D56="","",Project_Input!C56) -> REPEX | D55: =IF(Project_Input!$D56="","",Project_Input!D56) -> GRID COMMS Edge Router Replacement (Option 3 - AER proposed) | E55: =IF(Project_Input!$D56="","",Project_Input!E56) -> Luke A | F55: =IF(Project_Input!$D56="","",Project_Input!F56) -> EECL | G55: =Project_Input!L56 -> 4310219.249 | H55: -1930074.857 | I55: 938041.26 | J55: -1959195.186 | K55: -1897108.484 | L55: -2355902.464 | M55: -1504247.25 | N55: 62536.084 | O55: 125072.168 | P55: 187608.252 | Q55: 250144.336 | R55: 312680.42 | S55: 312680.42 | T55: 312680.42 | U55: 312680.42 | V55: 312680.42 | W55: 312680.42 | X55: 312680.42 | Y55: 0 | Z55: 0 | AA55: 0 | AB55: 0 | AC55: 0 | AD55: 0 | AE55: 0 | AF55: 0 | AG55: 0 | AH55: 0 | AI55: 0 | AJ55: 0 | AK55: 0 | AL55: 0 | AM55: 0
B56: =IF(Project_Input!$D57="","",Project_Input!B57) -> 144 | C56: =IF(Project_Input!$D57="","",Project_Input!C57) -> REPEX | D56: =IF(Project_Input!$D57="","",Project_Input!D57) -> GRID COMMS Edge Router Replacement (Option 4 - Wholesale Replace) | E56: =IF(Project_Input!$D57="","",Project_Input!E57) -> Luke A | F56: =IF(Project_Input!$D57="","",Project_Input!F57) -> EECL | G56: =Project_Input!L57 -> 15634021 | H56: -10681785.14 | I56: 1744129.26 | J56: -11110328.9 | K56: -10270517.53 | L56: -11306091.3 | M56: -10057478.98 | N56: 116275.284 | O56: 232550.568 | P56: 348825.852 | Q56: 465101.136 | R56: 581376.42 | S56: 581376.42 | T56: 581376.42 | U56: 581376.42 | V56: 581376.42 | W56: 581376.42 | X56: 581376.42 | Y56: 0 | Z56: 0 | AA56: 0 | AB56: 0 | AC56: 0 | AD56: 0 | AE56: 0 | AF56: 0 | AG56: 0 | AH56: 0 | AI56: 0 | AJ56: 0 | AK56: 0 | AL56: 0 | AM56: 0
B57: =IF(Project_Input!$D58="","",Project_Input!B58) -> 145 | C57: =IF(Project_Input!$D58="","",Project_Input!C58) -> REPEX | D57: =IF(Project_Input!$D58="","",Project_Input!D58) -> GRID COMMS Edge Router Replacement (Option 5 - Reactive replace) | E57: =IF(Project_Input!$D58="","",Project_Input!E58) -> Luke A | F57: =IF(Project_Input!$D58="","",Project_Input!F58) -> EECL | G57: =Project_Input!L58 -> 6624585.359 | H57: -6166631.285 | I57: 0 | J57: -6492126.652 | K57: -5862372.454 | L57: -6021055.051 | M57: -6312207.519 | N57: 0 | O57: 0 | P57: 0 | Q57: 0 | R57: 0 | S57: 0 | T57: 0 | U57: 0 | V57: 0 | W57: 0 | X57: 0 | Y57: 0 | Z57: 0 | AA57: 0 | AB57: 0 | AC57: 0 | AD57: 0 | AE57: 0 | AF57: 0 | AG57: 0 | AH57: 0 | AI57: 0 | AJ57: 0 | AK57: 0 | AL57: 0 | AM57: 0
B58: =IF(Project_Input!$D59="","",Project_Input!B59) -> 441 | C58: =IF(Project_Input!$D59="","",Project_Input!C59) -> REPEX | D58: =IF(Project_Input!$D59="","",Project_Input!D59) -> GRID COMMS Core IP MPLS Ethernet Replacements (Option 1 - Multi-faceted proactive approach) Preferred | E58: =IF(Project_Input!$D59="","",Project_Input!E59) -> Luke A | F58: =IF(Project_Input!$D59="","",Project_Input!F59) -> EECL | G58: =Project_Input!L59 -> 1358073.168 | H58: 95932.88666 | I58: 347193.8853 | J58: 141095.2099 | K58: 57533.86793 | L58: -200545.3629 | M58: 392411.1362 | N58: 0 | O58: 0 | P58: 21699.61783 | Q58: 108498.0892 | R58: 216996.1783 | S58: 216996.1783 | T58: 216996.1783 | U58: 216996.1783 | V58: 216996.1783 | W58: 216996.1783 | X58: 216996.1783 | Y58: 0 | Z58: 0 | AA58: 0 | AB58: 0 | AC58: 0 | AD58: 0 | AE58: 0 | AF58: 0 | AG58: 0 | AH58: 0 | AI58: 0 | AJ58: 0 | AK58: 0 | AL58: 0 | AM58: 0
B59: =IF(Project_Input!$D60="","",Project_Input!B60) -> 442 | C59: =IF(Project_Input!$D60="","",Project_Input!C60) -> REPEX | D59: =IF(Project_Input!$D60="","",Project_Input!D60) -> GRID COMMS Core IP MPLS Ethernet Replacements (Option 2 - AER proposed) | E59: =IF(Project_Input!$D60="","",Project_Input!E60) -> Luke A | F59: =IF(Project_Input!$D60="","",Project_Input!F60) -> EECL | G59: =Project_Input!L60 -> 855585.99 | H59: -267292.1032 | I59: 122784.2853 | J59: -270590.2033 | K59: -262941.3879 | L59: -372140.9255 | M59: -162443.2809 | N59: 0 | O59: 0 | P59: 7674.017832 | Q59: 38370.08916 | R59: 76740.17832 | S59: 76740.17832 | T59: 76740.17832 | U59: 76740.17832 | V59: 76740.17832 | W59: 76740.17832 | X59: 76740.17832 | Y59: 0 | Z59: 0 | AA59: 0 | AB59: 0 | AC59: 0 | AD59: 0 | AE59: 0 | AF59: 0 | AG59: 0 | AH59: 0 | AI59: 0 | AJ59: 0 | AK59: 0 | AL59: 0 | AM59: 0
B60: =IF(Project_Input!$D61="","",Project_Input!B61) -> 443 | C60: =IF(Project_Input!$D61="","",Project_Input!C61) -> REPEX | D60: =IF(Project_Input!$D61="","",Project_Input!D61) -> GRID COMMS Core IP MPLS Ethernet Replacements (Option 3 - Reactive Replace) | E60: =IF(Project_Input!$D61="","",Project_Input!E61) -> Luke A | F60: =IF(Project_Input!$D61="","",Project_Input!F61) -> EECL | G60: =Project_Input!L61 -> 905382 | H60: -763209.8302 | I60: 0 | J60: -800713.7839 | K60: -727933.1567 | L60: -763209.8302 | M60: -763209.8302 | N60: 0 | O60: 0 | P60: 0 | Q60: 0 | R60: 0 | S60: 0 | T60: 0 | U60: 0 | V60: 0 | W60: 0 | X60: 0 | Y60: 0 | Z60: 0 | AA60: 0 | AB60: 0 | AC60: 0 | AD60: 0 | AE60: 0 | AF60: 0 | AG60: 0 | AH60: 0 | AI60: 0 | AJ60: 0 | AK60: 0 | AL60: 0 | AM60: 0
B61: =IF(Project_Input!$D62="","",Project_Input!B62) -> 181 | C61: =IF(Project_Input!$D62="","",Project_Input!C62) -> REPEX | D61: =IF(Project_Input!$D62="","",Project_Input!D62) -> GRID COMMS Operational Voice Replacements (Option 1 - Multi-faceted) Preferred | E61: =IF(Project_Input!$D62="","",Project_Input!E62) -> Luke A | F61: =IF(Project_Input!$D62="","",Project_Input!F62) -> EECL | G61: =Project_Input!L62 -> 2029990.644 | H61: 81504.75121 | I61: 615933.12 | J61: 134482.0911 | K61: 36391.66293 | L61: -346185.5394 | M61: 509195.0418 | N61: 0 | O61: 0 | P61: 38495.82 | Q61: 192479.1 | R61: 384958.2 | S61: 384958.2 | T61: 384958.2 | U61: 384958.2 | V61: 384958.2 | W61: 384958.2 | X61: 0 | Y61: 0 | Z61: 0 | AA61: 0 | AB61: 0 | AC61: 0 | AD61: 0 | AE61: 0 | AF61: 0 | AG61: 0 | AH61: 0 | AI61: 0 | AJ61: 0 | AK61: 0 | AL61: 0 | AM61: 0
B62: =IF(Project_Input!$D63="","",Project_Input!B63) -> 182 | C62: =IF(Project_Input!$D63="","",Project_Input!C63) -> REPEX | D62: =IF(Project_Input!$D63="","",Project_Input!D63) -> GRID COMMS Operational Voice Replacements (Option 2 - AER proposed) | E62: =IF(Project_Input!$D63="","",Project_Input!E63) -> Luke A | F62: =IF(Project_Input!$D63="","",Project_Input!F63) -> EECL | G62: =Project_Input!L63 -> 1278894.106 | H62: -204885.0836 | I62: 333775.68 | J62: -195055.0364 | K62: -212023.4704 | L62: -410271.6992 | M62: 501.5320374 | N62: 0 | O62: 0 | P62: 20860.98 | Q62: 104304.9 | R62: 208609.8 | S62: 208609.8 | T62: 208609.8 | U62: 208609.8 | V62: 208609.8 | W62: 208609.8 | X62: 0 | Y62: 0 | Z62: 0 | AA62: 0 | AB62: 0 | AC62: 0 | AD62: 0 | AE62: 0 | AF62: 0 | AG62: 0 | AH62: 0 | AI62: 0 | AJ62: 0 | AK62: 0 | AL62: 0 | AM62: 0
B63: =IF(Project_Input!$D64="","",Project_Input!B64) -> 183 | C63: =IF(Project_Input!$D64="","",Project_Input!C64) -> REPEX | D63: =IF(Project_Input!$D64="","",Project_Input!D64) -> GRID COMMS Operational Voice Replacements (Option 3 - Reactive replace) | E63: =IF(Project_Input!$D64="","",Project_Input!E64) -> Luke A | F63: =IF(Project_Input!$D64="","",Project_Input!F64) -> EECL | G63: =Project_Input!L64 -> 3759982 | H63: -3509063.036 | I63: 0 | J63: -3692910.071 | K63: -3337037.919 | L63: -3424185.233 | M63: -3593940.839 | N63: 0 | O63: 0 | P63: 0 | Q63: 0 | R63: 0 | S63: 0 | T63: 0 | U63: 0 | V63: 0 | W63: 0 | X63: 0 | Y63: 0 | Z63: 0 | AA63: 0 | AB63: 0 | AC63: 0 | AD63: 0 | AE63: 0 | AF63: 0 | AG63: 0 | AH63: 0 | AI63: 0 | AJ63: 0 | AK63: 0 | AL63: 0 | AM63: 0
B64: =IF(Project_Input!$D65="","",Project_Input!B65) -> 391 | C64: =IF(Project_Input!$D65="","",Project_Input!C65) -> REPEX | D64: =IF(Project_Input!$D65="","",Project_Input!D65) -> GRID COMMS DC Systems Replacements (Option 1 Preferred) | E64: =IF(Project_Input!$D65="","",Project_Input!E65) -> Brad S | F64: =IF(Project_Input!$D65="","",Project_Input!F65) -> EECL | G64: =Project_Input!L65 -> 4938125 | H64: 82489.36579 | I64: 1529719.3 | J64: 283533.0377 | K64: -88817.3489 | L64: -1018238.21 | M64: 1228282.649 | N64: 60192.1 | O64: 181074.636 | P64: 303452.18 | Q64: 428321.404 | R64: 556678.98 | S64: 622477.36 | T64: 622477.36 | U64: 622477.36 | V64: 622477.36 | W64: 622477.36 | X64: 622477.36 | Y64: 622477.36 | Z64: 0 | AA64: 0 | AB64: 0 | AC64: 0 | AD64: 0 | AE64: 0 | AF64: 0 | AG64: 0 | AH64: 0 | AI64: 0 | AJ64: 0 | AK64: 0 | AL64: 0 | AM64: 0
B65: =IF(Project_Input!$D66="","",Project_Input!B66) -> 392 | C65: =IF(Project_Input!$D66="","",Project_Input!C66) -> REPEX | D65: =IF(Project_Input!$D66="","",Project_Input!D66) -> GRID COMMS DC Systems Replacements (Option 2 AER proposed) | E65: =IF(Project_Input!$D66="","",Project_Input!E66) -> Mel M | F65: =IF(Project_Input!$D66="","",Project_Input!F66) -> EECL | G65: =Project_Input!L66 -> 7610696.75 | H65: 28187.82631 | I65: 2331490.825 | J65: 328078.2754 | K65: -226925.6235 | L65: -1622188.777 | M65: 1723630.137 | N65: 92262.961 | O65: 277287.219 | P65: 463806.485 | Q65: 652817.431 | R65: 845316.729 | S65: 943185.97 | T65: 943185.97 | U65: 943185.97 | V65: 943185.97 | W65: 943185.97 | X65: 943185.97 | Y65: 943185.97 | Z65: 0 | AA65: 0 | AB65: 0 | AC65: 0 | AD65: 0 | AE65: 0 | AF65: 0 | AG65: 0 | AH65: 0 | AI65: 0 | AJ65: 0 | AK65: 0 | AL65: 0 | AM65: 0
B66: =IF(Project_Input!$D67="","",Project_Input!B67) -> 393 | C66: =IF(Project_Input!$D67="","",Project_Input!C67) -> REPEX | D66: =IF(Project_Input!$D67="","",Project_Input!D67) -> GRID COMMS DC Systems Replacements (Option 3) | E66: =IF(Project_Input!$D67="","",Project_Input!E67) -> Mel M | F66: =IF(Project_Input!$D67="","",Project_Input!F67) -> EECL | G66: =Project_Input!L67 -> 9660133 | H66: -13452.79323 | I66: 2946321.7 | J66: 362237.3677 | K66: -332832.6415 | L66: -2085322.53 | M66: 2103482.652 | N66: 116856.196 | O66: 351066.924 | P66: 586772.66 | Q66: 824970.076 | R66: 1066655.844 | S66: 1189118.32 | T66: 1189118.32 | U66: 1189118.32 | V66: 1189118.32 | W66: 1189118.32 | X66: 1189118.32 | Y66: 1189118.32 | Z66: 0 | AA66: 0 | AB66: 0 | AC66: 0 | AD66: 0 | AE66: 0 | AF66: 0 | AG66: 0 | AH66: 0 | AI66: 0 | AJ66: 0 | AK66: 0 | AL66: 0 | AM66: 0
B67: =IF(Project_Input!$D68="","",Project_Input!B68) -> 394 | C67: =IF(Project_Input!$D68="","",Project_Input!C68) -> REPEX | D67: =IF(Project_Input!$D68="","",Project_Input!D68) -> GRID COMMS DC Systems Replacements (Option 4 - Reactive replace) | E67: =IF(Project_Input!$D68="","",Project_Input!E68) -> Mel M | F67: =IF(Project_Input!$D68="","",Project_Input!F68) -> EECL | G67: =Project_Input!L68 -> 9903278 | H67: -4091868.049 | I67: 1533773.5 | J67: -4095438.017 | K67: -4070666.326 | L67: -5195374.953 | M67: -2943295.436 | N67: 60354.268 | O67: 181561.14 | P67: 304263.02 | Q67: 429456.58 | R67: 558138.492 | S67: 624099.04 | T67: 624099.04 | U67: 624099.04 | V67: 624099.04 | W67: 624099.04 | X67: 624099.04 | Y67: 624099.04 | Z67: 0 | AA67: 0 | AB67: 0 | AC67: 0 | AD67: 0 | AE67: 0 | AF67: 0 | AG67: 0 | AH67: 0 | AI67: 0 | AJ67: 0 | AK67: 0 | AL67: 0 | AM67: 0
B68: =IF(Project_Input!$D69="","",Project_Input!B69) -> 561 | C68: =IF(Project_Input!$D69="","",Project_Input!C69) -> AuGEX | D68: =IF(Project_Input!$D69="","",Project_Input!D69) -> GRID COMMS Reliability Core MPLS (Option 1A - Original) | E68: =IF(Project_Input!$D69="","",Project_Input!E69) -> Troy W | F68: =IF(Project_Input!$D69="","",Project_Input!F69) -> EECL | G68: =Project_Input!L69 -> 2644515 | H68: -7818.725286 | I68: 1323766.35 | J68: 57308.70022 | K68: -64277.34614 | L68: -651768.2241 | M68: 737379.3586 | N68: 81274.386 | O68: 165538.788 | P68: 255783.222 | Q68: 354997.704 | R68: 466172.25 | S68: 466172.25 | T68: 466172.25 | U68: 466172.25 | V68: 466172.25 | W68: 0 | X68: 0 | Y68: 0 | Z68: 0 | AA68: 0 | AB68: 0 | AC68: 0 | AD68: 0 | AE68: 0 | AF68: 0 | AG68: 0 | AH68: 0 | AI68: 0 | AJ68: 0 | AK68: 0 | AL68: 0 | AM68: 0
B69: =IF(Project_Input!$D70="","",Project_Input!B70) -> 562 | C69: =IF(Project_Input!$D70="","",Project_Input!C70) -> AuGEX | D69: =IF(Project_Input!$D70="","",Project_Input!D70) -> GRID COMMS Reliability Core MPLS (Option 1B - Preferred Multi-Technology) | E69: =IF(Project_Input!$D70="","",Project_Input!E70) -> Troy W | F69: =IF(Project_Input!$D70="","",Project_Input!F70) -> EECL | G69: =Project_Input!L70 -> 1623000 | H69: 70922.71192 | I69: 864084.6 | J69: 117564.2675 | K69: 30213.04426 | L69: -377435.5363 | M69: 620529.5452 | N69: 50628.936 | O69: 104247.888 | P69: 163846.872 | Q69: 232415.904 | R69: 312945 | S69: 312945 | T69: 312945 | U69: 312945 | V69: 312945 | W69: 0 | X69: 0 | Y69: 0 | Z69: 0 | AA69: 0 | AB69: 0 | AC69: 0 | AD69: 0 | AE69: 0 | AF69: 0 | AG69: 0 | AH69: 0 | AI69: 0 | AJ69: 0 | AK69: 0 | AL69: 0 | AM69: 0
B70: =IF(Project_Input!$D71="","",Project_Input!B71) -> 563 | C70: =IF(Project_Input!$D71="","",Project_Input!C71) -> AuGEX | D70: =IF(Project_Input!$D71="","",Project_Input!D71) -> GRID COMMS Reliability Core MPLS (Option 1C - Expanded program) | E70: =IF(Project_Input!$D71="","",Project_Input!E71) -> Troy W | F70: =IF(Project_Input!$D71="","",Project_Input!F71) -> EECL | G70: =Project_Input!L71 -> 9987000 | H70: -2224070.51 | I70: 4627884.6 | J70: -2154318.222 | K70: -2276555.26 | L70: -3861330.599 | M70: -485561.8349 | N70: 301548.936 | O70: 606087.888 | P70: 916606.872 | Q70: 1236095.904 | R70: 1567545 | S70: 1567545 | T70: 1567545 | U70: 1567545 | V70: 1567545 | W70: 0 | X70: 0 | Y70: 0 | Z70: 0 | AA70: 0 | AB70: 0 | AC70: 0 | AD70: 0 | AE70: 0 | AF70: 0 | AG70: 0 | AH70: 0 | AI70: 0 | AJ70: 0 | AK70: 0 | AL70: 0 | AM70: 0
B71: =IF(Project_Input!$D72="","",Project_Input!B72) -> 564 | C71: =IF(Project_Input!$D72="","",Project_Input!C72) -> AuGEX | D71: =IF(Project_Input!$D72="","",Project_Input!D72) -> GRID COMMS Reliability Core MPLS (Option 3 - Do Nothing) | E71: =IF(Project_Input!$D72="","",Project_Input!E72) -> Troy W | F71: =IF(Project_Input!$D72="","",Project_Input!F72) -> EECL | G71: =Project_Input!L72 -> 2805000 | H71: -2364530.704 | I71: 0 | J71: -2480723.195 | K71: -2255238.638 | L71: -2364530.704 | M71: -2364530.704 | N71: 0 | O71: 0 | P71: 0 | Q71: 0 | R71: 0 | S71: 0 | T71: 0 | U71: 0 | V71: 0 | W71: 0 | X71: 0 | Y71: 0 | Z71: 0 | AA71: 0 | AB71: 0 | AC71: 0 | AD71: 0 | AE71: 0 | AF71: 0 | AG71: 0 | AH71: 0 | AI71: 0 | AJ71: 0 | AK71: 0 | AL71: 0 | AM71: 0
B72: =IF(Project_Input!$D73="","",Project_Input!B73) -> 511 | C72: =IF(Project_Input!$D73="","",Project_Input!C73) -> AuGEX | D72: =IF(Project_Input!$D73="","",Project_Input!D73) -> GRID COMMS Reliability Edge Backhaul (Option 1A - Original) | E72: =IF(Project_Input!$D73="","",Project_Input!E73) -> Troy W | F72: =IF(Project_Input!$D73="","",Project_Input!F73) -> EECL | G72: =Project_Input!L73 -> 1818104 | H72: 76197.9707 | I72: 884986.2 | J72: 131004.1612 | K72: 28384.7555 | L72: -547484.562 | M72: 953001.9661 | N72: 41557.32 | O72: 90589.68 | P72: 154572.12 | Q72: 240979.68 | R72: 357287.4 | S72: 357287.4 | T72: 357287.4 | U72: 357287.4 | V72: 357287.4 | W72: 0 | X72: 0 | Y72: 0 | Z72: 0 | AA72: 0 | AB72: 0 | AC72: 0 | AD72: 0 | AE72: 0 | AF72: 0 | AG72: 0 | AH72: 0 | AI72: 0 | AJ72: 0 | AK72: 0 | AL72: 0 | AM72: 0
B73: =IF(Project_Input!$D74="","",Project_Input!B74) -> 512 | C73: =IF(Project_Input!$D74="","",Project_Input!C74) -> AuGEX | D73: =IF(Project_Input!$D74="","",Project_Input!D74) -> GRID COMMS Reliability Edge Backhaul (Option 1B - Preferred Multi Tech) | E73: =IF(Project_Input!$D74="","",Project_Input!E74) -> Troy W | F73: =IF(Project_Input!$D74="","",Project_Input!F74) -> EECL | G73: =Project_Input!L74 -> 1489000 | H73: 123960.5302 | I73: 786255 | J73: 174551.4204 | K73: 79631.12768 | L73: -442306.4475 | M73: 943348.9706 | N73: 34975.24 | O73: 77425.52 | P73: 134825.88 | Q73: 214651.36 | R73: 324377 | S73: 324377 | T73: 324377 | U73: 324377 | V73: 324377 | W73: 0 | X73: 0 | Y73: 0 | Z73: 0 | AA73: 0 | AB73: 0 | AC73: 0 | AD73: 0 | AE73: 0 | AF73: 0 | AG73: 0 | AH73: 0 | AI73: 0 | AJ73: 0 | AK73: 0 | AL73: 0 | AM73: 0
B74: =IF(Project_Input!$D75="","",Project_Input!B75) -> 513 | C74: =IF(Project_Input!$D75="","",Project_Input!C75) -> AuGEX | D74: =IF(Project_Input!$D75="","",Project_Input!D75) -> GRID COMMS Reliability Edge Backhaul (Option 1C - Expanded scope) | E74: =IF(Project_Input!$D75="","",Project_Input!E75) -> Troy W | F74: =IF(Project_Input!$D75="","",Project_Input!F75) -> EECL | G74: =Project_Input!L75 -> 4006000 | H74: -1319039.26 | I74: 1541355 | J74: -1319962.364 | K74: -1313491.96 | L74: -2054995.126 | M74: -329961.9318 | N74: 85315.24 | O74: 178105.52 | P74: 285845.88 | Q74: 416011.36 | R74: 576077 | S74: 576077 | T74: 576077 | U74: 576077 | V74: 576077 | W74: 0 | X74: 0 | Y74: 0 | Z74: 0 | AA74: 0 | AB74: 0 | AC74: 0 | AD74: 0 | AE74: 0 | AF74: 0 | AG74: 0 | AH74: 0 | AI74: 0 | AJ74: 0 | AK74: 0 | AL74: 0 | AM74: 0
B75: =IF(Project_Input!$D76="","",Project_Input!B76) -> 514 | C75: =IF(Project_Input!$D76="","",Project_Input!C76) -> AuGEX | D75: =IF(Project_Input!$D76="","",Project_Input!D76) -> GRID COMMS Reliability Edge Backhaul (Option 2 - Sat/Cell) | E75: =IF(Project_Input!$D76="","",Project_Input!E76) -> Troy W | F75: =IF(Project_Input!$D76="","",Project_Input!F76) -> EECL | G75: =Project_Input!L76 -> 587500 | H75: 2247.610974 | I75: 515805 | J75: 21665.38353 | K75: -14607.0653 | L75: -343606.7865 | M75: 601223.4711 | N75: 16945.24 | O75: 41365.52 | P75: 80735.88 | Q75: 142531.36 | R75: 234227 | S75: 234227 | T75: 234227 | U75: 234227 | V75: 234227 | W75: 0 | X75: 0 | Y75: 0 | Z75: 0 | AA75: 0 | AB75: 0 | AC75: 0 | AD75: 0 | AE75: 0 | AF75: 0 | AG75: 0 | AH75: 0 | AI75: 0 | AJ75: 0 | AK75: 0 | AL75: 0 | AM75: 0
B76: =IF(Project_Input!$D77="","",Project_Input!B77) -> 515 | C76: =IF(Project_Input!$D77="","",Project_Input!C77) -> AuGEX | D76: =IF(Project_Input!$D77="","",Project_Input!D77) -> GRID COMMS Reliability Edge Backhaul (Option 3 - Do Nothing) | E76: =IF(Project_Input!$D77="","",Project_Input!E77) -> Troy W | F76: =IF(Project_Input!$D77="","",Project_Input!F77) -> EECL | G76: =Project_Input!L77 -> 11475000 | H76: -9673080.092 | I76: 0 | J76: -10148413.01 | K76: -9225976.19 | L76: -9673080.092 | M76: -9673080.092 | N76: 0 | O76: 0 | P76: 0 | Q76: 0 | R76: 0 | S76: 0 | T76: 0 | U76: 0 | V76: 0 | W76: 0 | X76: 0 | Y76: 0 | Z76: 0 | AA76: 0 | AB76: 0 | AC76: 0 | AD76: 0 | AE76: 0 | AF76: 0 | AG76: 0 | AH76: 0 | AI76: 0 | AJ76: 0 | AK76: 0 | AL76: 0 | AM76: 0
B77: =IF(Project_Input!$D78="","",Project_Input!B78) ->  | C77: =IF(Project_Input!$D78="","",Project_Input!C78) ->  | D77: =IF(Project_Input!$D78="","",Project_Input!D78) ->  | E77: =IF(Project_Input!$D78="","",Project_Input!E78) ->  | F77: =IF(Project_Input!$D78="","",Project_Input!F78) ->  | G77: =Project_Input!L78 -> 0
B78: =IF(Project_Input!$D79="","",Project_Input!B79) ->  | C78: =IF(Project_Input!$D79="","",Project_Input!C79) ->  | D78: =IF(Project_Input!$D79="","",Project_Input!D79) ->  | E78: =IF(Project_Input!$D79="","",Project_Input!E79) ->  | F78: =IF(Project_Input!$D79="","",Project_Input!F79) ->  | G78: =Project_Input!L79 -> 0
B79: =IF(Project_Input!$D80="","",Project_Input!B80) ->  | C79: =IF(Project_Input!$D80="","",Project_Input!C80) ->  | D79: =IF(Project_Input!$D80="","",Project_Input!D80) ->  | E79: =IF(Project_Input!$D80="","",Project_Input!E80) ->  | F79: =IF(Project_Input!$D80="","",Project_Input!F80) ->  | G79: =Project_Input!L80 -> 0
B80: =IF(Project_Input!$D81="","",Project_Input!B81) ->  | C80: =IF(Project_Input!$D81="","",Project_Input!C81) ->  | D80: =IF(Project_Input!$D81="","",Project_Input!D81) ->  | E80: =IF(Project_Input!$D81="","",Project_Input!E81) ->  | F80: =IF(Project_Input!$D81="","",Project_Input!F81) ->  | G80: =Project_Input!L81 -> 0
B81: =IF(Project_Input!$D82="","",Project_Input!B82) ->  | C81: =IF(Project_Input!$D82="","",Project_Input!C82) ->  | D81: =IF(Project_Input!$D82="","",Project_Input!D82) ->  | E81: =IF(Project_Input!$D82="","",Project_Input!E82) ->  | F81: =IF(Project_Input!$D82="","",Project_Input!F82) ->  | G81: =Project_Input!L82 -> 0
B82: =IF(Project_Input!$D83="","",Project_Input!B83) ->  | C82: =IF(Project_Input!$D83="","",Project_Input!C83) ->  | D82: =IF(Project_Input!$D83="","",Project_Input!D83) ->  | E82: =IF(Project_Input!$D83="","",Project_Input!E83) ->  | F82: =IF(Project_Input!$D83="","",Project_Input!F83) ->  | G82: =Project_Input!L83 -> 0
B83: =IF(Project_Input!$D84="","",Project_Input!B84) ->  | C83: =IF(Project_Input!$D84="","",Project_Input!C84) ->  | D83: =IF(Project_Input!$D84="","",Project_Input!D84) ->  | E83: =IF(Project_Input!$D84="","",Project_Input!E84) ->  | F83: =IF(Project_Input!$D84="","",Project_Input!F84) ->  | G83: =Project_Input!L84 -> 0
B84: =IF(Project_Input!$D85="","",Project_Input!B85) ->  | C84: =IF(Project_Input!$D85="","",Project_Input!C85) ->  | D84: =IF(Project_Input!$D85="","",Project_Input!D85) ->  | E84: =IF(Project_Input!$D85="","",Project_Input!E85) ->  | F84: =IF(Project_Input!$D85="","",Project_Input!F85) ->  | G84: =Project_Input!L85 -> 0
B85: =IF(Project_Input!$D86="","",Project_Input!B86) ->  | C85: =IF(Project_Input!$D86="","",Project_Input!C86) ->  | D85: =IF(Project_Input!$D86="","",Project_Input!D86) ->  | E85: =IF(Project_Input!$D86="","",Project_Input!E86) ->  | F85: =IF(Project_Input!$D86="","",Project_Input!F86) ->  | G85: =Project_Input!L86 -> 0
B86: =IF(Project_Input!$D87="","",Project_Input!B87) ->  | C86: =IF(Project_Input!$D87="","",Project_Input!C87) ->  | D86: =IF(Project_Input!$D87="","",Project_Input!D87) ->  | E86: =IF(Project_Input!$D87="","",Project_Input!E87) ->  | F86: =IF(Project_Input!$D87="","",Project_Input!F87) ->  | G86: =Project_Input!L87 -> 0
B87: =IF(Project_Input!$D88="","",Project_Input!B88) ->  | C87: =IF(Project_Input!$D88="","",Project_Input!C88) ->  | D87: =IF(Project_Input!$D88="","",Project_Input!D88) ->  | E87: =IF(Project_Input!$D88="","",Project_Input!E88) ->  | F87: =IF(Project_Input!$D88="","",Project_Input!F88) ->  | G87: =Project_Input!L88 -> 0
B88: =IF(Project_Input!$D89="","",Project_Input!B89) ->  | C88: =IF(Project_Input!$D89="","",Project_Input!C89) ->  | D88: =IF(Project_Input!$D89="","",Project_Input!D89) ->  | E88: =IF(Project_Input!$D89="","",Project_Input!E89) ->  | F88: =IF(Project_Input!$D89="","",Project_Input!F89) ->  | G88: =Project_Input!L89 -> 0
B89: =IF(Project_Input!$D90="","",Project_Input!B90) ->  | C89: =IF(Project_Input!$D90="","",Project_Input!C90) ->  | D89: =IF(Project_Input!$D90="","",Project_Input!D90) ->  | E89: =IF(Project_Input!$D90="","",Project_Input!E90) ->  | F89: =IF(Project_Input!$D90="","",Project_Input!F90) ->  | G89: =Project_Input!L90 -> 0
B90: =IF(Project_Input!$D91="","",Project_Input!B91) ->  | C90: =IF(Project_Input!$D91="","",Project_Input!C91) ->  | D90: =IF(Project_Input!$D91="","",Project_Input!D91) ->  | E90: =IF(Project_Input!$D91="","",Project_Input!E91) ->  | F90: =IF(Project_Input!$D91="","",Project_Input!F91) ->  | G90: =Project_Input!L91 -> 0
B91: =IF(Project_Input!$D92="","",Project_Input!B92) ->  | C91: =IF(Project_Input!$D92="","",Project_Input!C92) ->  | D91: =IF(Project_Input!$D92="","",Project_Input!D92) ->  | E91: =IF(Project_Input!$D92="","",Project_Input!E92) ->  | F91: =IF(Project_Input!$D92="","",Project_Input!F92) ->  | G91: =Project_Input!L92 -> 0
B92: =IF(Project_Input!$D93="","",Project_Input!B93) ->  | C92: =IF(Project_Input!$D93="","",Project_Input!C93) ->  | D92: =IF(Project_Input!$D93="","",Project_Input!D93) ->  | E92: =IF(Project_Input!$D93="","",Project_Input!E93) ->  | F92: =IF(Project_Input!$D93="","",Project_Input!F93) ->  | G92: =Project_Input!L93 -> 0
B93: =IF(Project_Input!$D99="","",Project_Input!B99) ->  | C93: =IF(Project_Input!$D99="","",Project_Input!C99) ->  | D93: =IF(Project_Input!$D99="","",Project_Input!D99) ->  | E93: =IF(Project_Input!$D99="","",Project_Input!E99) ->  | F93: =IF(Project_Input!$D99="","",Project_Input!F99) ->  | G93: =Project_Input!L99 -> 0
B94: =IF(Project_Input!$D100="","",Project_Input!B100) ->  | C94: =IF(Project_Input!$D100="","",Project_Input!C100) ->  | D94: =IF(Project_Input!$D100="","",Project_Input!D100) ->  | E94: =IF(Project_Input!$D100="","",Project_Input!E100) ->  | F94: =IF(Project_Input!$D100="","",Project_Input!F100) ->  | G94: =Project_Input!L100 -> 0
B95: =IF(Project_Input!$D101="","",Project_Input!B101) ->  | C95: =IF(Project_Input!$D101="","",Project_Input!C101) ->  | D95: =IF(Project_Input!$D101="","",Project_Input!D101) ->  | E95: =IF(Project_Input!$D101="","",Project_Input!E101) ->  | F95: =IF(Project_Input!$D101="","",Project_Input!F101) ->  | G95: =Project_Input!L101 -> 0
B96: =IF(Project_Input!$D102="","",Project_Input!B102) ->  | C96: =IF(Project_Input!$D102="","",Project_Input!C102) ->  | D96: =IF(Project_Input!$D102="","",Project_Input!D102) ->  | E96: =IF(Project_Input!$D102="","",Project_Input!E102) ->  | F96: =IF(Project_Input!$D102="","",Project_Input!F102) ->  | G96: =Project_Input!L102 -> 0
B97: =IF(Project_Input!$D103="","",Project_Input!B103) ->  | C97: =IF(Project_Input!$D103="","",Project_Input!C103) ->  | D97: =IF(Project_Input!$D103="","",Project_Input!D103) ->  | E97: =IF(Project_Input!$D103="","",Project_Input!E103) ->  | F97: =IF(Project_Input!$D103="","",Project_Input!F103) ->  | G97: =Project_Input!L103 -> 0
G98: =SUBTOTAL(9,G5:G84) -> 432530865.7 | H98: =SUBTOTAL(9,H5:H84) -> -168822391.1 | I98: 96465080.14 | J98: -168864862.9 | K98: -168009309.6 | L98: -218406257.5 | M98: -117407117.8 | N98: 5174288.188 | O98: 12175433.49 | P98: 19234682.35 | Q98: 26330562.03 | R98: 33550114.08 | S98: 33902204.73 | T98: 33902204.73 | U98: 33902204.73 | V98: 32863057.07 | W98: 20196787.26 | X98: 15413782.86 | Y98: 13103972.82 | Z98: 9725092.131 | AA98: 9473348.131 | AB98: 1569087.491 | AC98: 1569087.491 | AD98: 1569087.491 | AE98: 0 | AF98: 0 | AG98: 0 | AH98: 0 | AI98: 0 | AJ98: 0 | AK98: 0 | AL98: 0 | AM98: 0

Sheet Sensitivity
B2: NPV (Base Case) | E2: =NPV_1 -> 860541.3153 | N2: Base Case)
B4: NPV Sensitivity Analysis | F4: Project Index | G4: =Index_1 -> 361 | I4: Project Name | J4: =DCF!C4 -> GRID COMMS AC Systems Replacements (Option1 - Risk based program) Preferred
D5: WACC Sensitivity
D6: =Hidden!H12 -> 0.01 | E6: =Hidden!I12 -> 0.015 | F6: =Hidden!J12 -> 0.02 | G6: =Hidden!K12 -> 0.025 | H6: =Hidden!L12 -> 0.03 | I6: =Hidden!M12 -> 0.035 | J6: =Hidden!N12 -> 0.04 | K6: =Hidden!O12 -> 0.045 | L6: =Hidden!P12 -> 0.05 | M6: =Hidden!Q12 -> 0.055 | N6: =Hidden!R12 -> 0.06
B7: Benefit Sensitivity | C7: =Hidden!G13 -> 1.25 | D7: =Hidden!H13 -> 3353376.103 | E7: =Hidden!I13 -> 3035987.376 | F7: =Hidden!J13 -> 2744020.51 | G7: =Hidden!K13 -> 2475368.23 | H7: =Hidden!L13 -> 2228108.961 | I7: =Hidden!M13 -> 2000489.415 | J7: =Hidden!N13 -> 1790908.917 | K7: =Hidden!O13 -> 1597905.272 | L7: =Hidden!P13 -> 1420142.022 | M7: =Hidden!Q13 -> 1256396.942 | N7: =Hidden!R13 -> 1105551.653
C8: =Hidden!G14 -> 1.2 | D8: =Hidden!H14 -> 3051269.564 | E8: =Hidden!I14 -> 2750810.561 | F8: =Hidden!J14 -> 2474621.057 | G8: =Hidden!K14 -> 2220683.283 | H8: =Hidden!L14 -> 1987157.504 | I8: =Hidden!M14 -> 1772365.318 | J8: =Hidden!N14 -> 1574774.621 | K8: =Hidden!O14 -> 1392986.051 | L8: =Hidden!P14 -> 1225720.762 | M8: =Hidden!Q14 -> 1071809.39 | N8: =Hidden!R14 -> 930182.0938
C9: =Hidden!G15 -> 1.15 | D9: =Hidden!H15 -> 2749257.118 | E9: =Hidden!I15 -> 2465722.352 | F9: =Hidden!J15 -> 2205305.102 | G9: =Hidden!K15 -> 1966077.075 | H9: =Hidden!L15 -> 1746280.348 | I9: =Hidden!M15 -> 1544311.382 | J9: =Hidden!N15 -> 1358706.623 | K9: =Hidden!O15 -> 1188129.517 | L9: =Hidden!P15 -> 1031358.813 | M9: =Hidden!Q15 -> 887277.992 | N9: =Hidden!R15 -> 754865.7323
C10: =Hidden!G16 -> 1.1 | D10: =Hidden!H16 -> 2447334.844 | E10: =Hidden!I16 -> 2180719.056 | F10: =Hidden!J16 -> 1936069.166 | G10: =Hidden!K16 -> 1711546.324 | H10: =Hidden!L16 -> 1505474.398 | I10: =Hidden!M16 -> 1316324.686 | J10: =Hidden!N16 -> 1142702.16 | K10: =Hidden!O16 -> 983333.0587 | L10: =Hidden!P16 -> 837053.7045 | M10: =Hidden!Q16 -> 702800.4074 | N10: =Hidden!R16 -> 579600.3516
C11: =Hidden!G17 -> 1.05 | D11: =Hidden!H17 -> 2145498.821 | E11: =Hidden!I17 -> 1895796.982 | F11: =Hidden!J17 -> 1666909.768 | G11: =Hidden!K17 -> 1457087.751 | H11: =Hidden!L17 -> 1264736.557 | I11: =Hidden!M17 -> 1088402.305 | J11: =Hidden!N17 -> 926758.4693 | K11: =Hidden!O17 -> 778594.063 | L11: =Hidden!P17 -> 642802.9648 | M11: =Hidden!Q17 -> 518374.2971 | N11: =Hidden!R17 -> 404383.7351
C12: =Hidden!G18 -> 1 | D12: =Hidden!H18 -> 1843745.13 | E12: =Hidden!I18 -> 1610952.438 | F12: =Hidden!J18 -> 1397823.431 | G12: =Hidden!K18 -> 1202698.073 | H12: =Hidden!L18 -> 1024063.731 | I12: =Hidden!M18 -> 860541.3153 | J12: =Hidden!N18 -> 710872.7894 | K12: =Hidden!O18 -> 573909.9185 | L12: =Hidden!P18 -> 448604.1226 | M12: =Hidden!Q18 -> 333997.3211 | N12: =Hidden!R18 -> 229213.6661
C13: =Hidden!G19 -> 0.95 | D13: =Hidden!H19 -> 1542069.849 | E13: =Hidden!I19 -> 1326181.732 | F13: =Hidden!J19 -> 1128806.676 | G13: =Hidden!K19 -> 948374.0104 | H13: =Hidden!L19 -> 783452.8224 | I13: =Hidden!M19 -> 632738.7944 | J13: =Hidden!N19 -> 495042.3574 | K13: =Hidden!O19 -> 369278.0132 | L13: =Hidden!P19 -> 254454.7067 | M13: =Hidden!Q19 -> 149667.1398 | N13: =Hidden!R19 -> 54087.92822
C14: =Hidden!G20 -> 0.9 | D14: =Hidden!H20 -> 1240469.059 | E14: =Hidden!I20 -> 1041481.173 | F14: =Hidden!J20 -> 859856.0219 | G14: =Hidden!K20 -> 694112.2825 | H14: =Hidden!L20 -> 542900.7359 | I14: =Hidden!M20 -> 404991.8186 | J14: =Hidden!N20 -> 279264.411 | K14: =Hidden!O20 -> 164695.7351 | L14: =Hidden!P20 -> 60352.24581 | M14: =Hidden!Q20 -> -34618.58659 | N14: =Hidden!R20 -> -120995.6952
C15: =Hidden!G21 -> 0.85 | D15: =Hidden!H21 -> 938938.8375 | E15: =Hidden!I21 -> 756847.0671 | F15: =Hidden!J21 -> 590967.9912 | G15: =Hidden!K21 -> 439909.6085 | H15: =Hidden!L21 -> 302404.3756 | I15: =Hidden!M21 -> 177297.4644 | J15: =Hidden!N21 -> 63536.18778 | K15: =Hidden!O21 -> -39839.52772 | L15: =Hidden!P21 -> -133705.7315 | M15: =Hidden!Q21 -> -218862.1977 | N15: =Hidden!R21 -> -296039.4206
C16: =Hidden!G22 -> 0.8 | D16: =Hidden!H22 -> 637475.2653 | E16: =Hidden!I22 -> 472275.7239 | F16: =Hidden!J22 -> 322139.1046 | G16: =Hidden!K22 -> 185762.7075 | H16: =Hidden!L22 -> 61960.64561 | I16: =Hidden!M22 -> -50347.19155 | J16: =Hidden!N22 -> -152145.0746 | K16: =Hidden!O22 -> -244330.3872 | L16: =Hidden!P22 -> -327721.6964 | M16: =Hidden!Q22 -> -403066.0334 | N16: =Hidden!R22 -> -471045.4646
C17: =Hidden!G23 -> 0.75 | D17: =Hidden!H23 -> 336074.4215 | E17: =Hidden!I23 -> 187763.4512 | F17: =Hidden!J23 -> 53365.88296 | G17: =Hidden!K23 -> -68331.70117 | H17: =Hidden!L23 -> -178433.55 | I17: =Hidden!M23 -> -277945.0727 | J17: =Hidden!N23 -> -367782.1387 | K17: =Hidden!O23 -> -448779.4553 | L17: =Hidden!P23 -> -521698.1203 | M17: =Hidden!Q23 -> -587232.4333 | N17: =Hidden!R23 -> -646016.0438

Sheet Hidden (hidden)
B2: Model General Input
B3: Model Start Year | C3: 2023 | D3: Year
B4: Program Start Year | C4: 2026 | D4: Year
B5: Pre-Tax Real WACC | C5: 0.035 | D5: %
B6: Benefit Sensitivity | C6: 1 | D6: %
B7: VCR | C7: 51.91 | D7: $/KWh
B8: Carbon Conversion Rate | C8: 0.0085 | D8: Ton/MWh
B9: Carbon Price | C9: 30 | D9: $/Ton
G10: NPV | H10: =NPV_1 -> 860541.3153
B11: Yes | G11: Sensitivity Table | H11: 1 | I11: =H11+1 -> 2 | J11: =I11+1 -> 3 | K11: 4 | L11: 5 | M11: =L11+1 -> 6 | N11: 7 | O11: 8 | P11: 9 | Q11: 10 | R11: 11
B12: No | G12: =H10 -> 860541.3153 | H12: =I12-0.5% -> 0.01 | I12: 0.015 | J12: 0.02 | K12: 0.025 | L12: =M12-0.5% -> 0.03 | M12: 0.035 | N12: =M12+0.5% -> 0.04 | O12: =N12+0.5% -> 0.045 | P12: =O12+0.5% -> 0.05 | Q12: 0.055 | R12: 0.06
F13: 1 | G13: =G14+5% -> 1.25 | H13: 3353376.103 | I13: 3035987.376 | J13: 2744020.51 | K13: 2475368.23 | L13: 2228108.961 | M13: 2000489.415 | N13: 1790908.917 | O13: 1597905.272 | P13: 1420142.022 | Q13: 1256396.942 | R13: 1105551.653
F14: =F13+1 -> 2 | G14: 1.2 | H14: 3051269.564 | I14: 2750810.561 | J14: 2474621.057 | K14: 2220683.283 | L14: 1987157.504 | M14: 1772365.318 | N14: 1574774.621 | O14: 1392986.051 | P14: 1225720.762 | Q14: 1071809.39 | R14: 930182.0938
B15: 1 | F15: =F14+1 -> 3 | G15: 1.15 | H15: 2749257.118 | I15: 2465722.352 | J15: 2205305.102 | K15: 1966077.075 | L15: 1746280.348 | M15: 1544311.382 | N15: 1358706.623 | O15: 1188129.517 | P15: 1031358.813 | Q15: 887277.992 | R15: 754865.7323
B16: =B15+1 -> 2 | F16: 4 | G16: 1.1 | H16: 2447334.844 | I16: 2180719.056 | J16: 1936069.166 | K16: 1711546.324 | L16: 1505474.398 | M16: 1316324.686 | N16: 1142702.16 | O16: 983333.0587 | P16: 837053.7045 | Q16: 702800.4074 | R16: 579600.3516
B17: =B16+1 -> 3 | F17: 5 | G17: =G18+5% -> 1.05 | H17: 2145498.821 | I17: 1895796.982 | J17: 1666909.768 | K17: 1457087.751 | L17: 1264736.557 | M17: 1088402.305 | N17: 926758.4693 | O17: 778594.063 | P17: 642802.9648 | Q17: 518374.2971 | R17: 404383.7351
B18: 4 | F18: 6 | G18: 1 | H18: 1843745.13 | I18: 1610952.438 | J18: 1397823.431 | K18: 1202698.073 | L18: 1024063.731 | M18: 860541.3153 | N18: 710872.7894 | O18: 573909.9185 | P18: 448604.1226 | Q18: 333997.3211 | R18: 229213.6661
B19: 5 | F19: 7 | G19: =G18-5% -> 0.95 | H19: 1542069.849 | I19: 1326181.732 | J19: 1128806.676 | K19: 948374.0104 | L19: 783452.8224 | M19: 632738.7944 | N19: 495042.3574 | O19: 369278.0132 | P19: 254454.7067 | Q19: 149667.1398 | R19: 54087.92822
B20: 6 | F20: 8 | G20: =G19-5% -> 0.9 | H20: 1240469.059 | I20: 1041481.173 | J20: 859856.0219 | K20: 694112.2825 | L20: 542900.7359 | M20: 404991.8186 | N20: 279264.411 | O20: 164695.7351 | P20: 60352.24581 | Q20: -34618.58659 | R20: -120995.6952
B21: 7 | F21: 9 | G21: 0.85 | H21: 938938.8375 | I21: 756847.0671 | J21: 590967.9912 | K21: 439909.6085 | L21: 302404.3756 | M21: 177297.4644 | N21: 63536.18778 | O21: -39839.52772 | P21: -133705.7315 | Q21: -218862.1977 | R21: -296039.4206
B22: 8 | F22: 10 | G22: 0.8 | H22: 637475.2653 | I22: 472275.7239 | J22: 322139.1046 | K22: 185762.7075 | L22: 61960.64561 | M22: -50347.19155 | N22: -152145.0746 | O22: -244330.3872 | P22: -327721.6964 | Q22: -403066.0334 | R22: -471045.4646
B23: 9 | F23: 11 | G23: =G22-5% -> 0.75 | H23: 336074.4215 | I23: 187763.4512 | J23: 53365.88296 | K23: -68331.70117 | L23: -178433.55 | M23: -277945.0727 | N23: -367782.1387 | O23: -448779.4553 | P23: -521698.1203 | Q23: -587232.4333 | R23: -646016.0438
B24: 10
B25: 11
B26: 12
B27: 13
B28: 14
B29: 15
B30: 16
B31: 17
B32: 18
B33: 19
B34: 20
B35: 21
B36: 22
B37: 23
B38: 24
B39: 25
B40: 26
B41: 27
B42: 28
B43: 29
B44: 30
B45: 31
B46: 32
B47: 33
B48: 34
B49: 35
B50: 36
B51: 37
B52: 38
B53: 39
B54: 40
B55: 41
B56: 42
B57: 43
B58: 44
B59: 45
B60: 46
B61: 47
B62: 48
B63: 49
B64: 50
B65: 51
B66: 52
B67: 53
B68: 54
B69: 55
B70: 56
B71: 57
B72: 58
B73: 59
B74: 60
B75: 61
B76: 62
B77: 63
B78: 64
B79: 65
B80: 66
B81: 67
B82: 68
B83: 69
B84: 70
B85: 71
B86: 72
B87: 73
B88: 74
B89: 75
B90: 76
B91: 77
B92: 78
B93: 79
B94: 80
B95: 81
B96: 82
B97: 83
B98: 84
B99: 85
B100: 86
B101: 87
B102: 88
B103: 89
B104: 90
B105: 91
B106: 92
B107: 93
B108: 94
B109: 95
B110: 96
B111: 97
B112: 98
B113: 99
B114: 100
B115: 101
B116: =B115+1 -> 102
B117: 103
B118: 104
B119: 105
B120: 106
B121: 107
B122: 108
B123: 109
B124: 110
B125: 111
B126: 112
B127: 113
B128: 114
B129: 115
B130: 116
B131: 117
B132: 118
B133: 119
B134: 120
B135: 121
B136: 122
B137: 123
B138: 124
B139: 125
B140: 126
B141: 127
B142: 128
B143: 129
B144: 130
B145: 131
B146: 132
B147: 133
B148: 134
B149: 135
B150: 136
B151: 137
B152: 138
B153: 139
B154: 140
B155: 141
B156: 142
B157: 143
B158: 144
B159: 145
B160: 146
B161: 147
B162: 148
B163: 149
B164: 150
B165: 151
B166: 152
B167: 153
B168: 154
B169: 155
B170: 156
B171: 157
B172: 158
B173: 159
B174: 160
B175: 161
B176: 162
B177: 163
B178: 164
B179: 165
B180: =B179+1 -> 166
B181: 167
B182: 168
B183: 169
B184: 170
B185: 171
B186: 172
B187: 173
B188: 174
B189: 175
B190: 176
B191: 177
B192: 178
B193: 179
B194: 180
B195: 181
B196: 182
B197: 183
B198: 184
B199: 185
B200: 186
B201: 187
... 813 more rows
